Workbook

Sheet Engines
AT1: Essential Unit Conversion
A2: Universal Calculation Spreadsheets applicable for the Emissions of Ethanol Industry | U2: Please, enter information describing specific permit limits or source specific emissions guarantee. If the limit or data are in other units, please, convert them to lb/mmBtu
A3: Engines | AT3: From | AV3: To
W4: 1st Compression Engine | X4: 2nd Compression Engine | Y4: 3rd Compression Engine | Z4: 4th Compression Engine | AA4: 5th Compression Engine | AB4: 6th Compression Engine | AC4: 7th Compression Engine | AD4: 8th Compression Engine | AE4: 9th Compression Engine | AF4: 10th Compression Engine | AI4: 1st Compression Engine | AJ4: 2nd Spark Ignition Engine | AK4: 3rd Spark Ignition Engine | AL4: 4th Spark Ignition Engine | AM4: 5th Spark Ignition Engine | AN4: 6th Spark Ignition Engine | AO4: 7th Spark Ignition Engine | AP4: 8th Spark Ignition Engine | AQ4: 9th Spark Ignition Engine | AR4: 10th Spark Ignition Engine | AU4: MMSCF | AV4: =AT4*1020 -> 0 | AW4: MMBtu
U5: PMfilterable | AG5: PMfilterable
U6: PM10 | AG6: PM10 | AU6: lb/MMSCF | AV6: =AT6/1020 -> 0 | AW6: lb/MMBtu
A7: Questions | D7: Current Capacity | N7: Maximum Proposed Capacity | U7: PM2.5 | AG7: PM2.5
U8: SO2 | AG8: SO2 | AU8: lb/hr | AV8: =AT8/AT9 -> 0 | AW8: lb/MMBtu
U9: NOx | AG9: NOx | AT9: 1 | AU9: MMBtu/hr
A10: Number of Compression Engines | G10: Units | K10: Number of Compression Engines | Q10: Units | U10: CO | AG10: CO
U11: VOC | AG11: VOC
A12: Number of Spark Ignition Engines | G12: Units | K12: Number of Spark Ignition Engines | Q12: Units | U12: Individual HAP | AG12: Individual HAP
U13: Acetaldehyde | AG13: Acetaldehyde
U14: Acrolein | AG14: Acrolein
B15: ID | C15: Emission Unit Name | D15: Engine Rating (hp) | E15: Maximum Fuel Capacity (gal/hr) | F15: Manufacturer Emission's Gurantee Available | G15: Restricted operating hours | L15: ID | M15: Emission Unit Name | N15: Engine Rating (hp) | O15: Maximum Fuel Capacity (gal/hr) | P15: Manufacturer Emission's Gurantee Available | Q15: Restricted operating hours | U15: Arsenic compounds | AG15: Arsenic compounds
A16: 1st Compression Engine | G16: 8760 | K16: 1st Compression Engine | Q16: 8760 | U16: Benzene | AG16: Benzene
A17: 2nd Compression Engine | G17: 8760 | K17: 2nd Compression Engine | Q17: 8760 | U17: Benzyl chloride | AG17: Benzyl chloride
A18: 3rd Compression Engine | G18: 8760 | K18: 3rd Compression Engine | Q18: 8760 | U18: Beryllium compounds | AG18: Beryllium compounds
A19: 4th Compression Engine | G19: 8760 | K19: 4th Compression Engine | Q19: 8760 | U19: Cadmium compounds | AG19: Cadmium compounds
A20: 5th Compression Engine | G20: 8760 | K20: 5th Compression Engine | Q20: 8760 | U20: Cyanide compounds | AG20: Cyanide compounds
A21: 6th Compression Engine | G21: 8760 | K21: 6th Compression Engine | Q21: 8760 | U21: Formaldehyde | AG21: Formaldehyde
A22: 7th Compression Engine | G22: 8760 | K22: 7th Compression Engine | Q22: 8760 | U22: n-Hexane | AG22: n-Hexane
A23: 8th Compression Engine | G23: 8760 | K23: 8th Compression Engine | Q23: 8760 | U23: Hydrochloric acid | AG23: Hydrochloric acid
A24: 9th Compression Engine | G24: 8760 | K24: 9th Compression Engine | Q24: 8760 | U24: Lead Compounds | AG24: Lead Compounds
A25: 10th Compression Engine | G25: 8760 | K25: 10th Compression Engine | Q25: 8760 | U25: Mercury compounds | AG25: Mercury compounds
U26: Methanol | AG26: Methanol
U27: Methyl hydrazine | AG27: Methyl hydrazine
B28: ID | C28: Emission Unit Name | D28: Engine Rating (hp) | E28: Fuel Use Factor (Btu/hp-hr) | F28: Manufacturer Emission's Gurantee Available | G28: Fuel Type | H28: Engine Configuration | I28: Restricted operating hours | L28: ID | M28: Emission Unit Name | N28: Engine Rating (hp) | O28: Fuel Use Factor (Btu/hp-hr) | P28: Manufacturer Emission's Gurantee Available | Q28: Fuel Type | R28: Engine Configuration | S28: Restricted operating hours | U28: Selenium compounds | AG28: Selenium compounds
A29: 1st Spark Ignition Engine | I29: 8760 | K29: 1st Spark Ignition Engine | S29: 8760 | U29: Other HAPs | AG29: Other HAPs
A30: 2nd Spark Ignition Engine | I30: 8760 | K30: 2nd Spark Ignition Engine | S30: 8760 | U30: Total HAPs | AG30: Total HAPs
A31: 3rd Spark Ignition Engine | I31: 8760 | K31: 3rd Spark Ignition Engine | S31: 8760 | U31: Green House Gasses | AG31: Green House Gasses
A32: 4th Spark Ignition Engine | I32: 8760 | K32: 4th Spark Ignition Engine | S32: 8760 | U32: Carbon Dioxide (CO2) | AG32: Carbon Dioxide (CO2)
A33: 5th Spark Ignition Engine | I33: 8760 | K33: 5th Spark Ignition Engine | S33: 8760 | U33: Methane (CH4) | AG33: Methane (CH4)
A34: 6th Spark Ignition Engine | I34: 8760 | K34: 6th Spark Ignition Engine | S34: 8760 | U34: Nitrous Oxide (N2O) | AG34: Nitrous Oxide (N2O)
A35: 7th Spark Ignition Engine | I35: 8760 | K35: 7th Spark Ignition Engine | S35: 8760
A36: 8th Spark Ignition Engine | I36: 8760 | K36: 8th Spark Ignition Engine | S36: 8760
A37: 9th Spark Ignition Engine | I37: 8760 | K37: 9th Spark Ignition Engine | S37: 8760
A38: 10th Spark Ignition Engine | I38: 8760 | K38: 10th Spark Ignition Engine | S38: 8760
W42: 1st Compression Engine | X42: 2nd Compression Engine | Y42: 3rd Compression Engine | Z42: 4th Compression Engine | AA42: 5th Compression Engine | AB42: 6th Compression Engine | AC42: 7th Compression Engine | AD42: 8th Compression Engine | AE42: 9th Compression Engine | AF42: 10th Compression Engine | AI42: 1st Compression Engine | AJ42: 2nd Spark Ignition Engine | AK42: 3rd Spark Ignition Engine | AL42: 4th Spark Ignition Engine | AM42: 5th Spark Ignition Engine | AN42: 6th Spark Ignition Engine | AO42: 7th Spark Ignition Engine | AP42: 8th Spark Ignition Engine | AQ42: 9th Spark Ignition Engine | AR42: 10th Spark Ignition Engine
U43: PMfilterable | AG43: PMfilterable
U44: PM10 | AG44: PM10
U45: PM2.5 | AG45: PM2.5
U46: SO2 | AG46: SO2
U47: NOx | AG47: NOx
U48: CO | AG48: CO
U49: VOC | AG49: VOC
U50: Individual HAP | AG50: Individual HAP
U51: Acetaldehyde | AG51: Acetaldehyde
U52: Acrolein | AG52: Acrolein
U53: Arsenic compounds | AG53: Arsenic compounds
U54: Benzene | AG54: Benzene
U55: Benzyl chloride | AG55: Benzyl chloride
U56: Beryllium compounds | AG56: Beryllium compounds
U57: Cadmium compounds | AG57: Cadmium compounds
U58: Cyanide compounds | AG58: Cyanide compounds
U59: Formaldehyde | AG59: Formaldehyde
U60: n-Hexane | AG60: n-Hexane
U61: Hydrochloric acid | AG61: Hydrochloric acid
U62: Lead Compounds | AG62: Lead Compounds
U63: Mercury compounds | AG63: Mercury compounds
U64: Methanol | AG64: Methanol
U65: Methyl hydrazine | AG65: Methyl hydrazine
U66: Selenium compounds | AG66: Selenium compounds
U67: Other HAPs | AG67: Other HAPs
U68: Total HAPs | AG68: Total HAPs
U69: Green House Gasses | AG69: Green House Gasses
U70: Carbon Dioxide (CO2) | AG70: Carbon Dioxide (CO2)
U71: Methane (CH4) | AG71: Methane (CH4)
U72: Nitrous Oxide (N2O) | AG72: Nitrous Oxide (N2O)

Sheet Results Summary
A2: Universal Calculation Spreadsheets applicable for the Emissions of Ethanol Industry
A3: Results Summary
A5: Non-Fugitive PTE
A6: Pollutants | B6: Current PTE | E6: Pollutants | F6: Total PTE after Project | G6: DDGS dryers | I6: Pollutants | J6: Project PTE
B7: (lb/hr) | C7: (ton/yr) | F7: (lb/hr) | G7: (ton/yr) | J7: (lb/hr) | K7: (ton/yr)
A8: PMfilterable | B8: =Calculations!Z46+Calculations!Z85 -> 0 | C8: =Calculations!AN46+Calculations!AN85 -> 0 | E8: PMfilterable | F8: =Calculations!Z125+Calculations!Z164 -> 0 | G8: =Calculations!AN125+Calculations!AN164 -> 0 | I8: PMfilterable | J8: =F8-B8 -> 0 | K8: =G8-C8 -> 0
A9: PM10 | B9: =Calculations!Z47+Calculations!Z86 -> 0 | C9: =Calculations!AN47+Calculations!AN86 -> 0 | E9: PM10 | F9: =Calculations!Z126+Calculations!Z165 -> 0 | G9: =Calculations!AN126+Calculations!AN165 -> 0 | I9: PM10 | J9: =F9-B9 -> 0 | K9: =G9-C9 -> 0
A10: PM2.5 | B10: =Calculations!Z48+Calculations!Z87 -> 0 | C10: =Calculations!AN48+Calculations!AN87 -> 0 | E10: PM2.5 | F10: =Calculations!Z127+Calculations!Z166 -> 0 | G10: =Calculations!AN127+Calculations!AN166 -> 0 | I10: PM2.5 | J10: 0 | K10: 0
A11: SO2 | B11: =Calculations!Z49+Calculations!Z88 -> 0 | C11: =Calculations!AN49+Calculations!AN88 -> 0 | E11: SO2 | F11: =Calculations!Z128+Calculations!Z167 -> 0 | G11: =Calculations!AN128+Calculations!AN167 -> 0 | I11: SO2 | J11: 0 | K11: 0
A12: NOx | B12: =Calculations!Z50+Calculations!Z89 -> 0 | C12: =Calculations!AN50+Calculations!AN89 -> 0 | E12: NOx | F12: =Calculations!Z129+Calculations!Z168 -> 0 | G12: =Calculations!AN129+Calculations!AN168 -> 0 | I12: NOx | J12: 0 | K12: 0
A13: CO | B13: =Calculations!Z51+Calculations!Z90 -> 0 | C13: =Calculations!AN51+Calculations!AN90 -> 0 | E13: CO | F13: =Calculations!Z130+Calculations!Z169 -> 0 | G13: =Calculations!AN130+Calculations!AN169 -> 0 | I13: CO | J13: 0 | K13: 0
A14: VOC | B14: =Calculations!Z52+Calculations!Z91 -> 0 | C14: =Calculations!AN52+Calculations!AN91 -> 0 | E14: VOC | F14: =Calculations!Z131+Calculations!Z170 -> 0 | G14: =Calculations!AN131+Calculations!AN170 -> 0 | I14: VOC | J14: 0 | K14: 0
A15: Individual HAP | E15: Individual HAP | I15: Individual HAP
A16: Acetaldehyde | B16: =Calculations!Z54+Calculations!Z93 -> 0 | C16: =Calculations!AN54+Calculations!AN93 -> 0 | E16: Acetaldehyde | F16: =Calculations!Z133+Calculations!Z172 -> 0 | G16: =Calculations!AN133+Calculations!AN172 -> 0 | I16: Acetaldehyde | J16: =F16-B16 -> 0 | K16: =G16-C16 -> 0
A17: Acrolein | B17: =Calculations!Z55+Calculations!Z94 -> 0 | C17: =Calculations!AN55+Calculations!AN94 -> 0 | E17: Acrolein | F17: =Calculations!Z134+Calculations!Z173 -> 0 | G17: =Calculations!AN134+Calculations!AN173 -> 0 | I17: Acrolein | J17: 0 | K17: 0
A18: Arsenic compounds | B18: =Calculations!Z56+Calculations!Z95 -> 0 | C18: =Calculations!AN56+Calculations!AN95 -> 0 | E18: Arsenic compounds | F18: =Calculations!Z135+Calculations!Z174 -> 0 | G18: =Calculations!AN135+Calculations!AN174 -> 0 | I18: Arsenic compounds | J18: 0 | K18: 0
A19: Benzene | B19: =Calculations!Z57+Calculations!Z96 -> 0 | C19: =Calculations!AN57+Calculations!AN96 -> 0 | E19: Benzene | F19: =Calculations!Z136+Calculations!Z175 -> 0 | G19: =Calculations!AN136+Calculations!AN175 -> 0 | I19: Benzene | J19: 0 | K19: 0
A20: Benzyl chloride | B20: =Calculations!Z58+Calculations!Z97 -> 0 | C20: =Calculations!AN58+Calculations!AN97 -> 0 | E20: Benzyl chloride | F20: =Calculations!Z137+Calculations!Z176 -> 0 | G20: =Calculations!AN137+Calculations!AN176 -> 0 | I20: Benzyl chloride | J20: 0 | K20: 0
A21: Beryllium compounds | B21: =Calculations!Z59+Calculations!Z98 -> 0 | C21: =Calculations!AN59+Calculations!AN98 -> 0 | E21: Beryllium compounds | F21: =Calculations!Z138+Calculations!Z177 -> 0 | G21: =Calculations!AN138+Calculations!AN177 -> 0 | I21: Beryllium compounds | J21: 0 | K21: 0
A22: Cadmium compounds | B22: =Calculations!Z60+Calculations!Z99 -> 0 | C22: =Calculations!AN60+Calculations!AN99 -> 0 | E22: Cadmium compounds | F22: =Calculations!Z139+Calculations!Z178 -> 0 | G22: =Calculations!AN139+Calculations!AN178 -> 0 | I22: Cadmium compounds | J22: 0 | K22: 0
A23: Cyanide compounds | B23: =Calculations!Z61+Calculations!Z100 -> 0 | C23: =Calculations!AN61+Calculations!AN100 -> 0 | E23: Cyanide compounds | F23: =Calculations!Z140+Calculations!Z179 -> 0 | G23: =Calculations!AN140+Calculations!AN179 -> 0 | I23: Cyanide compounds | J23: 0 | K23: 0
A24: Formaldehyde | B24: =Calculations!Z62+Calculations!Z101 -> 0 | C24: =Calculations!AN62+Calculations!AN101 -> 0 | E24: Formaldehyde | F24: =Calculations!Z141+Calculations!Z180 -> 0 | G24: =Calculations!AN141+Calculations!AN180 -> 0 | I24: Formaldehyde | J24: 0 | K24: 0
A25: Hexane | B25: =Calculations!Z63+Calculations!Z102 -> 0 | C25: =Calculations!AN63+Calculations!AN102 -> 0 | E25: Hexane | F25: =Calculations!Z142+Calculations!Z181 -> 0 | G25: =Calculations!AN142+Calculations!AN181 -> 0 | I25: Hexane | J25: 0 | K25: 0
A26: Hydrochloric acid | B26: =Calculations!Z64+Calculations!Z103 -> 0 | C26: =Calculations!AN64+Calculations!AN103 -> 0 | E26: Hydrochloric acid | F26: =Calculations!Z143+Calculations!Z182 -> 0 | G26: =Calculations!AN143+Calculations!AN182 -> 0 | I26: Hydrochloric acid | J26: 0 | K26: 0
A27: Lead Compounds | B27: =Calculations!Z65+Calculations!Z104 -> 0 | C27: =Calculations!AN65+Calculations!AN104 -> 0 | E27: Lead Compounds | F27: =Calculations!Z144+Calculations!Z183 -> 0 | G27: =Calculations!AN144+Calculations!AN183 -> 0 | I27: Lead Compounds | J27: 0 | K27: 0
A28: Mercury compounds | B28: =Calculations!Z66+Calculations!Z105 -> 0 | C28: =Calculations!AN66+Calculations!AN105 -> 0 | E28: Mercury compounds | F28: =Calculations!Z145+Calculations!Z184 -> 0 | G28: =Calculations!AN145+Calculations!AN184 -> 0 | I28: Mercury compounds | J28: 0 | K28: 0
A29: Methanol | B29: =Calculations!Z67+Calculations!Z106 -> 0 | C29: =Calculations!AN67+Calculations!AN106 -> 0 | E29: Methanol | F29: =Calculations!Z146+Calculations!Z185 -> 0 | G29: =Calculations!AN146+Calculations!AN185 -> 0 | I29: Methanol | J29: 0 | K29: 0
A30: Methyl hydrazine | B30: =Calculations!Z68+Calculations!Z107 -> 0 | C30: =Calculations!AN68+Calculations!AN107 -> 0 | E30: Methyl hydrazine | F30: =Calculations!Z147+Calculations!Z186 -> 0 | G30: =Calculations!AN147+Calculations!AN186 -> 0 | I30: Methyl hydrazine | J30: 0 | K30: 0
A31: Selenium compounds | B31: =Calculations!Z69+Calculations!Z108 -> 0 | C31: =Calculations!AN69+Calculations!AN108 -> 0 | E31: Selenium compounds | F31: =Calculations!Z148+Calculations!Z187 -> 0 | G31: =Calculations!AN148+Calculations!AN187 -> 0 | I31: Selenium compounds | J31: 0 | K31: 0
A32: Other HAPs | B32: =Calculations!Z70+Calculations!Z109 -> 0 | C32: =Calculations!AN70+Calculations!AN109 -> 0 | E32: Other HAPs | F32: =Calculations!Z149+Calculations!Z188 -> 0 | G32: =Calculations!AN149+Calculations!AN188 -> 0 | I32: Other HAPs | J32: 0 | K32: 0
A33: Total HAPs | B33: =Calculations!Z71+Calculations!Z110 -> 0 | C33: =Calculations!AN71+Calculations!AN110 -> 0 | E33: Total HAPs | F33: =Calculations!Z150+Calculations!Z189 -> 0 | G33: =Calculations!AN150+Calculations!AN189 -> 0 | I33: Total HAPs | J33: 0 | K33: 0
A34: Greenhouse Gases (GHG) (Mass Basis) | E34: Greenhouse Gases (GHG) (Mass Basis) | I34: Greenhouse Gases (GHG) (Mass Basis)
A35: Carbon Dioxide | B35: =Calculations!Z73+Calculations!Z112 -> 0 | C35: =Calculations!AN73+Calculations!AN112 -> 0 | E35: Carbon Dioxide | F35: =Calculations!Z152+Calculations!Z191 -> 0 | G35: =Calculations!AN152+Calculations!AN191 -> 0 | I35: Carbon Dioxide | J35: =F35-B35 -> 0 | K35: =G35-C35 -> 0
A36: Methane | B36: =Calculations!Z74+Calculations!Z113 -> 0 | C36: =Calculations!AN74+Calculations!AN113 -> 0 | E36: Methane | F36: =Calculations!Z153+Calculations!Z192 -> 0 | G36: =Calculations!AN153+Calculations!AN192 -> 0 | I36: Methane | J36: 0 | K36: 0
A37: Nitrous Oxide | B37: =Calculations!Z75+Calculations!Z114 -> 0 | C37: =Calculations!AN75+Calculations!AN114 -> 0 | E37: Nitrous Oxide | F37: =Calculations!Z154+Calculations!Z193 -> 0 | G37: =Calculations!AN154+Calculations!AN193 -> 0 | I37: Nitrous Oxide | J37: 0 | K37: 0
A38: Total GHGs | B38: =SUM(B35:B37) -> 0 | C38: =SUM(C35:C37) -> 0 | E38: Total GHGs | F38: =Calculations!Z155+Calculations!Z194 -> 0 | G38: =Calculations!AN155+Calculations!AN194 -> 0 | I38: Total GHGs | J38: 0 | K38: 0
A39: Greenhouse Gases (GHG) (CO2 Equivalent Basis) | E39: Greenhouse Gases (GHG) (CO2 Equivalent Basis) | I39: Greenhouse Gases (GHG) (CO2 Equivalent Basis)
A40: Carbon Dioxide | B40: =B35 -> 0 | C40: =C35 -> 0 | E40: Carbon Dioxide | F40: =F35 -> 0 | G40: =G35 -> 0 | I40: Carbon Dioxide | J40: =F40-B40 -> 0 | K40: =G40-C40 -> 0
A41: Methane | B41: =B36*25 -> 0 | C41: =C36*25 -> 0 | E41: Methane | F41: =F36*25 -> 0 | G41: =G36*25 -> 0 | I41: Methane | J41: 0 | K41: 0
A42: Nitrous Oxide | B42: =B38*298 -> 0 | C42: =C38*298 -> 0 | E42: Nitrous Oxide | F42: =F38*298 -> 0 | G42: =G38*298 -> 0 | I42: Nitrous Oxide | J42: 0 | K42: 0
A43: Total GHGs | B43: =SUM(B40:B42) -> 0 | C43: =SUM(C40:C42) -> 0 | E43: Total GHGs | F43: =SUM(F40:F42) -> 0 | G43: =SUM(G40:G42) -> 0 | I43: Total GHGs | J43: 0 | K43: 0

Sheet Calculations
A1: Fuel Type | C1: Natural Gas | D1: Natural Gas | E1: Natural Gas | F1: Gasoline | G1: Diesel | H1: Diesel | I1: Dual Fuel (95% NG + Diesel
A2: Engine Configuration | C2: 4-STROKE LEAN-BURN | D2: 4-STROKE RICH-BURN | E2: 2-STROKE LEAN-BURN | G2: Small <600 HP | H2: Large >600 HP
A4: Engines
A6: Diesel Fuel Heat Content (MMBtu/gal) | D6: 0.139
A8: Pollutant | B8: Units | C8: Emission Factor
C9: 1 | D9: 2 | E9: 3 | F9: 4 | G9: 5 | H9: 6 | I9: 7
A10: Criteria Pollutants | C10: AP-42: Table 3.2-2 | D10: AP-42: Table 3.2-3 | E10: AP-42: Table 3.2-1 | F10: AP-42: Table 3.3-1 | G10: AP-42: Table 3.3-1 | H10: AP-42: Table 3.4-1 | I10: AP-42: Table 3.4-1
A11: PM | B11: lb/MMBtu | C11: 0.0099871 | D11: 0.0095 | E11: 0.0384 | F11: 0.1 | G11: 0.31 | H11: 0.0697 | I11: 0.0099871
A12: PM10 | B12: lb/MMBtu | C12: 0.0099871 | D12: =0.0095+0.00991 -> 0.01941 | E12: =E11+0.00991 -> 0.04831 | F12: 0.1 | G12: 0.31 | H12: 0.0573 | I12: 0.0099871
A13: PM2.5 | B13: lb/MMBtu | C13: 0.0099871 | D13: =0.0095+0.00991 -> 0.01941 | E13: =E11+0.00991 -> 0.04831 | F13: 0.1 | G13: 0.31 | H13: =0.0479+0.0077 -> 0.0556 | I13: 0.0099871
A14: SO2 | B14: lb/MMBtu | C14: 0.000588 | D14: 0.000588 | E14: 0.000588 | F14: 0.084 | G14: 0.29 | H14: =1.01*0.05 -> 0.0505 | I14: =0.05*0.05+0.895*0.05 -> 0.04725
A15: NOx | B15: lb/MMBtu | C15: 4.08 | D15: 2.27 | E15: 3.17 | F15: 1.63 | G15: 4.41 | H15: 3.2 | I15: 2.7
A16: CO | B16: lb/MMBtu | C16: 0.557 | D16: 3.72 | E16: 0.386 | F16: 0.99 | G16: 0.95 | H16: 0.85 | I16: 1.16
A17: VOC | B17: lb/MMBtu | C17: 0.118 | D17: 0.0296 | E17: 0.12 | F17: =2.1+0.09+0.69+0.15 -> 3.03 | G17: 0.36 | H17: 0.09 | I17: 0.8
A18: Hazardous air pollutants | C18: AP-42: Table 3.2-2 | D18: AP-42: Table 3.2-3 | E18: AP-42: Table 3.2-1 | F18: AP-42: Table 3.3-2 | G18: AP-42: Table 3.3-2 | H18: AP-42: Table 3.4-3 | I18: AP-42: Table 3.2-2
A19: Acetaldehyde | B19: lb/MMBtu | C19: 0.00836 | D19: 0.00279 | E19: 0.00776 | F19: 0.000767 | G19: 0.000767 | H19: 2.52e-05 | I19: 0.00836
A20: Acrolein | B20: lb/MMBtu | C20: 0.00514 | D20: 0.00263 | E20: 0.00778 | F20: 9.25e-05 | G20: 9.25e-05 | H20: 7.88e-06 | I20: 0.00514
A21: Arsenic compounds | B21: lb/MMBtu
A22: Benzene | B22: lb/MMBtu | C22: 0.00044 | D22: 0.00158 | E22: 0.00194 | F22: 0.000933 | G22: 0.000933 | H22: 0.000776 | I22: 0.00044
A23: Benzyl chloride | B23: lb/MMBtu
A24: Beryllium compounds | B24: lb/MMBtu
A25: Cadmium compounds | B25: lb/MMBtu
A26: Cyanide compounds | B26: lb/MMBtu
A27: Formaldehyde | B27: lb/MMBtu | C27: 0.0528 | D27: 0.0205 | E27: 0.0552 | F27: 0.00118 | G27: 0.00118 | H27: 7.89e-05 | I27: 0.0528
A28: n-Hexane | B28: lb/MMBtu | C28: 0.00111 | E28: 0.000445 | I28: 0.00111
A29: Hydrochloric acid | B29: lb/MMBtu
A30: Lead Compounds | B30: lb/MMBtu
A31: Mercury compounds | B31: lb/MMBtu
A32: Methanol | B32: lb/MMBtu | C32: 0.0025 | D32: 0.00306 | E32: 0.00248 | I32: 0.0025
A33: Methyl hydrazine | B33: lb/MMBtu
A34: Selenium compounds | B34: lb/MMBtu
A35: Other HAPs | B35: lb/MMBtu | C35: 0.00616456 | D35: 0.00184438 | E35: 0.00306102255 | F35: 0.0009011 | G35: 0.0009011 | H35: 0.000686 | I35: 0.00616456
A36: Total HAPs | B36: lb/MMBtu | C36: =SUM(C19:C35) -> 0.07651456 | D36: =SUM(D19:D35) -> 0.03240438 | E36: 0.07866602255 | F36: 0.0038736 | G36: 0.0038736 | H36: 0.00157398 | I36: =SUM(I19:I35) -> 0.07651456
A37: Greenhouse Gases | C37: 40 CFR 98, Subpart C, Tables 1 & 2
A38: CO2 | B38: kg CO2/MMBtu | C38: 53.06 | D38: 53.06 | E38: 53.06 | F38: 70.22 | G38: 73.96 | H38: 73.96 | I38: 53.06
A39: Methane | B39: kg CO2/MMBtu | C39: 0.001 | D39: 0.001 | E39: 0.001 | F39: 0.003 | G39: 0.003 | H39: 0.003 | I39: 0.001
A40: N2O | B40: kg CO2/MMBtu | C40: 0.0001 | D40: 0.0001 | E40: 0.0001 | F40: 0.0006 | G40: 0.0006 | H40: 0.0006 | I40: 0.0001
C44: 1st Compression Engine | D44: 2nd Compression Engine | E44: 3rd Compression Engine | F44: 4th Compression Engine | G44: 5th Compression Engine | H44: 6th Compression Engine | I44: 7th Compression Engine | J44: 8th Compression Engine | K44: 9th Compression Engine | L44: 10th Compression Engine | P44: 1st Compression Engine | Q44: 2nd Compression Engine | R44: 3rd Compression Engine | S44: 4th Compression Engine | T44: 5th Compression Engine | U44: 6th Compression Engine | V44: 7th Compression Engine | W44: 8th Compression Engine | X44: 9th Compression Engine | Y44: 10th Compression Engine | Z44: Total | AD44: 1st Compression Engine | AE44: 2nd Compression Engine | AF44: 3rd Compression Engine | AG44: 4th Compression Engine | AH44: 5th Compression Engine | AI44: 6th Compression Engine | AJ44: 7th Compression Engine | AK44: 8th Compression Engine | AL44: 9th Compression Engine | AM44: 10th Compression Engine | AN44: Total
C45: =IF(Engines!D16<600,5,6) -> 5 | D45: =IF(Engines!D17<600,5,6) -> 5 | E45: =IF(Engines!D18<600,5,6) -> 5 | F45: =IF(Engines!D19<600,5,6) -> 5 | G45: =IF(Engines!D20<600,5,6) -> 5 | H45: =IF(Engines!D21<600,5,6) -> 5 | I45: =IF(Engines!D22<600,5,6) -> 5 | J45: =IF(Engines!D23<600,5,6) -> 5 | K45: =IF(Engines!D24<600,5,6) -> 5 | L45: =IF(Engines!D25<600,5,6) -> 5 | P45: (lb/hr) | AD45: (ton/yr)
A46: PMfilterable | C46: =IF(Engines!W5<>"",Engines!W5,LOOKUP(Calculations!C$45,Calculations!$C$9:$I$9,Calculations!$C11:$I11)) -> 0.31 | D46: =IF(Engines!X5<>"",Engines!X5,LOOKUP(Calculations!D$45,Calculations!$C$9:$I$9,Calculations!$C11:$I11)) -> 0.31 | E46: =IF(Engines!Y5<>"",Engines!Y5,LOOKUP(Calculations!E$45,Calculations!$C$9:$I$9,Calculations!$C11:$I11)) -> 0.31 | F46: =IF(Engines!Z5<>"",Engines!Z5,LOOKUP(Calculations!F$45,Calculations!$C$9:$I$9,Calculations!$C11:$I11)) -> 0.31 | G46: =IF(Engines!AA5<>"",Engines!AA5,LOOKUP(Calculations!G$45,Calculations!$C$9:$I$9,Calculations!$C11:$I11)) -> 0.31 | H46: =IF(Engines!AB5<>"",Engines!AB5,LOOKUP(Calculations!H$45,Calculations!$C$9:$I$9,Calculations!$C11:$I11)) -> 0.31 | I46: =IF(Engines!AC5<>"",Engines!AC5,LOOKUP(Calculations!I$45,Calculations!$C$9:$I$9,Calculations!$C11:$I11)) -> 0.31 | J46: =IF(Engines!AD5<>"",Engines!AD5,LOOKUP(Calculations!J$45,Calculations!$C$9:$I$9,Calculations!$C11:$I11)) -> 0.31 | K46: =IF(Engines!AE5<>"",Engines!AE5,LOOKUP(Calculations!K$45,Calculations!$C$9:$I$9,Calculations!$C11:$I11)) -> 0.31 | L46: =IF(Engines!AF5<>"",Engines!AF5,LOOKUP(Calculations!L$45,Calculations!$C$9:$I$9,Calculations!$C11:$I11)) -> 0.31 | N46: PMfilterable | P46: =C46*$D$6*C$78 -> 0 | Q46: 0 | R46: 0 | S46: 0 | T46: 0 | U46: 0 | V46: 0 | W46: 0 | X46: 0 | Y46: 0 | Z46: =SUM(P46:Y46) -> 0 | AB46: PMfilterable | AD46: =P46*C$79/2000 -> 0 | AE46: =Q46*D$79/2000 -> 0 | AF46: 0 | AG46: =S46*F$79/2000 -> 0 | AH46: 0 | AI46: 0 | AJ46: 0 | AK46: 0 | AL46: 0 | AM46: 0 | AN46: =SUM(AD46:AM46) -> 0
A47: PM10 | C47: =IF(Engines!W6<>"",Engines!W6,LOOKUP(Calculations!C$45,Calculations!$C$9:$I$9,Calculations!$C12:$I12)) -> 0.31 | D47: =IF(Engines!X6<>"",Engines!X6,LOOKUP(Calculations!D$45,Calculations!$C$9:$I$9,Calculations!$C12:$I12)) -> 0.31 | E47: =IF(Engines!Y6<>"",Engines!Y6,LOOKUP(Calculations!E$45,Calculations!$C$9:$I$9,Calculations!$C12:$I12)) -> 0.31 | F47: =IF(Engines!Z6<>"",Engines!Z6,LOOKUP(Calculations!F$45,Calculations!$C$9:$I$9,Calculations!$C12:$I12)) -> 0.31 | G47: =IF(Engines!AA6<>"",Engines!AA6,LOOKUP(Calculations!G$45,Calculations!$C$9:$I$9,Calculations!$C12:$I12)) -> 0.31 | H47: =IF(Engines!AB6<>"",Engines!AB6,LOOKUP(Calculations!H$45,Calculations!$C$9:$I$9,Calculations!$C12:$I12)) -> 0.31 | I47: =IF(Engines!AC6<>"",Engines!AC6,LOOKUP(Calculations!I$45,Calculations!$C$9:$I$9,Calculations!$C12:$I12)) -> 0.31 | J47: =IF(Engines!AD6<>"",Engines!AD6,LOOKUP(Calculations!J$45,Calculations!$C$9:$I$9,Calculations!$C12:$I12)) -> 0.31 | K47: =IF(Engines!AE6<>"",Engines!AE6,LOOKUP(Calculations!K$45,Calculations!$C$9:$I$9,Calculations!$C12:$I12)) -> 0.31 | L47: =IF(Engines!AF6<>"",Engines!AF6,LOOKUP(Calculations!L$45,Calculations!$C$9:$I$9,Calculations!$C12:$I12)) -> 0.31 | N47: PM10 | P47: 0 | Q47: 0 | R47: 0 | S47: 0 | T47: 0 | U47: 0 | V47: 0 | W47: 0 | X47: 0 | Y47: 0 | Z47: =SUM(P47:Y47) -> 0 | AB47: PM10 | AD47: =P47*C$79/2000 -> 0 | AE47: =Q47*D$79/2000 -> 0 | AF47: =R47*E$79/2000 -> 0 | AG47: =S47*F$79/2000 -> 0 | AH47: =T47*G$79/2000 -> 0 | AI47: =U47*H$79/2000 -> 0 | AJ47: =V47*I$79/2000 -> 0 | AK47: =W47*J$79/2000 -> 0 | AL47: =X47*K$79/2000 -> 0 | AM47: =Y47*L$79/2000 -> 0 | AN47: =SUM(AD47:AM47) -> 0
A48: PM2.5 | C48: =IF(Engines!W7<>"",Engines!W7,LOOKUP(Calculations!C$45,Calculations!$C$9:$I$9,Calculations!$C13:$I13)) -> 0.31 | D48: =IF(Engines!X7<>"",Engines!X7,LOOKUP(Calculations!D$45,Calculations!$C$9:$I$9,Calculations!$C13:$I13)) -> 0.31 | E48: =IF(Engines!Y7<>"",Engines!Y7,LOOKUP(Calculations!E$45,Calculations!$C$9:$I$9,Calculations!$C13:$I13)) -> 0.31 | F48: =IF(Engines!Z7<>"",Engines!Z7,LOOKUP(Calculations!F$45,Calculations!$C$9:$I$9,Calculations!$C13:$I13)) -> 0.31 | G48: =IF(Engines!AA7<>"",Engines!AA7,LOOKUP(Calculations!G$45,Calculations!$C$9:$I$9,Calculations!$C13:$I13)) -> 0.31 | H48: =IF(Engines!AB7<>"",Engines!AB7,LOOKUP(Calculations!H$45,Calculations!$C$9:$I$9,Calculations!$C13:$I13)) -> 0.31 | I48: =IF(Engines!AC7<>"",Engines!AC7,LOOKUP(Calculations!I$45,Calculations!$C$9:$I$9,Calculations!$C13:$I13)) -> 0.31 | J48: =IF(Engines!AD7<>"",Engines!AD7,LOOKUP(Calculations!J$45,Calculations!$C$9:$I$9,Calculations!$C13:$I13)) -> 0.31 | K48: =IF(Engines!AE7<>"",Engines!AE7,LOOKUP(Calculations!K$45,Calculations!$C$9:$I$9,Calculations!$C13:$I13)) -> 0.31 | L48: =IF(Engines!AF7<>"",Engines!AF7,LOOKUP(Calculations!L$45,Calculations!$C$9:$I$9,Calculations!$C13:$I13)) -> 0.31 | N48: PM2.5 | P48: 0 | Q48: 0 | R48: 0 | S48: 0 | T48: 0 | U48: 0 | V48: 0 | W48: 0 | X48: 0 | Y48: 0 | Z48: 0 | AB48: PM2.5 | AD48: 0 | AE48: 0 | AF48: 0 | AG48: 0 | AH48: 0 | AI48: 0 | AJ48: 0 | AK48: 0 | AL48: 0 | AM48: 0 | AN48: 0
A49: SO2 | C49: =IF(Engines!W8<>"",Engines!W8,LOOKUP(Calculations!C$45,Calculations!$C$9:$I$9,Calculations!$C14:$I14)) -> 0.29 | D49: =IF(Engines!X8<>"",Engines!X8,LOOKUP(Calculations!D$45,Calculations!$C$9:$I$9,Calculations!$C14:$I14)) -> 0.29 | E49: =IF(Engines!Y8<>"",Engines!Y8,LOOKUP(Calculations!E$45,Calculations!$C$9:$I$9,Calculations!$C14:$I14)) -> 0.29 | F49: =IF(Engines!Z8<>"",Engines!Z8,LOOKUP(Calculations!F$45,Calculations!$C$9:$I$9,Calculations!$C14:$I14)) -> 0.29 | G49: =IF(Engines!AA8<>"",Engines!AA8,LOOKUP(Calculations!G$45,Calculations!$C$9:$I$9,Calculations!$C14:$I14)) -> 0.29 | H49: =IF(Engines!AB8<>"",Engines!AB8,LOOKUP(Calculations!H$45,Calculations!$C$9:$I$9,Calculations!$C14:$I14)) -> 0.29 | I49: =IF(Engines!AC8<>"",Engines!AC8,LOOKUP(Calculations!I$45,Calculations!$C$9:$I$9,Calculations!$C14:$I14)) -> 0.29 | J49: =IF(Engines!AD8<>"",Engines!AD8,LOOKUP(Calculations!J$45,Calculations!$C$9:$I$9,Calculations!$C14:$I14)) -> 0.29 | K49: =IF(Engines!AE8<>"",Engines!AE8,LOOKUP(Calculations!K$45,Calculations!$C$9:$I$9,Calculations!$C14:$I14)) -> 0.29 | L49: =IF(Engines!AF8<>"",Engines!AF8,LOOKUP(Calculations!L$45,Calculations!$C$9:$I$9,Calculations!$C14:$I14)) -> 0.29 | N49: SO2 | P49: 0 | Q49: 0 | R49: 0 | S49: 0 | T49: 0 | U49: 0 | V49: 0 | W49: 0 | X49: 0 | Y49: 0 | Z49: 0 | AB49: SO2 | AD49: 0 | AE49: 0 | AF49: 0 | AG49: 0 | AH49: 0 | AI49: 0 | AJ49: 0 | AK49: 0 | AL49: 0 | AM49: 0 | AN49: 0
A50: NOx | C50: =IF(Engines!W9<>"",Engines!W9,LOOKUP(Calculations!C$45,Calculations!$C$9:$I$9,Calculations!$C15:$I15)) -> 4.41 | D50: =IF(Engines!X9<>"",Engines!X9,LOOKUP(Calculations!D$45,Calculations!$C$9:$I$9,Calculations!$C15:$I15)) -> 4.41 | E50: =IF(Engines!Y9<>"",Engines!Y9,LOOKUP(Calculations!E$45,Calculations!$C$9:$I$9,Calculations!$C15:$I15)) -> 4.41 | F50: =IF(Engines!Z9<>"",Engines!Z9,LOOKUP(Calculations!F$45,Calculations!$C$9:$I$9,Calculations!$C15:$I15)) -> 4.41 | G50: =IF(Engines!AA9<>"",Engines!AA9,LOOKUP(Calculations!G$45,Calculations!$C$9:$I$9,Calculations!$C15:$I15)) -> 4.41 | H50: =IF(Engines!AB9<>"",Engines!AB9,LOOKUP(Calculations!H$45,Calculations!$C$9:$I$9,Calculations!$C15:$I15)) -> 4.41 | I50: =IF(Engines!AC9<>"",Engines!AC9,LOOKUP(Calculations!I$45,Calculations!$C$9:$I$9,Calculations!$C15:$I15)) -> 4.41 | J50: =IF(Engines!AD9<>"",Engines!AD9,LOOKUP(Calculations!J$45,Calculations!$C$9:$I$9,Calculations!$C15:$I15)) -> 4.41 | K50: =IF(Engines!AE9<>"",Engines!AE9,LOOKUP(Calculations!K$45,Calculations!$C$9:$I$9,Calculations!$C15:$I15)) -> 4.41 | L50: =IF(Engines!AF9<>"",Engines!AF9,LOOKUP(Calculations!L$45,Calculations!$C$9:$I$9,Calculations!$C15:$I15)) -> 4.41 | N50: NOx | P50: 0 | Q50: 0 | R50: 0 | S50: 0 | T50: 0 | U50: 0 | V50: 0 | W50: 0 | X50: 0 | Y50: 0 | Z50: 0 | AB50: NOx | AD50: 0 | AE50: 0 | AF50: 0 | AG50: 0 | AH50: 0 | AI50: 0 | AJ50: 0 | AK50: 0 | AL50: 0 | AM50: 0 | AN50: 0
A51: CO | C51: =IF(Engines!W10<>"",Engines!W10,LOOKUP(Calculations!C$45,Calculations!$C$9:$I$9,Calculations!$C16:$I16)) -> 0.95 | D51: =IF(Engines!X10<>"",Engines!X10,LOOKUP(Calculations!D$45,Calculations!$C$9:$I$9,Calculations!$C16:$I16)) -> 0.95 | E51: =IF(Engines!Y10<>"",Engines!Y10,LOOKUP(Calculations!E$45,Calculations!$C$9:$I$9,Calculations!$C16:$I16)) -> 0.95 | F51: =IF(Engines!Z10<>"",Engines!Z10,LOOKUP(Calculations!F$45,Calculations!$C$9:$I$9,Calculations!$C16:$I16)) -> 0.95 | G51: =IF(Engines!AA10<>"",Engines!AA10,LOOKUP(Calculations!G$45,Calculations!$C$9:$I$9,Calculations!$C16:$I16)) -> 0.95 | H51: =IF(Engines!AB10<>"",Engines!AB10,LOOKUP(Calculations!H$45,Calculations!$C$9:$I$9,Calculations!$C16:$I16)) -> 0.95 | I51: =IF(Engines!AC10<>"",Engines!AC10,LOOKUP(Calculations!I$45,Calculations!$C$9:$I$9,Calculations!$C16:$I16)) -> 0.95 | J51: =IF(Engines!AD10<>"",Engines!AD10,LOOKUP(Calculations!J$45,Calculations!$C$9:$I$9,Calculations!$C16:$I16)) -> 0.95 | K51: =IF(Engines!AE10<>"",Engines!AE10,LOOKUP(Calculations!K$45,Calculations!$C$9:$I$9,Calculations!$C16:$I16)) -> 0.95 | L51: =IF(Engines!AF10<>"",Engines!AF10,LOOKUP(Calculations!L$45,Calculations!$C$9:$I$9,Calculations!$C16:$I16)) -> 0.95 | N51: CO | P51: 0 | Q51: 0 | R51: 0 | S51: 0 | T51: 0 | U51: 0 | V51: 0 | W51: 0 | X51: 0 | Y51: 0 | Z51: 0 | AB51: CO | AD51: 0 | AE51: 0 | AF51: 0 | AG51: 0 | AH51: 0 | AI51: 0 | AJ51: 0 | AK51: 0 | AL51: 0 | AM51: 0 | AN51: 0
A52: VOC | C52: =IF(Engines!W11<>"",Engines!W11,LOOKUP(Calculations!C$45,Calculations!$C$9:$I$9,Calculations!$C17:$I17)) -> 0.36 | D52: =IF(Engines!X11<>"",Engines!X11,LOOKUP(Calculations!D$45,Calculations!$C$9:$I$9,Calculations!$C17:$I17)) -> 0.36 | E52: =IF(Engines!Y11<>"",Engines!Y11,LOOKUP(Calculations!E$45,Calculations!$C$9:$I$9,Calculations!$C17:$I17)) -> 0.36 | F52: =IF(Engines!Z11<>"",Engines!Z11,LOOKUP(Calculations!F$45,Calculations!$C$9:$I$9,Calculations!$C17:$I17)) -> 0.36 | G52: =IF(Engines!AA11<>"",Engines!AA11,LOOKUP(Calculations!G$45,Calculations!$C$9:$I$9,Calculations!$C17:$I17)) -> 0.36 | H52: =IF(Engines!AB11<>"",Engines!AB11,LOOKUP(Calculations!H$45,Calculations!$C$9:$I$9,Calculations!$C17:$I17)) -> 0.36 | I52: =IF(Engines!AC11<>"",Engines!AC11,LOOKUP(Calculations!I$45,Calculations!$C$9:$I$9,Calculations!$C17:$I17)) -> 0.36 | J52: =IF(Engines!AD11<>"",Engines!AD11,LOOKUP(Calculations!J$45,Calculations!$C$9:$I$9,Calculations!$C17:$I17)) -> 0.36 | K52: =IF(Engines!AE11<>"",Engines!AE11,LOOKUP(Calculations!K$45,Calculations!$C$9:$I$9,Calculations!$C17:$I17)) -> 0.36 | L52: =IF(Engines!AF11<>"",Engines!AF11,LOOKUP(Calculations!L$45,Calculations!$C$9:$I$9,Calculations!$C17:$I17)) -> 0.36 | N52: VOC | P52: 0 | Q52: 0 | R52: 0 | S52: 0 | T52: 0 | U52: 0 | V52: 0 | W52: 0 | X52: 0 | Y52: 0 | Z52: 0 | AB52: VOC | AD52: 0 | AE52: 0 | AF52: 0 | AG52: 0 | AH52: 0 | AI52: 0 | AJ52: 0 | AK52: 0 | AL52: 0 | AM52: 0 | AN52: 0
A53: Individual HAP | N53: Individual HAP | AB53: Individual HAP
A54: Acetaldehyde | C54: =IF(Engines!W13<>"",Engines!W13,LOOKUP(Calculations!C$45,Calculations!$C$9:$I$9,Calculations!$C19:$I19)) -> 0.000767 | D54: =IF(Engines!X13<>"",Engines!X13,LOOKUP(Calculations!D$45,Calculations!$C$9:$I$9,Calculations!$C19:$I19)) -> 0.000767 | E54: =IF(Engines!Y13<>"",Engines!Y13,LOOKUP(Calculations!E$45,Calculations!$C$9:$I$9,Calculations!$C19:$I19)) -> 0.000767 | F54: =IF(Engines!Z13<>"",Engines!Z13,LOOKUP(Calculations!F$45,Calculations!$C$9:$I$9,Calculations!$C19:$I19)) -> 0.000767 | G54: =IF(Engines!AA13<>"",Engines!AA13,LOOKUP(Calculations!G$45,Calculations!$C$9:$I$9,Calculations!$C19:$I19)) -> 0.000767 | H54: =IF(Engines!AB13<>"",Engines!AB13,LOOKUP(Calculations!H$45,Calculations!$C$9:$I$9,Calculations!$C19:$I19)) -> 0.000767 | I54: =IF(Engines!AC13<>"",Engines!AC13,LOOKUP(Calculations!I$45,Calculations!$C$9:$I$9,Calculations!$C19:$I19)) -> 0.000767 | J54: =IF(Engines!AD13<>"",Engines!AD13,LOOKUP(Calculations!J$45,Calculations!$C$9:$I$9,Calculations!$C19:$I19)) -> 0.000767 | K54: =IF(Engines!AE13<>"",Engines!AE13,LOOKUP(Calculations!K$45,Calculations!$C$9:$I$9,Calculations!$C19:$I19)) -> 0.000767 | L54: =IF(Engines!AF13<>"",Engines!AF13,LOOKUP(Calculations!L$45,Calculations!$C$9:$I$9,Calculations!$C19:$I19)) -> 0.000767 | N54: Acetaldehyde | P54: =C54*$D$6*C$78 -> 0 | Q54: =D54*$D$6*D$78 -> 0 | R54: =E54*$D$6*E$78 -> 0 | S54: =F54*$D$6*F$78 -> 0 | T54: =G54*$D$6*G$78 -> 0 | U54: =H54*$D$6*H$78 -> 0 | V54: =I54*$D$6*I$78 -> 0 | W54: =J54*$D$6*J$78 -> 0 | X54: =K54*$D$6*K$78 -> 0 | Y54: =L54*$D$6*L$78 -> 0 | Z54: 0 | AB54: Acetaldehyde | AD54: =P54*C$79/2000 -> 0 | AE54: =Q54*D$79/2000 -> 0 | AF54: =R54*E$79/2000 -> 0 | AG54: =S54*F$79/2000 -> 0 | AH54: =T54*G$79/2000 -> 0 | AI54: =U54*H$79/2000 -> 0 | AJ54: =V54*I$79/2000 -> 0 | AK54: =W54*J$79/2000 -> 0 | AL54: =X54*K$79/2000 -> 0 | AM54: =Y54*L$79/2000 -> 0 | AN54: =SUM(AD54:AM54) -> 0
A55: Acrolein | C55: =IF(Engines!W14<>"",Engines!W14,LOOKUP(Calculations!C$45,Calculations!$C$9:$I$9,Calculations!$C20:$I20)) -> 9.25e-05 | D55: =IF(Engines!X14<>"",Engines!X14,LOOKUP(Calculations!D$45,Calculations!$C$9:$I$9,Calculations!$C20:$I20)) -> 9.25e-05 | E55: =IF(Engines!Y14<>"",Engines!Y14,LOOKUP(Calculations!E$45,Calculations!$C$9:$I$9,Calculations!$C20:$I20)) -> 9.25e-05 | F55: =IF(Engines!Z14<>"",Engines!Z14,LOOKUP(Calculations!F$45,Calculations!$C$9:$I$9,Calculations!$C20:$I20)) -> 9.25e-05 | G55: =IF(Engines!AA14<>"",Engines!AA14,LOOKUP(Calculations!G$45,Calculations!$C$9:$I$9,Calculations!$C20:$I20)) -> 9.25e-05 | H55: =IF(Engines!AB14<>"",Engines!AB14,LOOKUP(Calculations!H$45,Calculations!$C$9:$I$9,Calculations!$C20:$I20)) -> 9.25e-05 | I55: =IF(Engines!AC14<>"",Engines!AC14,LOOKUP(Calculations!I$45,Calculations!$C$9:$I$9,Calculations!$C20:$I20)) -> 9.25e-05 | J55: =IF(Engines!AD14<>"",Engines!AD14,LOOKUP(Calculations!J$45,Calculations!$C$9:$I$9,Calculations!$C20:$I20)) -> 9.25e-05 | K55: =IF(Engines!AE14<>"",Engines!AE14,LOOKUP(Calculations!K$45,Calculations!$C$9:$I$9,Calculations!$C20:$I20)) -> 9.25e-05 | L55: =IF(Engines!AF14<>"",Engines!AF14,LOOKUP(Calculations!L$45,Calculations!$C$9:$I$9,Calculations!$C20:$I20)) -> 9.25e-05 | N55: Acrolein | P55: 0 | Q55: 0 | R55: 0 | S55: 0 | T55: 0 | U55: 0 | V55: 0 | W55: 0 | X55: 0 | Y55: 0 | Z55: 0 | AB55: Acrolein | AD55: 0 | AE55: 0 | AF55: 0 | AG55: 0 | AH55: 0 | AI55: 0 | AJ55: 0 | AK55: 0 | AL55: 0 | AM55: 0 | AN55: 0
A56: Arsenic compounds | C56: =IF(Engines!W15<>"",Engines!W15,LOOKUP(Calculations!C$45,Calculations!$C$9:$I$9,Calculations!$C21:$I21)) -> 0 | D56: =IF(Engines!X15<>"",Engines!X15,LOOKUP(Calculations!D$45,Calculations!$C$9:$I$9,Calculations!$C21:$I21)) -> 0 | E56: =IF(Engines!Y15<>"",Engines!Y15,LOOKUP(Calculations!E$45,Calculations!$C$9:$I$9,Calculations!$C21:$I21)) -> 0 | F56: =IF(Engines!Z15<>"",Engines!Z15,LOOKUP(Calculations!F$45,Calculations!$C$9:$I$9,Calculations!$C21:$I21)) -> 0 | G56: =IF(Engines!AA15<>"",Engines!AA15,LOOKUP(Calculations!G$45,Calculations!$C$9:$I$9,Calculations!$C21:$I21)) -> 0 | H56: =IF(Engines!AB15<>"",Engines!AB15,LOOKUP(Calculations!H$45,Calculations!$C$9:$I$9,Calculations!$C21:$I21)) -> 0 | I56: =IF(Engines!AC15<>"",Engines!AC15,LOOKUP(Calculations!I$45,Calculations!$C$9:$I$9,Calculations!$C21:$I21)) -> 0 | J56: =IF(Engines!AD15<>"",Engines!AD15,LOOKUP(Calculations!J$45,Calculations!$C$9:$I$9,Calculations!$C21:$I21)) -> 0 | K56: =IF(Engines!AE15<>"",Engines!AE15,LOOKUP(Calculations!K$45,Calculations!$C$9:$I$9,Calculations!$C21:$I21)) -> 0 | L56: =IF(Engines!AF15<>"",Engines!AF15,LOOKUP(Calculations!L$45,Calculations!$C$9:$I$9,Calculations!$C21:$I21)) -> 0 | N56: Arsenic compounds | P56: 0 | Q56: 0 | R56: 0 | S56: 0 | T56: 0 | U56: 0 | V56: 0 | W56: 0 | X56: 0 | Y56: 0 | Z56: 0 | AB56: Arsenic compounds | AD56: 0 | AE56: 0 | AF56: 0 | AG56: 0 | AH56: 0 | AI56: 0 | AJ56: 0 | AK56: 0 | AL56: 0 | AM56: 0 | AN56: 0
A57: Benzene | C57: =IF(Engines!W16<>"",Engines!W16,LOOKUP(Calculations!C$45,Calculations!$C$9:$I$9,Calculations!$C22:$I22)) -> 0.000933 | D57: =IF(Engines!X16<>"",Engines!X16,LOOKUP(Calculations!D$45,Calculations!$C$9:$I$9,Calculations!$C22:$I22)) -> 0.000933 | E57: =IF(Engines!Y16<>"",Engines!Y16,LOOKUP(Calculations!E$45,Calculations!$C$9:$I$9,Calculations!$C22:$I22)) -> 0.000933 | F57: =IF(Engines!Z16<>"",Engines!Z16,LOOKUP(Calculations!F$45,Calculations!$C$9:$I$9,Calculations!$C22:$I22)) -> 0.000933 | G57: =IF(Engines!AA16<>"",Engines!AA16,LOOKUP(Calculations!G$45,Calculations!$C$9:$I$9,Calculations!$C22:$I22)) -> 0.000933 | H57: =IF(Engines!AB16<>"",Engines!AB16,LOOKUP(Calculations!H$45,Calculations!$C$9:$I$9,Calculations!$C22:$I22)) -> 0.000933 | I57: =IF(Engines!AC16<>"",Engines!AC16,LOOKUP(Calculations!I$45,Calculations!$C$9:$I$9,Calculations!$C22:$I22)) -> 0.000933 | J57: =IF(Engines!AD16<>"",Engines!AD16,LOOKUP(Calculations!J$45,Calculations!$C$9:$I$9,Calculations!$C22:$I22)) -> 0.000933 | K57: =IF(Engines!AE16<>"",Engines!AE16,LOOKUP(Calculations!K$45,Calculations!$C$9:$I$9,Calculations!$C22:$I22)) -> 0.000933 | L57: =IF(Engines!AF16<>"",Engines!AF16,LOOKUP(Calculations!L$45,Calculations!$C$9:$I$9,Calculations!$C22:$I22)) -> 0.000933 | N57: Benzene | P57: 0 | Q57: 0 | R57: 0 | S57: 0 | T57: 0 | U57: 0 | V57: 0 | W57: 0 | X57: 0 | Y57: 0 | Z57: 0 | AB57: Benzene | AD57: 0 | AE57: 0 | AF57: 0 | AG57: 0 | AH57: 0 | AI57: 0 | AJ57: 0 | AK57: 0 | AL57: 0 | AM57: 0 | AN57: 0
A58: Benzyl chloride | C58: =IF(Engines!W17<>"",Engines!W17,LOOKUP(Calculations!C$45,Calculations!$C$9:$I$9,Calculations!$C23:$I23)) -> 0 | D58: =IF(Engines!X17<>"",Engines!X17,LOOKUP(Calculations!D$45,Calculations!$C$9:$I$9,Calculations!$C23:$I23)) -> 0 | E58: =IF(Engines!Y17<>"",Engines!Y17,LOOKUP(Calculations!E$45,Calculations!$C$9:$I$9,Calculations!$C23:$I23)) -> 0 | F58: =IF(Engines!Z17<>"",Engines!Z17,LOOKUP(Calculations!F$45,Calculations!$C$9:$I$9,Calculations!$C23:$I23)) -> 0 | G58: =IF(Engines!AA17<>"",Engines!AA17,LOOKUP(Calculations!G$45,Calculations!$C$9:$I$9,Calculations!$C23:$I23)) -> 0 | H58: =IF(Engines!AB17<>"",Engines!AB17,LOOKUP(Calculations!H$45,Calculations!$C$9:$I$9,Calculations!$C23:$I23)) -> 0 | I58: =IF(Engines!AC17<>"",Engines!AC17,LOOKUP(Calculations!I$45,Calculations!$C$9:$I$9,Calculations!$C23:$I23)) -> 0 | J58: =IF(Engines!AD17<>"",Engines!AD17,LOOKUP(Calculations!J$45,Calculations!$C$9:$I$9,Calculations!$C23:$I23)) -> 0 | K58: =IF(Engines!AE17<>"",Engines!AE17,LOOKUP(Calculations!K$45,Calculations!$C$9:$I$9,Calculations!$C23:$I23)) -> 0 | L58: =IF(Engines!AF17<>"",Engines!AF17,LOOKUP(Calculations!L$45,Calculations!$C$9:$I$9,Calculations!$C23:$I23)) -> 0 | N58: Benzyl chloride | P58: 0 | Q58: 0 | R58: 0 | S58: 0 | T58: 0 | U58: 0 | V58: 0 | W58: 0 | X58: 0 | Y58: 0 | Z58: 0 | AB58: Benzyl chloride | AD58: 0 | AE58: 0 | AF58: 0 | AG58: 0 | AH58: 0 | AI58: 0 | AJ58: 0 | AK58: 0 | AL58: 0 | AM58: 0 | AN58: 0
A59: Beryllium compounds | C59: =IF(Engines!W18<>"",Engines!W18,LOOKUP(Calculations!C$45,Calculations!$C$9:$I$9,Calculations!$C24:$I24)) -> 0 | D59: =IF(Engines!X18<>"",Engines!X18,LOOKUP(Calculations!D$45,Calculations!$C$9:$I$9,Calculations!$C24:$I24)) -> 0 | E59: =IF(Engines!Y18<>"",Engines!Y18,LOOKUP(Calculations!E$45,Calculations!$C$9:$I$9,Calculations!$C24:$I24)) -> 0 | F59: =IF(Engines!Z18<>"",Engines!Z18,LOOKUP(Calculations!F$45,Calculations!$C$9:$I$9,Calculations!$C24:$I24)) -> 0 | G59: =IF(Engines!AA18<>"",Engines!AA18,LOOKUP(Calculations!G$45,Calculations!$C$9:$I$9,Calculations!$C24:$I24)) -> 0 | H59: =IF(Engines!AB18<>"",Engines!AB18,LOOKUP(Calculations!H$45,Calculations!$C$9:$I$9,Calculations!$C24:$I24)) -> 0 | I59: =IF(Engines!AC18<>"",Engines!AC18,LOOKUP(Calculations!I$45,Calculations!$C$9:$I$9,Calculations!$C24:$I24)) -> 0 | J59: =IF(Engines!AD18<>"",Engines!AD18,LOOKUP(Calculations!J$45,Calculations!$C$9:$I$9,Calculations!$C24:$I24)) -> 0 | K59: =IF(Engines!AE18<>"",Engines!AE18,LOOKUP(Calculations!K$45,Calculations!$C$9:$I$9,Calculations!$C24:$I24)) -> 0 | L59: =IF(Engines!AF18<>"",Engines!AF18,LOOKUP(Calculations!L$45,Calculations!$C$9:$I$9,Calculations!$C24:$I24)) -> 0 | N59: Beryllium compounds | P59: 0 | Q59: 0 | R59: 0 | S59: 0 | T59: 0 | U59: 0 | V59: 0 | W59: 0 | X59: 0 | Y59: 0 | Z59: 0 | AB59: Beryllium compounds | AD59: 0 | AE59: 0 | AF59: 0 | AG59: 0 | AH59: 0 | AI59: 0 | AJ59: 0 | AK59: 0 | AL59: 0 | AM59: 0 | AN59: 0
A60: Cadmium compounds | C60: =IF(Engines!W19<>"",Engines!W19,LOOKUP(Calculations!C$45,Calculations!$C$9:$I$9,Calculations!$C25:$I25)) -> 0 | D60: =IF(Engines!X19<>"",Engines!X19,LOOKUP(Calculations!D$45,Calculations!$C$9:$I$9,Calculations!$C25:$I25)) -> 0 | E60: =IF(Engines!Y19<>"",Engines!Y19,LOOKUP(Calculations!E$45,Calculations!$C$9:$I$9,Calculations!$C25:$I25)) -> 0 | F60: =IF(Engines!Z19<>"",Engines!Z19,LOOKUP(Calculations!F$45,Calculations!$C$9:$I$9,Calculations!$C25:$I25)) -> 0 | G60: =IF(Engines!AA19<>"",Engines!AA19,LOOKUP(Calculations!G$45,Calculations!$C$9:$I$9,Calculations!$C25:$I25)) -> 0 | H60: =IF(Engines!AB19<>"",Engines!AB19,LOOKUP(Calculations!H$45,Calculations!$C$9:$I$9,Calculations!$C25:$I25)) -> 0 | I60: =IF(Engines!AC19<>"",Engines!AC19,LOOKUP(Calculations!I$45,Calculations!$C$9:$I$9,Calculations!$C25:$I25)) -> 0 | J60: =IF(Engines!AD19<>"",Engines!AD19,LOOKUP(Calculations!J$45,Calculations!$C$9:$I$9,Calculations!$C25:$I25)) -> 0 | K60: =IF(Engines!AE19<>"",Engines!AE19,LOOKUP(Calculations!K$45,Calculations!$C$9:$I$9,Calculations!$C25:$I25)) -> 0 | L60: =IF(Engines!AF19<>"",Engines!AF19,LOOKUP(Calculations!L$45,Calculations!$C$9:$I$9,Calculations!$C25:$I25)) -> 0 | N60: Cadmium compounds | P60: 0 | Q60: 0 | R60: 0 | S60: 0 | T60: 0 | U60: 0 | V60: 0 | W60: 0 | X60: 0 | Y60: 0 | Z60: 0 | AB60: Cadmium compounds | AD60: 0 | AE60: 0 | AF60: 0 | AG60: 0 | AH60: 0 | AI60: 0 | AJ60: 0 | AK60: 0 | AL60: 0 | AM60: 0 | AN60: 0
A61: Cyanide compounds | C61: =IF(Engines!W20<>"",Engines!W20,LOOKUP(Calculations!C$45,Calculations!$C$9:$I$9,Calculations!$C26:$I26)) -> 0 | D61: =IF(Engines!X20<>"",Engines!X20,LOOKUP(Calculations!D$45,Calculations!$C$9:$I$9,Calculations!$C26:$I26)) -> 0 | E61: =IF(Engines!Y20<>"",Engines!Y20,LOOKUP(Calculations!E$45,Calculations!$C$9:$I$9,Calculations!$C26:$I26)) -> 0 | F61: =IF(Engines!Z20<>"",Engines!Z20,LOOKUP(Calculations!F$45,Calculations!$C$9:$I$9,Calculations!$C26:$I26)) -> 0 | G61: =IF(Engines!AA20<>"",Engines!AA20,LOOKUP(Calculations!G$45,Calculations!$C$9:$I$9,Calculations!$C26:$I26)) -> 0 | H61: =IF(Engines!AB20<>"",Engines!AB20,LOOKUP(Calculations!H$45,Calculations!$C$9:$I$9,Calculations!$C26:$I26)) -> 0 | I61: =IF(Engines!AC20<>"",Engines!AC20,LOOKUP(Calculations!I$45,Calculations!$C$9:$I$9,Calculations!$C26:$I26)) -> 0 | J61: =IF(Engines!AD20<>"",Engines!AD20,LOOKUP(Calculations!J$45,Calculations!$C$9:$I$9,Calculations!$C26:$I26)) -> 0 | K61: =IF(Engines!AE20<>"",Engines!AE20,LOOKUP(Calculations!K$45,Calculations!$C$9:$I$9,Calculations!$C26:$I26)) -> 0 | L61: =IF(Engines!AF20<>"",Engines!AF20,LOOKUP(Calculations!L$45,Calculations!$C$9:$I$9,Calculations!$C26:$I26)) -> 0 | N61: Cyanide compounds | P61: 0 | Q61: 0 | R61: 0 | S61: 0 | T61: 0 | U61: 0 | V61: 0 | W61: 0 | X61: 0 | Y61: 0 | Z61: 0 | AB61: Cyanide compounds | AD61: 0 | AE61: 0 | AF61: 0 | AG61: 0 | AH61: 0 | AI61: 0 | AJ61: 0 | AK61: 0 | AL61: 0 | AM61: 0 | AN61: 0
A62: Formaldehyde | C62: =IF(Engines!W21<>"",Engines!W21,LOOKUP(Calculations!C$45,Calculations!$C$9:$I$9,Calculations!$C27:$I27)) -> 0.00118 | D62: =IF(Engines!X21<>"",Engines!X21,LOOKUP(Calculations!D$45,Calculations!$C$9:$I$9,Calculations!$C27:$I27)) -> 0.00118 | E62: =IF(Engines!Y21<>"",Engines!Y21,LOOKUP(Calculations!E$45,Calculations!$C$9:$I$9,Calculations!$C27:$I27)) -> 0.00118 | F62: =IF(Engines!Z21<>"",Engines!Z21,LOOKUP(Calculations!F$45,Calculations!$C$9:$I$9,Calculations!$C27:$I27)) -> 0.00118 | G62: =IF(Engines!AA21<>"",Engines!AA21,LOOKUP(Calculations!G$45,Calculations!$C$9:$I$9,Calculations!$C27:$I27)) -> 0.00118 | H62: =IF(Engines!AB21<>"",Engines!AB21,LOOKUP(Calculations!H$45,Calculations!$C$9:$I$9,Calculations!$C27:$I27)) -> 0.00118 | I62: =IF(Engines!AC21<>"",Engines!AC21,LOOKUP(Calculations!I$45,Calculations!$C$9:$I$9,Calculations!$C27:$I27)) -> 0.00118 | J62: =IF(Engines!AD21<>"",Engines!AD21,LOOKUP(Calculations!J$45,Calculations!$C$9:$I$9,Calculations!$C27:$I27)) -> 0.00118 | K62: =IF(Engines!AE21<>"",Engines!AE21,LOOKUP(Calculations!K$45,Calculations!$C$9:$I$9,Calculations!$C27:$I27)) -> 0.00118 | L62: =IF(Engines!AF21<>"",Engines!AF21,LOOKUP(Calculations!L$45,Calculations!$C$9:$I$9,Calculations!$C27:$I27)) -> 0.00118 | N62: Formaldehyde | P62: 0 | Q62: 0 | R62: 0 | S62: 0 | T62: 0 | U62: 0 | V62: 0 | W62: 0 | X62: 0 | Y62: 0 | Z62: 0 | AB62: Formaldehyde | AD62: 0 | AE62: 0 | AF62: 0 | AG62: 0 | AH62: 0 | AI62: 0 | AJ62: 0 | AK62: 0 | AL62: 0 | AM62: 0 | AN62: 0
A63: n-Hexane | C63: =IF(Engines!W22<>"",Engines!W22,LOOKUP(Calculations!C$45,Calculations!$C$9:$I$9,Calculations!$C28:$I28)) -> 0 | D63: =IF(Engines!X22<>"",Engines!X22,LOOKUP(Calculations!D$45,Calculations!$C$9:$I$9,Calculations!$C28:$I28)) -> 0 | E63: =IF(Engines!Y22<>"",Engines!Y22,LOOKUP(Calculations!E$45,Calculations!$C$9:$I$9,Calculations!$C28:$I28)) -> 0 | F63: =IF(Engines!Z22<>"",Engines!Z22,LOOKUP(Calculations!F$45,Calculations!$C$9:$I$9,Calculations!$C28:$I28)) -> 0 | G63: =IF(Engines!AA22<>"",Engines!AA22,LOOKUP(Calculations!G$45,Calculations!$C$9:$I$9,Calculations!$C28:$I28)) -> 0 | H63: =IF(Engines!AB22<>"",Engines!AB22,LOOKUP(Calculations!H$45,Calculations!$C$9:$I$9,Calculations!$C28:$I28)) -> 0 | I63: =IF(Engines!AC22<>"",Engines!AC22,LOOKUP(Calculations!I$45,Calculations!$C$9:$I$9,Calculations!$C28:$I28)) -> 0 | J63: =IF(Engines!AD22<>"",Engines!AD22,LOOKUP(Calculations!J$45,Calculations!$C$9:$I$9,Calculations!$C28:$I28)) -> 0 | K63: =IF(Engines!AE22<>"",Engines!AE22,LOOKUP(Calculations!K$45,Calculations!$C$9:$I$9,Calculations!$C28:$I28)) -> 0 | L63: =IF(Engines!AF22<>"",Engines!AF22,LOOKUP(Calculations!L$45,Calculations!$C$9:$I$9,Calculations!$C28:$I28)) -> 0 | N63: n-Hexane | P63: 0 | Q63: 0 | R63: 0 | S63: 0 | T63: 0 | U63: 0 | V63: 0 | W63: 0 | X63: 0 | Y63: 0 | Z63: 0 | AB63: n-Hexane | AD63: 0 | AE63: 0 | AF63: 0 | AG63: 0 | AH63: 0 | AI63: 0 | AJ63: 0 | AK63: 0 | AL63: 0 | AM63: 0 | AN63: 0
A64: Hydrochloric acid | C64: =IF(Engines!W23<>"",Engines!W23,LOOKUP(Calculations!C$45,Calculations!$C$9:$I$9,Calculations!$C29:$I29)) -> 0 | D64: =IF(Engines!X23<>"",Engines!X23,LOOKUP(Calculations!D$45,Calculations!$C$9:$I$9,Calculations!$C29:$I29)) -> 0 | E64: =IF(Engines!Y23<>"",Engines!Y23,LOOKUP(Calculations!E$45,Calculations!$C$9:$I$9,Calculations!$C29:$I29)) -> 0 | F64: =IF(Engines!Z23<>"",Engines!Z23,LOOKUP(Calculations!F$45,Calculations!$C$9:$I$9,Calculations!$C29:$I29)) -> 0 | G64: =IF(Engines!AA23<>"",Engines!AA23,LOOKUP(Calculations!G$45,Calculations!$C$9:$I$9,Calculations!$C29:$I29)) -> 0 | H64: =IF(Engines!AB23<>"",Engines!AB23,LOOKUP(Calculations!H$45,Calculations!$C$9:$I$9,Calculations!$C29:$I29)) -> 0 | I64: =IF(Engines!AC23<>"",Engines!AC23,LOOKUP(Calculations!I$45,Calculations!$C$9:$I$9,Calculations!$C29:$I29)) -> 0 | J64: =IF(Engines!AD23<>"",Engines!AD23,LOOKUP(Calculations!J$45,Calculations!$C$9:$I$9,Calculations!$C29:$I29)) -> 0 | K64: =IF(Engines!AE23<>"",Engines!AE23,LOOKUP(Calculations!K$45,Calculations!$C$9:$I$9,Calculations!$C29:$I29)) -> 0 | L64: =IF(Engines!AF23<>"",Engines!AF23,LOOKUP(Calculations!L$45,Calculations!$C$9:$I$9,Calculations!$C29:$I29)) -> 0 | N64: Hydrochloric acid | P64: 0 | Q64: 0 | R64: 0 | S64: 0 | T64: 0 | U64: 0 | V64: 0 | W64: 0 | X64: 0 | Y64: 0 | Z64: 0 | AB64: Hydrochloric acid | AD64: 0 | AE64: 0 | AF64: 0 | AG64: 0 | AH64: 0 | AI64: 0 | AJ64: 0 | AK64: 0 | AL64: 0 | AM64: 0 | AN64: 0
A65: Lead Compounds | C65: =IF(Engines!W24<>"",Engines!W24,LOOKUP(Calculations!C$45,Calculations!$C$9:$I$9,Calculations!$C30:$I30)) -> 0 | D65: =IF(Engines!X24<>"",Engines!X24,LOOKUP(Calculations!D$45,Calculations!$C$9:$I$9,Calculations!$C30:$I30)) -> 0 | E65: =IF(Engines!Y24<>"",Engines!Y24,LOOKUP(Calculations!E$45,Calculations!$C$9:$I$9,Calculations!$C30:$I30)) -> 0 | F65: =IF(Engines!Z24<>"",Engines!Z24,LOOKUP(Calculations!F$45,Calculations!$C$9:$I$9,Calculations!$C30:$I30)) -> 0 | G65: =IF(Engines!AA24<>"",Engines!AA24,LOOKUP(Calculations!G$45,Calculations!$C$9:$I$9,Calculations!$C30:$I30)) -> 0 | H65: =IF(Engines!AB24<>"",Engines!AB24,LOOKUP(Calculations!H$45,Calculations!$C$9:$I$9,Calculations!$C30:$I30)) -> 0 | I65: =IF(Engines!AC24<>"",Engines!AC24,LOOKUP(Calculations!I$45,Calculations!$C$9:$I$9,Calculations!$C30:$I30)) -> 0 | J65: =IF(Engines!AD24<>"",Engines!AD24,LOOKUP(Calculations!J$45,Calculations!$C$9:$I$9,Calculations!$C30:$I30)) -> 0 | K65: =IF(Engines!AE24<>"",Engines!AE24,LOOKUP(Calculations!K$45,Calculations!$C$9:$I$9,Calculations!$C30:$I30)) -> 0 | L65: =IF(Engines!AF24<>"",Engines!AF24,LOOKUP(Calculations!L$45,Calculations!$C$9:$I$9,Calculations!$C30:$I30)) -> 0 | N65: Lead Compounds | P65: 0 | Q65: 0 | R65: 0 | S65: 0 | T65: 0 | U65: 0 | V65: 0 | W65: 0 | X65: 0 | Y65: 0 | Z65: 0 | AB65: Lead Compounds | AD65: 0 | AE65: 0 | AF65: 0 | AG65: 0 | AH65: 0 | AI65: 0 | AJ65: 0 | AK65: 0 | AL65: 0 | AM65: 0 | AN65: 0
A66: Mercury compounds | C66: =IF(Engines!W25<>"",Engines!W25,LOOKUP(Calculations!C$45,Calculations!$C$9:$I$9,Calculations!$C31:$I31)) -> 0 | D66: =IF(Engines!X25<>"",Engines!X25,LOOKUP(Calculations!D$45,Calculations!$C$9:$I$9,Calculations!$C31:$I31)) -> 0 | E66: =IF(Engines!Y25<>"",Engines!Y25,LOOKUP(Calculations!E$45,Calculations!$C$9:$I$9,Calculations!$C31:$I31)) -> 0 | F66: =IF(Engines!Z25<>"",Engines!Z25,LOOKUP(Calculations!F$45,Calculations!$C$9:$I$9,Calculations!$C31:$I31)) -> 0 | G66: =IF(Engines!AA25<>"",Engines!AA25,LOOKUP(Calculations!G$45,Calculations!$C$9:$I$9,Calculations!$C31:$I31)) -> 0 | H66: =IF(Engines!AB25<>"",Engines!AB25,LOOKUP(Calculations!H$45,Calculations!$C$9:$I$9,Calculations!$C31:$I31)) -> 0 | I66: =IF(Engines!AC25<>"",Engines!AC25,LOOKUP(Calculations!I$45,Calculations!$C$9:$I$9,Calculations!$C31:$I31)) -> 0 | J66: =IF(Engines!AD25<>"",Engines!AD25,LOOKUP(Calculations!J$45,Calculations!$C$9:$I$9,Calculations!$C31:$I31)) -> 0 | K66: =IF(Engines!AE25<>"",Engines!AE25,LOOKUP(Calculations!K$45,Calculations!$C$9:$I$9,Calculations!$C31:$I31)) -> 0 | L66: =IF(Engines!AF25<>"",Engines!AF25,LOOKUP(Calculations!L$45,Calculations!$C$9:$I$9,Calculations!$C31:$I31)) -> 0 | N66: Mercury compounds | P66: 0 | Q66: 0 | R66: 0 | S66: 0 | T66: 0 | U66: 0 | V66: 0 | W66: 0 | X66: 0 | Y66: 0 | Z66: 0 | AB66: Mercury compounds | AD66: 0 | AE66: 0 | AF66: 0 | AG66: 0 | AH66: 0 | AI66: 0 | AJ66: 0 | AK66: 0 | AL66: 0 | AM66: 0 | AN66: 0
A67: Methanol | C67: =IF(Engines!W26<>"",Engines!W26,LOOKUP(Calculations!C$45,Calculations!$C$9:$I$9,Calculations!$C32:$I32)) -> 0 | D67: =IF(Engines!X26<>"",Engines!X26,LOOKUP(Calculations!D$45,Calculations!$C$9:$I$9,Calculations!$C32:$I32)) -> 0 | E67: =IF(Engines!Y26<>"",Engines!Y26,LOOKUP(Calculations!E$45,Calculations!$C$9:$I$9,Calculations!$C32:$I32)) -> 0 | F67: =IF(Engines!Z26<>"",Engines!Z26,LOOKUP(Calculations!F$45,Calculations!$C$9:$I$9,Calculations!$C32:$I32)) -> 0 | G67: =IF(Engines!AA26<>"",Engines!AA26,LOOKUP(Calculations!G$45,Calculations!$C$9:$I$9,Calculations!$C32:$I32)) -> 0 | H67: =IF(Engines!AB26<>"",Engines!AB26,LOOKUP(Calculations!H$45,Calculations!$C$9:$I$9,Calculations!$C32:$I32)) -> 0 | I67: =IF(Engines!AC26<>"",Engines!AC26,LOOKUP(Calculations!I$45,Calculations!$C$9:$I$9,Calculations!$C32:$I32)) -> 0 | J67: =IF(Engines!AD26<>"",Engines!AD26,LOOKUP(Calculations!J$45,Calculations!$C$9:$I$9,Calculations!$C32:$I32)) -> 0 | K67: =IF(Engines!AE26<>"",Engines!AE26,LOOKUP(Calculations!K$45,Calculations!$C$9:$I$9,Calculations!$C32:$I32)) -> 0 | L67: =IF(Engines!AF26<>"",Engines!AF26,LOOKUP(Calculations!L$45,Calculations!$C$9:$I$9,Calculations!$C32:$I32)) -> 0 | N67: Methanol | P67: 0 | Q67: 0 | R67: 0 | S67: 0 | T67: 0 | U67: 0 | V67: 0 | W67: 0 | X67: 0 | Y67: 0 | Z67: 0 | AB67: Methanol | AD67: 0 | AE67: 0 | AF67: 0 | AG67: 0 | AH67: 0 | AI67: 0 | AJ67: 0 | AK67: 0 | AL67: 0 | AM67: 0 | AN67: 0
A68: Methyl hydrazine | C68: =IF(Engines!W27<>"",Engines!W27,LOOKUP(Calculations!C$45,Calculations!$C$9:$I$9,Calculations!$C33:$I33)) -> 0 | D68: =IF(Engines!X27<>"",Engines!X27,LOOKUP(Calculations!D$45,Calculations!$C$9:$I$9,Calculations!$C33:$I33)) -> 0 | E68: =IF(Engines!Y27<>"",Engines!Y27,LOOKUP(Calculations!E$45,Calculations!$C$9:$I$9,Calculations!$C33:$I33)) -> 0 | F68: =IF(Engines!Z27<>"",Engines!Z27,LOOKUP(Calculations!F$45,Calculations!$C$9:$I$9,Calculations!$C33:$I33)) -> 0 | G68: =IF(Engines!AA27<>"",Engines!AA27,LOOKUP(Calculations!G$45,Calculations!$C$9:$I$9,Calculations!$C33:$I33)) -> 0 | H68: =IF(Engines!AB27<>"",Engines!AB27,LOOKUP(Calculations!H$45,Calculations!$C$9:$I$9,Calculations!$C33:$I33)) -> 0 | I68: =IF(Engines!AC27<>"",Engines!AC27,LOOKUP(Calculations!I$45,Calculations!$C$9:$I$9,Calculations!$C33:$I33)) -> 0 | J68: =IF(Engines!AD27<>"",Engines!AD27,LOOKUP(Calculations!J$45,Calculations!$C$9:$I$9,Calculations!$C33:$I33)) -> 0 | K68: =IF(Engines!AE27<>"",Engines!AE27,LOOKUP(Calculations!K$45,Calculations!$C$9:$I$9,Calculations!$C33:$I33)) -> 0 | L68: =IF(Engines!AF27<>"",Engines!AF27,LOOKUP(Calculations!L$45,Calculations!$C$9:$I$9,Calculations!$C33:$I33)) -> 0 | N68: Methyl hydrazine | P68: 0 | Q68: 0 | R68: 0 | S68: 0 | T68: 0 | U68: 0 | V68: 0 | W68: 0 | X68: 0 | Y68: 0 | Z68: 0 | AB68: Methyl hydrazine | AD68: 0 | AE68: 0 | AF68: 0 | AG68: 0 | AH68: 0 | AI68: 0 | AJ68: 0 | AK68: 0 | AL68: 0 | AM68: 0 | AN68: 0
A69: Selenium compounds | C69: =IF(Engines!W28<>"",Engines!W28,LOOKUP(Calculations!C$45,Calculations!$C$9:$I$9,Calculations!$C34:$I34)) -> 0 | D69: =IF(Engines!X28<>"",Engines!X28,LOOKUP(Calculations!D$45,Calculations!$C$9:$I$9,Calculations!$C34:$I34)) -> 0 | E69: =IF(Engines!Y28<>"",Engines!Y28,LOOKUP(Calculations!E$45,Calculations!$C$9:$I$9,Calculations!$C34:$I34)) -> 0 | F69: =IF(Engines!Z28<>"",Engines!Z28,LOOKUP(Calculations!F$45,Calculations!$C$9:$I$9,Calculations!$C34:$I34)) -> 0 | G69: =IF(Engines!AA28<>"",Engines!AA28,LOOKUP(Calculations!G$45,Calculations!$C$9:$I$9,Calculations!$C34:$I34)) -> 0 | H69: =IF(Engines!AB28<>"",Engines!AB28,LOOKUP(Calculations!H$45,Calculations!$C$9:$I$9,Calculations!$C34:$I34)) -> 0 | I69: =IF(Engines!AC28<>"",Engines!AC28,LOOKUP(Calculations!I$45,Calculations!$C$9:$I$9,Calculations!$C34:$I34)) -> 0 | J69: =IF(Engines!AD28<>"",Engines!AD28,LOOKUP(Calculations!J$45,Calculations!$C$9:$I$9,Calculations!$C34:$I34)) -> 0 | K69: =IF(Engines!AE28<>"",Engines!AE28,LOOKUP(Calculations!K$45,Calculations!$C$9:$I$9,Calculations!$C34:$I34)) -> 0 | L69: =IF(Engines!AF28<>"",Engines!AF28,LOOKUP(Calculations!L$45,Calculations!$C$9:$I$9,Calculations!$C34:$I34)) -> 0 | N69: Selenium compounds | P69: 0 | Q69: 0 | R69: 0 | S69: 0 | T69: 0 | U69: 0 | V69: 0 | W69: 0 | X69: 0 | Y69: 0 | Z69: 0 | AB69: Selenium compounds | AD69: 0 | AE69: 0 | AF69: 0 | AG69: 0 | AH69: 0 | AI69: 0 | AJ69: 0 | AK69: 0 | AL69: 0 | AM69: 0 | AN69: 0
A70: Other HAPs | C70: =IF(Engines!W29<>"",Engines!W29,LOOKUP(Calculations!C$45,Calculations!$C$9:$I$9,Calculations!$C35:$I35)) -> 0.0009011 | D70: =IF(Engines!X29<>"",Engines!X29,LOOKUP(Calculations!D$45,Calculations!$C$9:$I$9,Calculations!$C35:$I35)) -> 0.0009011 | E70: =IF(Engines!Y29<>"",Engines!Y29,LOOKUP(Calculations!E$45,Calculations!$C$9:$I$9,Calculations!$C35:$I35)) -> 0.0009011 | F70: =IF(Engines!Z29<>"",Engines!Z29,LOOKUP(Calculations!F$45,Calculations!$C$9:$I$9,Calculations!$C35:$I35)) -> 0.0009011 | G70: =IF(Engines!AA29<>"",Engines!AA29,LOOKUP(Calculations!G$45,Calculations!$C$9:$I$9,Calculations!$C35:$I35)) -> 0.0009011 | H70: =IF(Engines!AB29<>"",Engines!AB29,LOOKUP(Calculations!H$45,Calculations!$C$9:$I$9,Calculations!$C35:$I35)) -> 0.0009011 | I70: =IF(Engines!AC29<>"",Engines!AC29,LOOKUP(Calculations!I$45,Calculations!$C$9:$I$9,Calculations!$C35:$I35)) -> 0.0009011 | J70: =IF(Engines!AD29<>"",Engines!AD29,LOOKUP(Calculations!J$45,Calculations!$C$9:$I$9,Calculations!$C35:$I35)) -> 0.0009011 | K70: =IF(Engines!AE29<>"",Engines!AE29,LOOKUP(Calculations!K$45,Calculations!$C$9:$I$9,Calculations!$C35:$I35)) -> 0.0009011 | L70: =IF(Engines!AF29<>"",Engines!AF29,LOOKUP(Calculations!L$45,Calculations!$C$9:$I$9,Calculations!$C35:$I35)) -> 0.0009011 | N70: Other HAPs | P70: 0 | Q70: 0 | R70: 0 | S70: 0 | T70: 0 | U70: 0 | V70: 0 | W70: 0 | X70: 0 | Y70: 0 | Z70: 0 | AB70: Other HAPs | AD70: 0 | AE70: 0 | AF70: 0 | AG70: 0 | AH70: 0 | AI70: 0 | AJ70: 0 | AK70: 0 | AL70: 0 | AM70: 0 | AN70: 0
A71: Total HAPs | C71: =IF(Engines!W30<>"",Engines!W30,LOOKUP(Calculations!C$45,Calculations!$C$9:$I$9,Calculations!$C36:$I36)) -> 0.0038736 | D71: =IF(Engines!X30<>"",Engines!X30,LOOKUP(Calculations!D$45,Calculations!$C$9:$I$9,Calculations!$C36:$I36)) -> 0.0038736 | E71: =IF(Engines!Y30<>"",Engines!Y30,LOOKUP(Calculations!E$45,Calculations!$C$9:$I$9,Calculations!$C36:$I36)) -> 0.0038736 | F71: =IF(Engines!Z30<>"",Engines!Z30,LOOKUP(Calculations!F$45,Calculations!$C$9:$I$9,Calculations!$C36:$I36)) -> 0.0038736 | G71: =IF(Engines!AA30<>"",Engines!AA30,LOOKUP(Calculations!G$45,Calculations!$C$9:$I$9,Calculations!$C36:$I36)) -> 0.0038736 | H71: =IF(Engines!AB30<>"",Engines!AB30,LOOKUP(Calculations!H$45,Calculations!$C$9:$I$9,Calculations!$C36:$I36)) -> 0.0038736 | I71: =IF(Engines!AC30<>"",Engines!AC30,LOOKUP(Calculations!I$45,Calculations!$C$9:$I$9,Calculations!$C36:$I36)) -> 0.0038736 | J71: =IF(Engines!AD30<>"",Engines!AD30,LOOKUP(Calculations!J$45,Calculations!$C$9:$I$9,Calculations!$C36:$I36)) -> 0.0038736 | K71: =IF(Engines!AE30<>"",Engines!AE30,LOOKUP(Calculations!K$45,Calculations!$C$9:$I$9,Calculations!$C36:$I36)) -> 0.0038736 | L71: =IF(Engines!AF30<>"",Engines!AF30,LOOKUP(Calculations!L$45,Calculations!$C$9:$I$9,Calculations!$C36:$I36)) -> 0.0038736 | N71: Total HAPs | P71: 0 | Q71: 0 | R71: 0 | S71: 0 | T71: 0 | U71: 0 | V71: 0 | W71: 0 | X71: 0 | Y71: 0 | Z71: 0 | AB71: Total HAPs | AD71: 0 | AE71: 0 | AF71: 0 | AG71: 0 | AH71: 0 | AI71: 0 | AJ71: 0 | AK71: 0 | AL71: 0 | AM71: 0 | AN71: 0
A72: Green House Gasses | N72: Green House Gasses | AB72: Green House Gasses
A73: Carbon Dioxide (CO2) | C73: =IF(Engines!W32<>"",Engines!W32,LOOKUP(Calculations!C$45,Calculations!$C$9:$I$9,Calculations!$C38:$I38)) -> 73.96 | D73: =IF(Engines!X32<>"",Engines!X32,LOOKUP(Calculations!D$45,Calculations!$C$9:$I$9,Calculations!$C38:$I38)) -> 73.96 | E73: =IF(Engines!Y32<>"",Engines!Y32,LOOKUP(Calculations!E$45,Calculations!$C$9:$I$9,Calculations!$C38:$I38)) -> 73.96 | F73: =IF(Engines!Z32<>"",Engines!Z32,LOOKUP(Calculations!F$45,Calculations!$C$9:$I$9,Calculations!$C38:$I38)) -> 73.96 | G73: =IF(Engines!AA32<>"",Engines!AA32,LOOKUP(Calculations!G$45,Calculations!$C$9:$I$9,Calculations!$C38:$I38)) -> 73.96 | H73: =IF(Engines!AB32<>"",Engines!AB32,LOOKUP(Calculations!H$45,Calculations!$C$9:$I$9,Calculations!$C38:$I38)) -> 73.96 | I73: =IF(Engines!AC32<>"",Engines!AC32,LOOKUP(Calculations!I$45,Calculations!$C$9:$I$9,Calculations!$C38:$I38)) -> 73.96 | J73: =IF(Engines!AD32<>"",Engines!AD32,LOOKUP(Calculations!J$45,Calculations!$C$9:$I$9,Calculations!$C38:$I38)) -> 73.96 | K73: =IF(Engines!AE32<>"",Engines!AE32,LOOKUP(Calculations!K$45,Calculations!$C$9:$I$9,Calculations!$C38:$I38)) -> 73.96 | L73: =IF(Engines!AF32<>"",Engines!AF32,LOOKUP(Calculations!L$45,Calculations!$C$9:$I$9,Calculations!$C38:$I38)) -> 73.96 | N73: Carbon Dioxide (CO2) | P73: =C73*$D$6*C$78*2.20462 -> 0 | Q73: 0 | R73: 0 | S73: 0 | T73: 0 | U73: 0 | V73: 0 | W73: 0 | X73: 0 | Y73: 0 | Z73: 0 | AB73: Carbon Dioxide (CO2) | AD73: =P73*C$79/2000 -> 0 | AE73: =Q73*D$79/2000 -> 0 | AF73: =R73*E$79/2000 -> 0 | AG73: =S73*F$79/2000 -> 0 | AH73: =T73*G$79/2000 -> 0 | AI73: =U73*H$79/2000 -> 0 | AJ73: =V73*I$79/2000 -> 0 | AK73: =W73*J$79/2000 -> 0 | AL73: =X73*K$79/2000 -> 0 | AM73: =Y73*L$79/2000 -> 0 | AN73: =SUM(AD73:AM73) -> 0
A74: Methane (CH4) | C74: =IF(Engines!W33<>"",Engines!W33,LOOKUP(Calculations!C$45,Calculations!$C$9:$I$9,Calculations!$C39:$I39)) -> 0.003 | D74: =IF(Engines!X33<>"",Engines!X33,LOOKUP(Calculations!D$45,Calculations!$C$9:$I$9,Calculations!$C39:$I39)) -> 0.003 | E74: =IF(Engines!Y33<>"",Engines!Y33,LOOKUP(Calculations!E$45,Calculations!$C$9:$I$9,Calculations!$C39:$I39)) -> 0.003 | F74: =IF(Engines!Z33<>"",Engines!Z33,LOOKUP(Calculations!F$45,Calculations!$C$9:$I$9,Calculations!$C39:$I39)) -> 0.003 | G74: =IF(Engines!AA33<>"",Engines!AA33,LOOKUP(Calculations!G$45,Calculations!$C$9:$I$9,Calculations!$C39:$I39)) -> 0.003 | H74: =IF(Engines!AB33<>"",Engines!AB33,LOOKUP(Calculations!H$45,Calculations!$C$9:$I$9,Calculations!$C39:$I39)) -> 0.003 | I74: =IF(Engines!AC33<>"",Engines!AC33,LOOKUP(Calculations!I$45,Calculations!$C$9:$I$9,Calculations!$C39:$I39)) -> 0.003 | J74: =IF(Engines!AD33<>"",Engines!AD33,LOOKUP(Calculations!J$45,Calculations!$C$9:$I$9,Calculations!$C39:$I39)) -> 0.003 | K74: =IF(Engines!AE33<>"",Engines!AE33,LOOKUP(Calculations!K$45,Calculations!$C$9:$I$9,Calculations!$C39:$I39)) -> 0.003 | L74: =IF(Engines!AF33<>"",Engines!AF33,LOOKUP(Calculations!L$45,Calculations!$C$9:$I$9,Calculations!$C39:$I39)) -> 0.003 | N74: Methane (CH4) | P74: 0 | Q74: 0 | R74: 0 | S74: 0 | T74: 0 | U74: 0 | V74: 0 | W74: 0 | X74: 0 | Y74: 0 | Z74: 0 | AB74: Methane (CH4) | AD74: 0 | AE74: 0 | AF74: 0 | AG74: 0 | AH74: 0 | AI74: 0 | AJ74: 0 | AK74: 0 | AL74: 0 | AM74: 0 | AN74: 0
A75: Nitrous Oxide (N2O) | C75: =IF(Engines!W34<>"",Engines!W34,LOOKUP(Calculations!C$45,Calculations!$C$9:$I$9,Calculations!$C40:$I40)) -> 0.0006 | D75: =IF(Engines!X34<>"",Engines!X34,LOOKUP(Calculations!D$45,Calculations!$C$9:$I$9,Calculations!$C40:$I40)) -> 0.0006 | E75: =IF(Engines!Y34<>"",Engines!Y34,LOOKUP(Calculations!E$45,Calculations!$C$9:$I$9,Calculations!$C40:$I40)) -> 0.0006 | F75: =IF(Engines!Z34<>"",Engines!Z34,LOOKUP(Calculations!F$45,Calculations!$C$9:$I$9,Calculations!$C40:$I40)) -> 0.0006 | G75: =IF(Engines!AA34<>"",Engines!AA34,LOOKUP(Calculations!G$45,Calculations!$C$9:$I$9,Calculations!$C40:$I40)) -> 0.0006 | H75: =IF(Engines!AB34<>"",Engines!AB34,LOOKUP(Calculations!H$45,Calculations!$C$9:$I$9,Calculations!$C40:$I40)) -> 0.0006 | I75: =IF(Engines!AC34<>"",Engines!AC34,LOOKUP(Calculations!I$45,Calculations!$C$9:$I$9,Calculations!$C40:$I40)) -> 0.0006 | J75: =IF(Engines!AD34<>"",Engines!AD34,LOOKUP(Calculations!J$45,Calculations!$C$9:$I$9,Calculations!$C40:$I40)) -> 0.0006 | K75: =IF(Engines!AE34<>"",Engines!AE34,LOOKUP(Calculations!K$45,Calculations!$C$9:$I$9,Calculations!$C40:$I40)) -> 0.0006 | L75: =IF(Engines!AF34<>"",Engines!AF34,LOOKUP(Calculations!L$45,Calculations!$C$9:$I$9,Calculations!$C40:$I40)) -> 0.0006 | N75: Nitrous Oxide (N2O) | P75: 0 | Q75: 0 | R75: 0 | S75: 0 | T75: 0 | U75: 0 | V75: 0 | W75: 0 | X75: 0 | Y75: 0 | Z75: 0 | AB75: Nitrous Oxide (N2O) | AD75: 0 | AE75: 0 | AF75: 0 | AG75: 0 | AH75: 0 | AI75: 0 | AJ75: 0 | AK75: 0 | AL75: 0 | AM75: 0 | AN75: 0
A77: Engine Rating (hp) | C77: =Engines!D16 -> 0 | D77: =Engines!D17 -> 0 | E77: =Engines!D18 -> 0 | F77: =Engines!D19 -> 0 | G77: =Engines!D20 -> 0 | H77: =Engines!D21 -> 0 | I77: =Engines!D22 -> 0 | J77: =Engines!D23 -> 0 | K77: =Engines!D24 -> 0 | L77: =Engines!D25 -> 0
A78: =Engines!E15 -> Maximum Fuel Capacity (gal/hr) | C78: =Engines!E16 -> 0 | D78: =Engines!E17 -> 0 | E78: =Engines!E18 -> 0 | F78: =Engines!E19 -> 0 | G78: =Engines!E20 -> 0 | H78: =Engines!E21 -> 0 | I78: =Engines!E22 -> 0 | J78: =Engines!E23 -> 0 | K78: =Engines!E24 -> 0 | L78: =Engines!E25 -> 0
A79: Operating Hours | C79: =Engines!G16 -> 8760 | D79: =Engines!G17 -> 8760 | E79: =Engines!G18 -> 8760 | F79: =Engines!G19 -> 8760 | G79: =Engines!G20 -> 8760 | H79: =Engines!G21 -> 8760 | I79: =Engines!G22 -> 8760 | J79: =Engines!G23 -> 8760 | K79: =Engines!G24 -> 8760 | L79: =Engines!G25 -> 8760
C83: 1st Spark Ignition Engine | D83: 2nd Spark Ignition Engine | E83: 3rd Spark Ignition Engine | F83: 4th Spark Ignition Engine | G83: 5th Spark Ignition Engine | H83: 6th Spark Ignition Engine | I83: 7th Spark Ignition Engine | J83: 8th Spark Ignition Engine | K83: 9th Spark Ignition Engine | L83: 10th Spark Ignition Engine | P83: 1st Spark Ignition Engine | Q83: 2nd Spark Ignition Engine | R83: 3rd Spark Ignition Engine | S83: 4th Spark Ignition Engine | T83: 5th Spark Ignition Engine | U83: 6th Spark Ignition Engine | V83: 7th Spark Ignition Engine | W83: 8th Spark Ignition Engine | X83: 9th Spark Ignition Engine | Y83: 10th Spark Ignition Engine | Z83: Total | AD83: 1st Spark Ignition Engine | AE83: 2nd Spark Ignition Engine | AF83: 3rd Spark Ignition Engine | AG83: 4th Spark Ignition Engine | AH83: 5th Spark Ignition Engine | AI83: 6th Spark Ignition Engine | AJ83: 7th Spark Ignition Engine | AK83: 8th Spark Ignition Engine | AL83: 9th Spark Ignition Engine | AM83: 10th Spark Ignition Engine | AN83: Total
C84: =IF(Engines!G29=Datasets!$AJ$3,4,IF(Engines!G29=Datasets!$AJ$4,7,IF(Engines!H29=Datasets!$AK$2,3,IF(Engines!H29=Datasets!$AK$4,2,1)))) -> 1 | D84: =IF(Engines!G30=Datasets!$AJ$3,4,IF(Engines!G30=Datasets!$AJ$4,7,IF(Engines!H30=Datasets!$AK$2,3,IF(Engines!H30=Datasets!$AK$4,2,1)))) -> 1 | E84: =IF(Engines!G31=Datasets!$AJ$3,4,IF(Engines!G31=Datasets!$AJ$4,7,IF(Engines!H31=Datasets!$AK$2,3,IF(Engines!H31=Datasets!$AK$4,2,1)))) -> 1 | F84: =IF(Engines!G32=Datasets!$AJ$3,4,IF(Engines!G32=Datasets!$AJ$4,7,IF(Engines!H32=Datasets!$AK$2,3,IF(Engines!H32=Datasets!$AK$4,2,1)))) -> 1 | G84: =IF(Engines!G33=Datasets!$AJ$3,4,IF(Engines!G33=Datasets!$AJ$4,7,IF(Engines!H33=Datasets!$AK$2,3,IF(Engines!H33=Datasets!$AK$4,2,1)))) -> 1 | H84: =IF(Engines!LG34=Datasets!$AJ$3,4,IF(Engines!G34=Datasets!$AJ$4,7,IF(Engines!H34=Datasets!$AK$2,3,IF(Engines!H34=Datasets!$AK$4,2,1)))) -> 1 | I84: =IF(Engines!G35=Datasets!$AJ$3,4,IF(Engines!G35=Datasets!$AJ$4,7,IF(Engines!H35=Datasets!$AK$2,3,IF(Engines!H35=Datasets!$AK$4,2,1)))) -> 1 | J84: =IF(Engines!G36=Datasets!$AJ$3,4,IF(Engines!G36=Datasets!$AJ$4,7,IF(Engines!H36=Datasets!$AK$2,3,IF(Engines!H36=Datasets!$AK$4,2,1)))) -> 1 | K84: =IF(Engines!G37=Datasets!$AJ$3,4,IF(Engines!G37=Datasets!$AJ$4,7,IF(Engines!H37=Datasets!$AK$2,3,IF(Engines!H37=Datasets!$AK$4,2,1)))) -> 1 | L84: =IF(Engines!G38=Datasets!$AJ$3,4,IF(Engines!G38=Datasets!$AJ$4,7,IF(Engines!H38=Datasets!$AK$2,3,IF(Engines!H38=Datasets!$AK$4,2,1)))) -> 1 | P84: (lb/hr) | AD84: (ton/yr)
A85: PMfilterable | C85: =IF(Engines!AI5<>"",Engines!AI5,LOOKUP(Calculations!C$84,Calculations!$C$9:$I$9,Calculations!$C11:$I11)) -> 0.0099871 | D85: =IF(Engines!AJ5<>"",Engines!AJ5,LOOKUP(Calculations!D$84,Calculations!$C$9:$I$9,Calculations!$C11:$I11)) -> 0.0099871 | E85: =IF(Engines!AK5<>"",Engines!AK5,LOOKUP(Calculations!E$84,Calculations!$C$9:$I$9,Calculations!$C11:$I11)) -> 0.0099871 | F85: =IF(Engines!AL5<>"",Engines!AL5,LOOKUP(Calculations!F$84,Calculations!$C$9:$I$9,Calculations!$C11:$I11)) -> 0.0099871 | G85: =IF(Engines!AM5<>"",Engines!AM5,LOOKUP(Calculations!G$84,Calculations!$C$9:$I$9,Calculations!$C11:$I11)) -> 0.0099871 | H85: =IF(Engines!AN5<>"",Engines!AN5,LOOKUP(Calculations!H$84,Calculations!$C$9:$I$9,Calculations!$C11:$I11)) -> 0.0099871 | I85: =IF(Engines!AO5<>"",Engines!AO5,LOOKUP(Calculations!I$84,Calculations!$C$9:$I$9,Calculations!$C11:$I11)) -> 0.0099871 | J85: =IF(Engines!AP5<>"",Engines!AP5,LOOKUP(Calculations!J$84,Calculations!$C$9:$I$9,Calculations!$C11:$I11)) -> 0.0099871 | K85: =IF(Engines!AQ5<>"",Engines!AQ5,LOOKUP(Calculations!K$84,Calculations!$C$9:$I$9,Calculations!$C11:$I11)) -> 0.0099871 | L85: =IF(Engines!AR5<>"",Engines!AR5,LOOKUP(Calculations!L$84,Calculations!$C$9:$I$9,Calculations!$C11:$I11)) -> 0.0099871 | N85: PMfilterable | P85: =C85*C$118 -> 0 | Q85: =D85*D$118 -> 0 | R85: 0 | S85: 0 | T85: 0 | U85: 0 | V85: 0 | W85: 0 | X85: 0 | Y85: 0 | Z85: =SUM(P85:Y85) -> 0 | AB85: PMfilterable | AD85: =P85*C$119/2000 -> 0 | AE85: =Q85*D$119/2000 -> 0 | AF85: 0 | AG85: 0 | AH85: 0 | AI85: 0 | AJ85: 0 | AK85: 0 | AL85: 0 | AM85: 0 | AN85: =SUM(AD85:AM85) -> 0
A86: PM10 | C86: =IF(Engines!AI6<>"",Engines!AI6,LOOKUP(Calculations!C$84,Calculations!$C$9:$I$9,Calculations!$C12:$I12)) -> 0.0099871 | D86: =IF(Engines!AJ6<>"",Engines!AJ6,LOOKUP(Calculations!D$84,Calculations!$C$9:$I$9,Calculations!$C12:$I12)) -> 0.0099871 | E86: =IF(Engines!AK6<>"",Engines!AK6,LOOKUP(Calculations!E$84,Calculations!$C$9:$I$9,Calculations!$C12:$I12)) -> 0.0099871 | F86: =IF(Engines!AL6<>"",Engines!AL6,LOOKUP(Calculations!F$84,Calculations!$C$9:$I$9,Calculations!$C12:$I12)) -> 0.0099871 | G86: =IF(Engines!AM6<>"",Engines!AM6,LOOKUP(Calculations!G$84,Calculations!$C$9:$I$9,Calculations!$C12:$I12)) -> 0.0099871 | H86: =IF(Engines!AN6<>"",Engines!AN6,LOOKUP(Calculations!H$84,Calculations!$C$9:$I$9,Calculations!$C12:$I12)) -> 0.0099871 | I86: =IF(Engines!AO6<>"",Engines!AO6,LOOKUP(Calculations!I$84,Calculations!$C$9:$I$9,Calculations!$C12:$I12)) -> 0.0099871 | J86: =IF(Engines!AP6<>"",Engines!AP6,LOOKUP(Calculations!J$84,Calculations!$C$9:$I$9,Calculations!$C12:$I12)) -> 0.0099871 | K86: =IF(Engines!AQ6<>"",Engines!AQ6,LOOKUP(Calculations!K$84,Calculations!$C$9:$I$9,Calculations!$C12:$I12)) -> 0.0099871 | L86: =IF(Engines!AR6<>"",Engines!AR6,LOOKUP(Calculations!L$84,Calculations!$C$9:$I$9,Calculations!$C12:$I12)) -> 0.0099871 | N86: PM10 | P86: =C86*C$118 -> 0 | Q86: =D86*D$118 -> 0 | R86: =E86*E$118 -> 0 | S86: =F86*F$118 -> 0 | T86: =G86*G$118 -> 0 | U86: =H86*H$118 -> 0 | V86: =I86*I$118 -> 0 | W86: =J86*J$118 -> 0 | X86: =K86*K$118 -> 0 | Y86: =L86*L$118 -> 0 | Z86: =SUM(P86:Y86) -> 0 | AB86: PM10 | AD86: =P86*C$119/2000 -> 0 | AE86: =Q86*D$119/2000 -> 0 | AF86: =R86*E$119/2000 -> 0 | AG86: =S86*F$119/2000 -> 0 | AH86: =T86*G$119/2000 -> 0 | AI86: =U86*H$119/2000 -> 0 | AJ86: =V86*I$119/2000 -> 0 | AK86: =W86*J$119/2000 -> 0 | AL86: =X86*K$119/2000 -> 0 | AM86: =Y86*L$119/2000 -> 0 | AN86: =SUM(AD86:AM86) -> 0
A87: PM2.5 | C87: =IF(Engines!AI7<>"",Engines!AI7,LOOKUP(Calculations!C$84,Calculations!$C$9:$I$9,Calculations!$C13:$I13)) -> 0.0099871 | D87: =IF(Engines!AJ7<>"",Engines!AJ7,LOOKUP(Calculations!D$84,Calculations!$C$9:$I$9,Calculations!$C13:$I13)) -> 0.0099871 | E87: =IF(Engines!AK7<>"",Engines!AK7,LOOKUP(Calculations!E$84,Calculations!$C$9:$I$9,Calculations!$C13:$I13)) -> 0.0099871 | F87: =IF(Engines!AL7<>"",Engines!AL7,LOOKUP(Calculations!F$84,Calculations!$C$9:$I$9,Calculations!$C13:$I13)) -> 0.0099871 | G87: =IF(Engines!AM7<>"",Engines!AM7,LOOKUP(Calculations!G$84,Calculations!$C$9:$I$9,Calculations!$C13:$I13)) -> 0.0099871 | H87: =IF(Engines!AN7<>"",Engines!AN7,LOOKUP(Calculations!H$84,Calculations!$C$9:$I$9,Calculations!$C13:$I13)) -> 0.0099871 | I87: =IF(Engines!AO7<>"",Engines!AO7,LOOKUP(Calculations!I$84,Calculations!$C$9:$I$9,Calculations!$C13:$I13)) -> 0.0099871 | J87: =IF(Engines!AP7<>"",Engines!AP7,LOOKUP(Calculations!J$84,Calculations!$C$9:$I$9,Calculations!$C13:$I13)) -> 0.0099871 | K87: =IF(Engines!AQ7<>"",Engines!AQ7,LOOKUP(Calculations!K$84,Calculations!$C$9:$I$9,Calculations!$C13:$I13)) -> 0.0099871 | L87: =IF(Engines!AR7<>"",Engines!AR7,LOOKUP(Calculations!L$84,Calculations!$C$9:$I$9,Calculations!$C13:$I13)) -> 0.0099871 | N87: PM2.5 | P87: 0 | Q87: 0 | R87: 0 | S87: 0 | T87: 0 | U87: 0 | V87: 0 | W87: 0 | X87: 0 | Y87: 0 | Z87: 0 | AB87: PM2.5 | AD87: 0 | AE87: 0 | AF87: 0 | AG87: 0 | AH87: 0 | AI87: 0 | AJ87: 0 | AK87: 0 | AL87: 0 | AM87: 0 | AN87: 0
A88: SO2 | C88: =IF(Engines!AI8<>"",Engines!AI8,LOOKUP(Calculations!C$84,Calculations!$C$9:$I$9,Calculations!$C14:$I14)) -> 0.000588 | D88: =IF(Engines!AJ8<>"",Engines!AJ8,LOOKUP(Calculations!D$84,Calculations!$C$9:$I$9,Calculations!$C14:$I14)) -> 0.000588 | E88: =IF(Engines!AK8<>"",Engines!AK8,LOOKUP(Calculations!E$84,Calculations!$C$9:$I$9,Calculations!$C14:$I14)) -> 0.000588 | F88: =IF(Engines!AL8<>"",Engines!AL8,LOOKUP(Calculations!F$84,Calculations!$C$9:$I$9,Calculations!$C14:$I14)) -> 0.000588 | G88: =IF(Engines!AM8<>"",Engines!AM8,LOOKUP(Calculations!G$84,Calculations!$C$9:$I$9,Calculations!$C14:$I14)) -> 0.000588 | H88: =IF(Engines!AN8<>"",Engines!AN8,LOOKUP(Calculations!H$84,Calculations!$C$9:$I$9,Calculations!$C14:$I14)) -> 0.000588 | I88: =IF(Engines!AO8<>"",Engines!AO8,LOOKUP(Calculations!I$84,Calculations!$C$9:$I$9,Calculations!$C14:$I14)) -> 0.000588 | J88: =IF(Engines!AP8<>"",Engines!AP8,LOOKUP(Calculations!J$84,Calculations!$C$9:$I$9,Calculations!$C14:$I14)) -> 0.000588 | K88: =IF(Engines!AQ8<>"",Engines!AQ8,LOOKUP(Calculations!K$84,Calculations!$C$9:$I$9,Calculations!$C14:$I14)) -> 0.000588 | L88: =IF(Engines!AR8<>"",Engines!AR8,LOOKUP(Calculations!L$84,Calculations!$C$9:$I$9,Calculations!$C14:$I14)) -> 0.000588 | N88: SO2 | P88: 0 | Q88: 0 | R88: 0 | S88: 0 | T88: 0 | U88: 0 | V88: 0 | W88: 0 | X88: 0 | Y88: 0 | Z88: 0 | AB88: SO2 | AD88: 0 | AE88: 0 | AF88: 0 | AG88: 0 | AH88: 0 | AI88: 0 | AJ88: 0 | AK88: 0 | AL88: 0 | AM88: 0 | AN88: 0
A89: NOx | C89: =IF(Engines!AI9<>"",Engines!AI9,LOOKUP(Calculations!C$84,Calculations!$C$9:$I$9,Calculations!$C15:$I15)) -> 4.08 | D89: =IF(Engines!AJ9<>"",Engines!AJ9,LOOKUP(Calculations!D$84,Calculations!$C$9:$I$9,Calculations!$C15:$I15)) -> 4.08 | E89: =IF(Engines!AK9<>"",Engines!AK9,LOOKUP(Calculations!E$84,Calculations!$C$9:$I$9,Calculations!$C15:$I15)) -> 4.08 | F89: =IF(Engines!AL9<>"",Engines!AL9,LOOKUP(Calculations!F$84,Calculations!$C$9:$I$9,Calculations!$C15:$I15)) -> 4.08 | G89: =IF(Engines!AM9<>"",Engines!AM9,LOOKUP(Calculations!G$84,Calculations!$C$9:$I$9,Calculations!$C15:$I15)) -> 4.08 | H89: =IF(Engines!AN9<>"",Engines!AN9,LOOKUP(Calculations!H$84,Calculations!$C$9:$I$9,Calculations!$C15:$I15)) -> 4.08 | I89: =IF(Engines!AO9<>"",Engines!AO9,LOOKUP(Calculations!I$84,Calculations!$C$9:$I$9,Calculations!$C15:$I15)) -> 4.08 | J89: =IF(Engines!AP9<>"",Engines!AP9,LOOKUP(Calculations!J$84,Calculations!$C$9:$I$9,Calculations!$C15:$I15)) -> 4.08 | K89: =IF(Engines!AQ9<>"",Engines!AQ9,LOOKUP(Calculations!K$84,Calculations!$C$9:$I$9,Calculations!$C15:$I15)) -> 4.08 | L89: =IF(Engines!AR9<>"",Engines!AR9,LOOKUP(Calculations!L$84,Calculations!$C$9:$I$9,Calculations!$C15:$I15)) -> 4.08 | N89: NOx | P89: 0 | Q89: 0 | R89: 0 | S89: 0 | T89: 0 | U89: 0 | V89: 0 | W89: 0 | X89: 0 | Y89: 0 | Z89: 0 | AB89: NOx | AD89: 0 | AE89: 0 | AF89: 0 | AG89: 0 | AH89: 0 | AI89: 0 | AJ89: 0 | AK89: 0 | AL89: 0 | AM89: 0 | AN89: 0
A90: CO | C90: =IF(Engines!AI10<>"",Engines!AI10,LOOKUP(Calculations!C$84,Calculations!$C$9:$I$9,Calculations!$C16:$I16)) -> 0.557 | D90: =IF(Engines!AJ10<>"",Engines!AJ10,LOOKUP(Calculations!D$84,Calculations!$C$9:$I$9,Calculations!$C16:$I16)) -> 0.557 | E90: =IF(Engines!AK10<>"",Engines!AK10,LOOKUP(Calculations!E$84,Calculations!$C$9:$I$9,Calculations!$C16:$I16)) -> 0.557 | F90: =IF(Engines!AL10<>"",Engines!AL10,LOOKUP(Calculations!F$84,Calculations!$C$9:$I$9,Calculations!$C16:$I16)) -> 0.557 | G90: =IF(Engines!AM10<>"",Engines!AM10,LOOKUP(Calculations!G$84,Calculations!$C$9:$I$9,Calculations!$C16:$I16)) -> 0.557 | H90: =IF(Engines!AN10<>"",Engines!AN10,LOOKUP(Calculations!H$84,Calculations!$C$9:$I$9,Calculations!$C16:$I16)) -> 0.557 | I90: =IF(Engines!AO10<>"",Engines!AO10,LOOKUP(Calculations!I$84,Calculations!$C$9:$I$9,Calculations!$C16:$I16)) -> 0.557 | J90: =IF(Engines!AP10<>"",Engines!AP10,LOOKUP(Calculations!J$84,Calculations!$C$9:$I$9,Calculations!$C16:$I16)) -> 0.557 | K90: =IF(Engines!AQ10<>"",Engines!AQ10,LOOKUP(Calculations!K$84,Calculations!$C$9:$I$9,Calculations!$C16:$I16)) -> 0.557 | L90: =IF(Engines!AR10<>"",Engines!AR10,LOOKUP(Calculations!L$84,Calculations!$C$9:$I$9,Calculations!$C16:$I16)) -> 0.557 | N90: CO | P90: 0 | Q90: 0 | R90: 0 | S90: 0 | T90: 0 | U90: 0 | V90: 0 | W90: 0 | X90: 0 | Y90: 0 | Z90: 0 | AB90: CO | AD90: 0 | AE90: 0 | AF90: 0 | AG90: 0 | AH90: 0 | AI90: 0 | AJ90: 0 | AK90: 0 | AL90: 0 | AM90: 0 | AN90: 0
A91: VOC | C91: =IF(Engines!AI11<>"",Engines!AI11,LOOKUP(Calculations!C$84,Calculations!$C$9:$I$9,Calculations!$C17:$I17)) -> 0.118 | D91: =IF(Engines!AJ11<>"",Engines!AJ11,LOOKUP(Calculations!D$84,Calculations!$C$9:$I$9,Calculations!$C17:$I17)) -> 0.118 | E91: =IF(Engines!AK11<>"",Engines!AK11,LOOKUP(Calculations!E$84,Calculations!$C$9:$I$9,Calculations!$C17:$I17)) -> 0.118 | F91: =IF(Engines!AL11<>"",Engines!AL11,LOOKUP(Calculations!F$84,Calculations!$C$9:$I$9,Calculations!$C17:$I17)) -> 0.118 | G91: =IF(Engines!AM11<>"",Engines!AM11,LOOKUP(Calculations!G$84,Calculations!$C$9:$I$9,Calculations!$C17:$I17)) -> 0.118 | H91: =IF(Engines!AN11<>"",Engines!AN11,LOOKUP(Calculations!H$84,Calculations!$C$9:$I$9,Calculations!$C17:$I17)) -> 0.118 | I91: =IF(Engines!AO11<>"",Engines!AO11,LOOKUP(Calculations!I$84,Calculations!$C$9:$I$9,Calculations!$C17:$I17)) -> 0.118 | J91: =IF(Engines!AP11<>"",Engines!AP11,LOOKUP(Calculations!J$84,Calculations!$C$9:$I$9,Calculations!$C17:$I17)) -> 0.118 | K91: =IF(Engines!AQ11<>"",Engines!AQ11,LOOKUP(Calculations!K$84,Calculations!$C$9:$I$9,Calculations!$C17:$I17)) -> 0.118 | L91: =IF(Engines!AR11<>"",Engines!AR11,LOOKUP(Calculations!L$84,Calculations!$C$9:$I$9,Calculations!$C17:$I17)) -> 0.118 | N91: VOC | P91: 0 | Q91: 0 | R91: 0 | S91: 0 | T91: 0 | U91: 0 | V91: 0 | W91: 0 | X91: 0 | Y91: 0 | Z91: 0 | AB91: VOC | AD91: 0 | AE91: 0 | AF91: 0 | AG91: 0 | AH91: 0 | AI91: 0 | AJ91: 0 | AK91: 0 | AL91: 0 | AM91: 0 | AN91: 0
A92: Individual HAP | N92: Individual HAP | AB92: Individual HAP
A93: Acetaldehyde | C93: =IF(Engines!AI13<>"",Engines!AI13,LOOKUP(Calculations!C$84,Calculations!$C$9:$I$9,Calculations!$C19:$I19)) -> 0.00836 | D93: =IF(Engines!AJ13<>"",Engines!AJ13,LOOKUP(Calculations!D$84,Calculations!$C$9:$I$9,Calculations!$C19:$I19)) -> 0.00836 | E93: =IF(Engines!AK13<>"",Engines!AK13,LOOKUP(Calculations!E$84,Calculations!$C$9:$I$9,Calculations!$C19:$I19)) -> 0.00836 | F93: =IF(Engines!AL13<>"",Engines!AL13,LOOKUP(Calculations!F$84,Calculations!$C$9:$I$9,Calculations!$C19:$I19)) -> 0.00836 | G93: =IF(Engines!AM13<>"",Engines!AM13,LOOKUP(Calculations!G$84,Calculations!$C$9:$I$9,Calculations!$C19:$I19)) -> 0.00836 | H93: =IF(Engines!AN13<>"",Engines!AN13,LOOKUP(Calculations!H$84,Calculations!$C$9:$I$9,Calculations!$C19:$I19)) -> 0.00836 | I93: =IF(Engines!AO13<>"",Engines!AO13,LOOKUP(Calculations!I$84,Calculations!$C$9:$I$9,Calculations!$C19:$I19)) -> 0.00836 | J93: =IF(Engines!AP13<>"",Engines!AP13,LOOKUP(Calculations!J$84,Calculations!$C$9:$I$9,Calculations!$C19:$I19)) -> 0.00836 | K93: =IF(Engines!AQ13<>"",Engines!AQ13,LOOKUP(Calculations!K$84,Calculations!$C$9:$I$9,Calculations!$C19:$I19)) -> 0.00836 | L93: =IF(Engines!AR13<>"",Engines!AR13,LOOKUP(Calculations!L$84,Calculations!$C$9:$I$9,Calculations!$C19:$I19)) -> 0.00836 | N93: Acetaldehyde | P93: =C93*C$118 -> 0 | Q93: =D93*D$118 -> 0 | R93: =E93*E$118 -> 0 | S93: =F93*F$118 -> 0 | T93: =G93*G$118 -> 0 | U93: =H93*H$118 -> 0 | V93: =I93*I$118 -> 0 | W93: =J93*J$118 -> 0 | X93: =K93*K$118 -> 0 | Y93: =L93*L$118 -> 0 | Z93: =SUM(P93:Y93) -> 0 | AB93: Acetaldehyde | AD93: =P93*C$119/2000 -> 0 | AE93: =Q93*D$119/2000 -> 0 | AF93: =R93*E$119/2000 -> 0 | AG93: =S93*F$119/2000 -> 0 | AH93: =T93*G$119/2000 -> 0 | AI93: =U93*H$119/2000 -> 0 | AJ93: =V93*I$119/2000 -> 0 | AK93: =W93*J$119/2000 -> 0 | AL93: =X93*K$119/2000 -> 0 | AM93: =Y93*L$119/2000 -> 0 | AN93: =SUM(AD93:AM93) -> 0
A94: Acrolein | C94: =IF(Engines!AI14<>"",Engines!AI14,LOOKUP(Calculations!C$84,Calculations!$C$9:$I$9,Calculations!$C20:$I20)) -> 0.00514 | D94: =IF(Engines!AJ14<>"",Engines!AJ14,LOOKUP(Calculations!D$84,Calculations!$C$9:$I$9,Calculations!$C20:$I20)) -> 0.00514 | E94: =IF(Engines!AK14<>"",Engines!AK14,LOOKUP(Calculations!E$84,Calculations!$C$9:$I$9,Calculations!$C20:$I20)) -> 0.00514 | F94: =IF(Engines!AL14<>"",Engines!AL14,LOOKUP(Calculations!F$84,Calculations!$C$9:$I$9,Calculations!$C20:$I20)) -> 0.00514 | G94: =IF(Engines!AM14<>"",Engines!AM14,LOOKUP(Calculations!G$84,Calculations!$C$9:$I$9,Calculations!$C20:$I20)) -> 0.00514 | H94: =IF(Engines!AN14<>"",Engines!AN14,LOOKUP(Calculations!H$84,Calculations!$C$9:$I$9,Calculations!$C20:$I20)) -> 0.00514 | I94: =IF(Engines!AO14<>"",Engines!AO14,LOOKUP(Calculations!I$84,Calculations!$C$9:$I$9,Calculations!$C20:$I20)) -> 0.00514 | J94: =IF(Engines!AP14<>"",Engines!AP14,LOOKUP(Calculations!J$84,Calculations!$C$9:$I$9,Calculations!$C20:$I20)) -> 0.00514 | K94: =IF(Engines!AQ14<>"",Engines!AQ14,LOOKUP(Calculations!K$84,Calculations!$C$9:$I$9,Calculations!$C20:$I20)) -> 0.00514 | L94: =IF(Engines!AR14<>"",Engines!AR14,LOOKUP(Calculations!L$84,Calculations!$C$9:$I$9,Calculations!$C20:$I20)) -> 0.00514 | N94: Acrolein | P94: 0 | Q94: 0 | R94: 0 | S94: 0 | T94: 0 | U94: 0 | V94: 0 | W94: 0 | X94: 0 | Y94: 0 | Z94: 0 | AB94: Acrolein | AD94: 0 | AE94: 0 | AF94: 0 | AG94: 0 | AH94: 0 | AI94: 0 | AJ94: 0 | AK94: 0 | AL94: 0 | AM94: 0 | AN94: 0
A95: Arsenic compounds | C95: =IF(Engines!AI15<>"",Engines!AI15,LOOKUP(Calculations!C$84,Calculations!$C$9:$I$9,Calculations!$C21:$I21)) -> 0 | D95: =IF(Engines!AJ15<>"",Engines!AJ15,LOOKUP(Calculations!D$84,Calculations!$C$9:$I$9,Calculations!$C21:$I21)) -> 0 | E95: =IF(Engines!AK15<>"",Engines!AK15,LOOKUP(Calculations!E$84,Calculations!$C$9:$I$9,Calculations!$C21:$I21)) -> 0 | F95: =IF(Engines!AL15<>"",Engines!AL15,LOOKUP(Calculations!F$84,Calculations!$C$9:$I$9,Calculations!$C21:$I21)) -> 0 | G95: =IF(Engines!AM15<>"",Engines!AM15,LOOKUP(Calculations!G$84,Calculations!$C$9:$I$9,Calculations!$C21:$I21)) -> 0 | H95: =IF(Engines!AN15<>"",Engines!AN15,LOOKUP(Calculations!H$84,Calculations!$C$9:$I$9,Calculations!$C21:$I21)) -> 0 | I95: =IF(Engines!AO15<>"",Engines!AO15,LOOKUP(Calculations!I$84,Calculations!$C$9:$I$9,Calculations!$C21:$I21)) -> 0 | J95: =IF(Engines!AP15<>"",Engines!AP15,LOOKUP(Calculations!J$84,Calculations!$C$9:$I$9,Calculations!$C21:$I21)) -> 0 | K95: =IF(Engines!AQ15<>"",Engines!AQ15,LOOKUP(Calculations!K$84,Calculations!$C$9:$I$9,Calculations!$C21:$I21)) -> 0 | L95: =IF(Engines!AR15<>"",Engines!AR15,LOOKUP(Calculations!L$84,Calculations!$C$9:$I$9,Calculations!$C21:$I21)) -> 0 | N95: Arsenic compounds | P95: 0 | Q95: 0 | R95: 0 | S95: 0 | T95: 0 | U95: 0 | V95: 0 | W95: 0 | X95: 0 | Y95: 0 | Z95: 0 | AB95: Arsenic compounds | AD95: 0 | AE95: 0 | AF95: 0 | AG95: 0 | AH95: 0 | AI95: 0 | AJ95: 0 | AK95: 0 | AL95: 0 | AM95: 0 | AN95: 0
A96: Benzene | C96: =IF(Engines!AI16<>"",Engines!AI16,LOOKUP(Calculations!C$84,Calculations!$C$9:$I$9,Calculations!$C22:$I22)) -> 0.00044 | D96: =IF(Engines!AJ16<>"",Engines!AJ16,LOOKUP(Calculations!D$84,Calculations!$C$9:$I$9,Calculations!$C22:$I22)) -> 0.00044 | E96: =IF(Engines!AK16<>"",Engines!AK16,LOOKUP(Calculations!E$84,Calculations!$C$9:$I$9,Calculations!$C22:$I22)) -> 0.00044 | F96: =IF(Engines!AL16<>"",Engines!AL16,LOOKUP(Calculations!F$84,Calculations!$C$9:$I$9,Calculations!$C22:$I22)) -> 0.00044 | G96: =IF(Engines!AM16<>"",Engines!AM16,LOOKUP(Calculations!G$84,Calculations!$C$9:$I$9,Calculations!$C22:$I22)) -> 0.00044 | H96: =IF(Engines!AN16<>"",Engines!AN16,LOOKUP(Calculations!H$84,Calculations!$C$9:$I$9,Calculations!$C22:$I22)) -> 0.00044 | I96: =IF(Engines!AO16<>"",Engines!AO16,LOOKUP(Calculations!I$84,Calculations!$C$9:$I$9,Calculations!$C22:$I22)) -> 0.00044 | J96: =IF(Engines!AP16<>"",Engines!AP16,LOOKUP(Calculations!J$84,Calculations!$C$9:$I$9,Calculations!$C22:$I22)) -> 0.00044 | K96: =IF(Engines!AQ16<>"",Engines!AQ16,LOOKUP(Calculations!K$84,Calculations!$C$9:$I$9,Calculations!$C22:$I22)) -> 0.00044 | L96: =IF(Engines!AR16<>"",Engines!AR16,LOOKUP(Calculations!L$84,Calculations!$C$9:$I$9,Calculations!$C22:$I22)) -> 0.00044 | N96: Benzene | P96: 0 | Q96: 0 | R96: 0 | S96: 0 | T96: 0 | U96: 0 | V96: 0 | W96: 0 | X96: 0 | Y96: 0 | Z96: 0 | AB96: Benzene | AD96: 0 | AE96: 0 | AF96: 0 | AG96: 0 | AH96: 0 | AI96: 0 | AJ96: 0 | AK96: 0 | AL96: 0 | AM96: 0 | AN96: 0
A97: Benzyl chloride | C97: =IF(Engines!AI17<>"",Engines!AI17,LOOKUP(Calculations!C$84,Calculations!$C$9:$I$9,Calculations!$C23:$I23)) -> 0 | D97: =IF(Engines!AJ17<>"",Engines!AJ17,LOOKUP(Calculations!D$84,Calculations!$C$9:$I$9,Calculations!$C23:$I23)) -> 0 | E97: =IF(Engines!AK17<>"",Engines!AK17,LOOKUP(Calculations!E$84,Calculations!$C$9:$I$9,Calculations!$C23:$I23)) -> 0 | F97: =IF(Engines!AL17<>"",Engines!AL17,LOOKUP(Calculations!F$84,Calculations!$C$9:$I$9,Calculations!$C23:$I23)) -> 0 | G97: =IF(Engines!AM17<>"",Engines!AM17,LOOKUP(Calculations!G$84,Calculations!$C$9:$I$9,Calculations!$C23:$I23)) -> 0 | H97: =IF(Engines!AN17<>"",Engines!AN17,LOOKUP(Calculations!H$84,Calculations!$C$9:$I$9,Calculations!$C23:$I23)) -> 0 | I97: =IF(Engines!AO17<>"",Engines!AO17,LOOKUP(Calculations!I$84,Calculations!$C$9:$I$9,Calculations!$C23:$I23)) -> 0 | J97: =IF(Engines!AP17<>"",Engines!AP17,LOOKUP(Calculations!J$84,Calculations!$C$9:$I$9,Calculations!$C23:$I23)) -> 0 | K97: =IF(Engines!AQ17<>"",Engines!AQ17,LOOKUP(Calculations!K$84,Calculations!$C$9:$I$9,Calculations!$C23:$I23)) -> 0 | L97: =IF(Engines!AR17<>"",Engines!AR17,LOOKUP(Calculations!L$84,Calculations!$C$9:$I$9,Calculations!$C23:$I23)) -> 0 | N97: Benzyl chloride | P97: 0 | Q97: 0 | R97: 0 | S97: 0 | T97: 0 | U97: 0 | V97: 0 | W97: 0 | X97: 0 | Y97: 0 | Z97: 0 | AB97: Benzyl chloride | AD97: 0 | AE97: 0 | AF97: 0 | AG97: 0 | AH97: 0 | AI97: 0 | AJ97: 0 | AK97: 0 | AL97: 0 | AM97: 0 | AN97: 0
A98: Beryllium compounds | C98: =IF(Engines!AI18<>"",Engines!AI18,LOOKUP(Calculations!C$84,Calculations!$C$9:$I$9,Calculations!$C24:$I24)) -> 0 | D98: =IF(Engines!AJ18<>"",Engines!AJ18,LOOKUP(Calculations!D$84,Calculations!$C$9:$I$9,Calculations!$C24:$I24)) -> 0 | E98: =IF(Engines!AK18<>"",Engines!AK18,LOOKUP(Calculations!E$84,Calculations!$C$9:$I$9,Calculations!$C24:$I24)) -> 0 | F98: =IF(Engines!AL18<>"",Engines!AL18,LOOKUP(Calculations!F$84,Calculations!$C$9:$I$9,Calculations!$C24:$I24)) -> 0 | G98: =IF(Engines!AM18<>"",Engines!AM18,LOOKUP(Calculations!G$84,Calculations!$C$9:$I$9,Calculations!$C24:$I24)) -> 0 | H98: =IF(Engines!AN18<>"",Engines!AN18,LOOKUP(Calculations!H$84,Calculations!$C$9:$I$9,Calculations!$C24:$I24)) -> 0 | I98: =IF(Engines!AO18<>"",Engines!AO18,LOOKUP(Calculations!I$84,Calculations!$C$9:$I$9,Calculations!$C24:$I24)) -> 0 | J98: =IF(Engines!AP18<>"",Engines!AP18,LOOKUP(Calculations!J$84,Calculations!$C$9:$I$9,Calculations!$C24:$I24)) -> 0 | K98: =IF(Engines!AQ18<>"",Engines!AQ18,LOOKUP(Calculations!K$84,Calculations!$C$9:$I$9,Calculations!$C24:$I24)) -> 0 | L98: =IF(Engines!AR18<>"",Engines!AR18,LOOKUP(Calculations!L$84,Calculations!$C$9:$I$9,Calculations!$C24:$I24)) -> 0 | N98: Beryllium compounds | P98: 0 | Q98: 0 | R98: 0 | S98: 0 | T98: 0 | U98: 0 | V98: 0 | W98: 0 | X98: 0 | Y98: 0 | Z98: 0 | AB98: Beryllium compounds | AD98: 0 | AE98: 0 | AF98: 0 | AG98: 0 | AH98: 0 | AI98: 0 | AJ98: 0 | AK98: 0 | AL98: 0 | AM98: 0 | AN98: 0
A99: Cadmium compounds | C99: =IF(Engines!AI19<>"",Engines!AI19,LOOKUP(Calculations!C$84,Calculations!$C$9:$I$9,Calculations!$C25:$I25)) -> 0 | D99: =IF(Engines!AJ19<>"",Engines!AJ19,LOOKUP(Calculations!D$84,Calculations!$C$9:$I$9,Calculations!$C25:$I25)) -> 0 | E99: =IF(Engines!AK19<>"",Engines!AK19,LOOKUP(Calculations!E$84,Calculations!$C$9:$I$9,Calculations!$C25:$I25)) -> 0 | F99: =IF(Engines!AL19<>"",Engines!AL19,LOOKUP(Calculations!F$84,Calculations!$C$9:$I$9,Calculations!$C25:$I25)) -> 0 | G99: =IF(Engines!AM19<>"",Engines!AM19,LOOKUP(Calculations!G$84,Calculations!$C$9:$I$9,Calculations!$C25:$I25)) -> 0 | H99: =IF(Engines!AN19<>"",Engines!AN19,LOOKUP(Calculations!H$84,Calculations!$C$9:$I$9,Calculations!$C25:$I25)) -> 0 | I99: =IF(Engines!AO19<>"",Engines!AO19,LOOKUP(Calculations!I$84,Calculations!$C$9:$I$9,Calculations!$C25:$I25)) -> 0 | J99: =IF(Engines!AP19<>"",Engines!AP19,LOOKUP(Calculations!J$84,Calculations!$C$9:$I$9,Calculations!$C25:$I25)) -> 0 | K99: =IF(Engines!AQ19<>"",Engines!AQ19,LOOKUP(Calculations!K$84,Calculations!$C$9:$I$9,Calculations!$C25:$I25)) -> 0 | L99: =IF(Engines!AR19<>"",Engines!AR19,LOOKUP(Calculations!L$84,Calculations!$C$9:$I$9,Calculations!$C25:$I25)) -> 0 | N99: Cadmium compounds | P99: 0 | Q99: 0 | R99: 0 | S99: 0 | T99: 0 | U99: 0 | V99: 0 | W99: 0 | X99: 0 | Y99: 0 | Z99: 0 | AB99: Cadmium compounds | AD99: 0 | AE99: 0 | AF99: 0 | AG99: 0 | AH99: 0 | AI99: 0 | AJ99: 0 | AK99: 0 | AL99: 0 | AM99: 0 | AN99: 0
A100: Cyanide compounds | C100: =IF(Engines!AI20<>"",Engines!AI20,LOOKUP(Calculations!C$84,Calculations!$C$9:$I$9,Calculations!$C26:$I26)) -> 0 | D100: =IF(Engines!AJ20<>"",Engines!AJ20,LOOKUP(Calculations!D$84,Calculations!$C$9:$I$9,Calculations!$C26:$I26)) -> 0 | E100: =IF(Engines!AK20<>"",Engines!AK20,LOOKUP(Calculations!E$84,Calculations!$C$9:$I$9,Calculations!$C26:$I26)) -> 0 | F100: =IF(Engines!AL20<>"",Engines!AL20,LOOKUP(Calculations!F$84,Calculations!$C$9:$I$9,Calculations!$C26:$I26)) -> 0 | G100: =IF(Engines!AM20<>"",Engines!AM20,LOOKUP(Calculations!G$84,Calculations!$C$9:$I$9,Calculations!$C26:$I26)) -> 0 | H100: =IF(Engines!AN20<>"",Engines!AN20,LOOKUP(Calculations!H$84,Calculations!$C$9:$I$9,Calculations!$C26:$I26)) -> 0 | I100: =IF(Engines!AO20<>"",Engines!AO20,LOOKUP(Calculations!I$84,Calculations!$C$9:$I$9,Calculations!$C26:$I26)) -> 0 | J100: =IF(Engines!AP20<>"",Engines!AP20,LOOKUP(Calculations!J$84,Calculations!$C$9:$I$9,Calculations!$C26:$I26)) -> 0 | K100: =IF(Engines!AQ20<>"",Engines!AQ20,LOOKUP(Calculations!K$84,Calculations!$C$9:$I$9,Calculations!$C26:$I26)) -> 0 | L100: =IF(Engines!AR20<>"",Engines!AR20,LOOKUP(Calculations!L$84,Calculations!$C$9:$I$9,Calculations!$C26:$I26)) -> 0 | N100: Cyanide compounds | P100: 0 | Q100: 0 | R100: 0 | S100: 0 | T100: 0 | U100: 0 | V100: 0 | W100: 0 | X100: 0 | Y100: 0 | Z100: 0 | AB100: Cyanide compounds | AD100: 0 | AE100: 0 | AF100: 0 | AG100: 0 | AH100: 0 | AI100: 0 | AJ100: 0 | AK100: 0 | AL100: 0 | AM100: 0 | AN100: 0
A101: Formaldehyde | C101: =IF(Engines!AI21<>"",Engines!AI21,LOOKUP(Calculations!C$84,Calculations!$C$9:$I$9,Calculations!$C27:$I27)) -> 0.0528 | D101: =IF(Engines!AJ21<>"",Engines!AJ21,LOOKUP(Calculations!D$84,Calculations!$C$9:$I$9,Calculations!$C27:$I27)) -> 0.0528 | E101: =IF(Engines!AK21<>"",Engines!AK21,LOOKUP(Calculations!E$84,Calculations!$C$9:$I$9,Calculations!$C27:$I27)) -> 0.0528 | F101: =IF(Engines!AL21<>"",Engines!AL21,LOOKUP(Calculations!F$84,Calculations!$C$9:$I$9,Calculations!$C27:$I27)) -> 0.0528 | G101: =IF(Engines!AM21<>"",Engines!AM21,LOOKUP(Calculations!G$84,Calculations!$C$9:$I$9,Calculations!$C27:$I27)) -> 0.0528 | H101: =IF(Engines!AN21<>"",Engines!AN21,LOOKUP(Calculations!H$84,Calculations!$C$9:$I$9,Calculations!$C27:$I27)) -> 0.0528 | I101: =IF(Engines!AO21<>"",Engines!AO21,LOOKUP(Calculations!I$84,Calculations!$C$9:$I$9,Calculations!$C27:$I27)) -> 0.0528 | J101: =IF(Engines!AP21<>"",Engines!AP21,LOOKUP(Calculations!J$84,Calculations!$C$9:$I$9,Calculations!$C27:$I27)) -> 0.0528 | K101: =IF(Engines!AQ21<>"",Engines!AQ21,LOOKUP(Calculations!K$84,Calculations!$C$9:$I$9,Calculations!$C27:$I27)) -> 0.0528 | L101: =IF(Engines!AR21<>"",Engines!AR21,LOOKUP(Calculations!L$84,Calculations!$C$9:$I$9,Calculations!$C27:$I27)) -> 0.0528 | N101: Formaldehyde | P101: 0 | Q101: 0 | R101: 0 | S101: 0 | T101: 0 | U101: 0 | V101: 0 | W101: 0 | X101: 0 | Y101: 0 | Z101: 0 | AB101: Formaldehyde | AD101: 0 | AE101: 0 | AF101: 0 | AG101: 0 | AH101: 0 | AI101: 0 | AJ101: 0 | AK101: 0 | AL101: 0 | AM101: 0 | AN101: 0
A102: n-Hexane | C102: =IF(Engines!AI22<>"",Engines!AI22,LOOKUP(Calculations!C$84,Calculations!$C$9:$I$9,Calculations!$C28:$I28)) -> 0.00111 | D102: =IF(Engines!AJ22<>"",Engines!AJ22,LOOKUP(Calculations!D$84,Calculations!$C$9:$I$9,Calculations!$C28:$I28)) -> 0.00111 | E102: =IF(Engines!AK22<>"",Engines!AK22,LOOKUP(Calculations!E$84,Calculations!$C$9:$I$9,Calculations!$C28:$I28)) -> 0.00111 | F102: =IF(Engines!AL22<>"",Engines!AL22,LOOKUP(Calculations!F$84,Calculations!$C$9:$I$9,Calculations!$C28:$I28)) -> 0.00111 | G102: =IF(Engines!AM22<>"",Engines!AM22,LOOKUP(Calculations!G$84,Calculations!$C$9:$I$9,Calculations!$C28:$I28)) -> 0.00111 | H102: =IF(Engines!AN22<>"",Engines!AN22,LOOKUP(Calculations!H$84,Calculations!$C$9:$I$9,Calculations!$C28:$I28)) -> 0.00111 | I102: =IF(Engines!AO22<>"",Engines!AO22,LOOKUP(Calculations!I$84,Calculations!$C$9:$I$9,Calculations!$C28:$I28)) -> 0.00111 | J102: =IF(Engines!AP22<>"",Engines!AP22,LOOKUP(Calculations!J$84,Calculations!$C$9:$I$9,Calculations!$C28:$I28)) -> 0.00111 | K102: =IF(Engines!AQ22<>"",Engines!AQ22,LOOKUP(Calculations!K$84,Calculations!$C$9:$I$9,Calculations!$C28:$I28)) -> 0.00111 | L102: =IF(Engines!AR22<>"",Engines!AR22,LOOKUP(Calculations!L$84,Calculations!$C$9:$I$9,Calculations!$C28:$I28)) -> 0.00111 | N102: n-Hexane | P102: 0 | Q102: 0 | R102: 0 | S102: 0 | T102: 0 | U102: 0 | V102: 0 | W102: 0 | X102: 0 | Y102: 0 | Z102: 0 | AB102: n-Hexane | AD102: 0 | AE102: 0 | AF102: 0 | AG102: 0 | AH102: 0 | AI102: 0 | AJ102: 0 | AK102: 0 | AL102: 0 | AM102: 0 | AN102: 0
A103: Hydrochloric acid | C103: =IF(Engines!AI23<>"",Engines!AI23,LOOKUP(Calculations!C$84,Calculations!$C$9:$I$9,Calculations!$C29:$I29)) -> 0 | D103: =IF(Engines!AJ23<>"",Engines!AJ23,LOOKUP(Calculations!D$84,Calculations!$C$9:$I$9,Calculations!$C29:$I29)) -> 0 | E103: =IF(Engines!AK23<>"",Engines!AK23,LOOKUP(Calculations!E$84,Calculations!$C$9:$I$9,Calculations!$C29:$I29)) -> 0 | F103: =IF(Engines!AL23<>"",Engines!AL23,LOOKUP(Calculations!F$84,Calculations!$C$9:$I$9,Calculations!$C29:$I29)) -> 0 | G103: =IF(Engines!AM23<>"",Engines!AM23,LOOKUP(Calculations!G$84,Calculations!$C$9:$I$9,Calculations!$C29:$I29)) -> 0 | H103: =IF(Engines!AN23<>"",Engines!AN23,LOOKUP(Calculations!H$84,Calculations!$C$9:$I$9,Calculations!$C29:$I29)) -> 0 | I103: =IF(Engines!AO23<>"",Engines!AO23,LOOKUP(Calculations!I$84,Calculations!$C$9:$I$9,Calculations!$C29:$I29)) -> 0 | J103: =IF(Engines!AP23<>"",Engines!AP23,LOOKUP(Calculations!J$84,Calculations!$C$9:$I$9,Calculations!$C29:$I29)) -> 0 | K103: =IF(Engines!AQ23<>"",Engines!AQ23,LOOKUP(Calculations!K$84,Calculations!$C$9:$I$9,Calculations!$C29:$I29)) -> 0 | L103: =IF(Engines!AR23<>"",Engines!AR23,LOOKUP(Calculations!L$84,Calculations!$C$9:$I$9,Calculations!$C29:$I29)) -> 0 | N103: Hydrochloric acid | P103: 0 | Q103: 0 | R103: 0 | S103: 0 | T103: 0 | U103: 0 | V103: 0 | W103: 0 | X103: 0 | Y103: 0 | Z103: 0 | AB103: Hydrochloric acid | AD103: 0 | AE103: 0 | AF103: 0 | AG103: 0 | AH103: 0 | AI103: 0 | AJ103: 0 | AK103: 0 | AL103: 0 | AM103: 0 | AN103: 0
A104: Lead Compounds | C104: =IF(Engines!AI24<>"",Engines!AI24,LOOKUP(Calculations!C$84,Calculations!$C$9:$I$9,Calculations!$C30:$I30)) -> 0 | D104: =IF(Engines!AJ24<>"",Engines!AJ24,LOOKUP(Calculations!D$84,Calculations!$C$9:$I$9,Calculations!$C30:$I30)) -> 0 | E104: =IF(Engines!AK24<>"",Engines!AK24,LOOKUP(Calculations!E$84,Calculations!$C$9:$I$9,Calculations!$C30:$I30)) -> 0 | F104: =IF(Engines!AL24<>"",Engines!AL24,LOOKUP(Calculations!F$84,Calculations!$C$9:$I$9,Calculations!$C30:$I30)) -> 0 | G104: =IF(Engines!AM24<>"",Engines!AM24,LOOKUP(Calculations!G$84,Calculations!$C$9:$I$9,Calculations!$C30:$I30)) -> 0 | H104: =IF(Engines!AN24<>"",Engines!AN24,LOOKUP(Calculations!H$84,Calculations!$C$9:$I$9,Calculations!$C30:$I30)) -> 0 | I104: =IF(Engines!AO24<>"",Engines!AO24,LOOKUP(Calculations!I$84,Calculations!$C$9:$I$9,Calculations!$C30:$I30)) -> 0 | J104: =IF(Engines!AP24<>"",Engines!AP24,LOOKUP(Calculations!J$84,Calculations!$C$9:$I$9,Calculations!$C30:$I30)) -> 0 | K104: =IF(Engines!AQ24<>"",Engines!AQ24,LOOKUP(Calculations!K$84,Calculations!$C$9:$I$9,Calculations!$C30:$I30)) -> 0 | L104: =IF(Engines!AR24<>"",Engines!AR24,LOOKUP(Calculations!L$84,Calculations!$C$9:$I$9,Calculations!$C30:$I30)) -> 0 | N104: Lead Compounds | P104: 0 | Q104: 0 | R104: 0 | S104: 0 | T104: 0 | U104: 0 | V104: 0 | W104: 0 | X104: 0 | Y104: 0 | Z104: 0 | AB104: Lead Compounds | AD104: 0 | AE104: 0 | AF104: 0 | AG104: 0 | AH104: 0 | AI104: 0 | AJ104: 0 | AK104: 0 | AL104: 0 | AM104: 0 | AN104: 0
A105: Mercury compounds | C105: =IF(Engines!AI25<>"",Engines!AI25,LOOKUP(Calculations!C$84,Calculations!$C$9:$I$9,Calculations!$C31:$I31)) -> 0 | D105: =IF(Engines!AJ25<>"",Engines!AJ25,LOOKUP(Calculations!D$84,Calculations!$C$9:$I$9,Calculations!$C31:$I31)) -> 0 | E105: =IF(Engines!AK25<>"",Engines!AK25,LOOKUP(Calculations!E$84,Calculations!$C$9:$I$9,Calculations!$C31:$I31)) -> 0 | F105: =IF(Engines!AL25<>"",Engines!AL25,LOOKUP(Calculations!F$84,Calculations!$C$9:$I$9,Calculations!$C31:$I31)) -> 0 | G105: =IF(Engines!AM25<>"",Engines!AM25,LOOKUP(Calculations!G$84,Calculations!$C$9:$I$9,Calculations!$C31:$I31)) -> 0 | H105: =IF(Engines!AN25<>"",Engines!AN25,LOOKUP(Calculations!H$84,Calculations!$C$9:$I$9,Calculations!$C31:$I31)) -> 0 | I105: =IF(Engines!AO25<>"",Engines!AO25,LOOKUP(Calculations!I$84,Calculations!$C$9:$I$9,Calculations!$C31:$I31)) -> 0 | J105: =IF(Engines!AP25<>"",Engines!AP25,LOOKUP(Calculations!J$84,Calculations!$C$9:$I$9,Calculations!$C31:$I31)) -> 0 | K105: =IF(Engines!AQ25<>"",Engines!AQ25,LOOKUP(Calculations!K$84,Calculations!$C$9:$I$9,Calculations!$C31:$I31)) -> 0 | L105: =IF(Engines!AR25<>"",Engines!AR25,LOOKUP(Calculations!L$84,Calculations!$C$9:$I$9,Calculations!$C31:$I31)) -> 0 | N105: Mercury compounds | P105: 0 | Q105: 0 | R105: 0 | S105: 0 | T105: 0 | U105: 0 | V105: 0 | W105: 0 | X105: 0 | Y105: 0 | Z105: 0 | AB105: Mercury compounds | AD105: 0 | AE105: 0 | AF105: 0 | AG105: 0 | AH105: 0 | AI105: 0 | AJ105: 0 | AK105: 0 | AL105: 0 | AM105: 0 | AN105: 0
A106: Methanol | C106: =IF(Engines!AI26<>"",Engines!AI26,LOOKUP(Calculations!C$84,Calculations!$C$9:$I$9,Calculations!$C32:$I32)) -> 0.0025 | D106: =IF(Engines!AJ26<>"",Engines!AJ26,LOOKUP(Calculations!D$84,Calculations!$C$9:$I$9,Calculations!$C32:$I32)) -> 0.0025 | E106: =IF(Engines!AK26<>"",Engines!AK26,LOOKUP(Calculations!E$84,Calculations!$C$9:$I$9,Calculations!$C32:$I32)) -> 0.0025 | F106: =IF(Engines!AL26<>"",Engines!AL26,LOOKUP(Calculations!F$84,Calculations!$C$9:$I$9,Calculations!$C32:$I32)) -> 0.0025 | G106: =IF(Engines!AM26<>"",Engines!AM26,LOOKUP(Calculations!G$84,Calculations!$C$9:$I$9,Calculations!$C32:$I32)) -> 0.0025 | H106: =IF(Engines!AN26<>"",Engines!AN26,LOOKUP(Calculations!H$84,Calculations!$C$9:$I$9,Calculations!$C32:$I32)) -> 0.0025 | I106: =IF(Engines!AO26<>"",Engines!AO26,LOOKUP(Calculations!I$84,Calculations!$C$9:$I$9,Calculations!$C32:$I32)) -> 0.0025 | J106: =IF(Engines!AP26<>"",Engines!AP26,LOOKUP(Calculations!J$84,Calculations!$C$9:$I$9,Calculations!$C32:$I32)) -> 0.0025 | K106: =IF(Engines!AQ26<>"",Engines!AQ26,LOOKUP(Calculations!K$84,Calculations!$C$9:$I$9,Calculations!$C32:$I32)) -> 0.0025 | L106: =IF(Engines!AR26<>"",Engines!AR26,LOOKUP(Calculations!L$84,Calculations!$C$9:$I$9,Calculations!$C32:$I32)) -> 0.0025 | N106: Methanol | P106: 0 | Q106: 0 | R106: 0 | S106: 0 | T106: 0 | U106: 0 | V106: 0 | W106: 0 | X106: 0 | Y106: 0 | Z106: 0 | AB106: Methanol | AD106: 0 | AE106: 0 | AF106: 0 | AG106: 0 | AH106: 0 | AI106: 0 | AJ106: 0 | AK106: 0 | AL106: 0 | AM106: 0 | AN106: 0
A107: Methyl hydrazine | C107: =IF(Engines!AI27<>"",Engines!AI27,LOOKUP(Calculations!C$84,Calculations!$C$9:$I$9,Calculations!$C33:$I33)) -> 0 | D107: =IF(Engines!AJ27<>"",Engines!AJ27,LOOKUP(Calculations!D$84,Calculations!$C$9:$I$9,Calculations!$C33:$I33)) -> 0 | E107: =IF(Engines!AK27<>"",Engines!AK27,LOOKUP(Calculations!E$84,Calculations!$C$9:$I$9,Calculations!$C33:$I33)) -> 0 | F107: =IF(Engines!AL27<>"",Engines!AL27,LOOKUP(Calculations!F$84,Calculations!$C$9:$I$9,Calculations!$C33:$I33)) -> 0 | G107: =IF(Engines!AM27<>"",Engines!AM27,LOOKUP(Calculations!G$84,Calculations!$C$9:$I$9,Calculations!$C33:$I33)) -> 0 | H107: =IF(Engines!AN27<>"",Engines!AN27,LOOKUP(Calculations!H$84,Calculations!$C$9:$I$9,Calculations!$C33:$I33)) -> 0 | I107: =IF(Engines!AO27<>"",Engines!AO27,LOOKUP(Calculations!I$84,Calculations!$C$9:$I$9,Calculations!$C33:$I33)) -> 0 | J107: =IF(Engines!AP27<>"",Engines!AP27,LOOKUP(Calculations!J$84,Calculations!$C$9:$I$9,Calculations!$C33:$I33)) -> 0 | K107: =IF(Engines!AQ27<>"",Engines!AQ27,LOOKUP(Calculations!K$84,Calculations!$C$9:$I$9,Calculations!$C33:$I33)) -> 0 | L107: =IF(Engines!AR27<>"",Engines!AR27,LOOKUP(Calculations!L$84,Calculations!$C$9:$I$9,Calculations!$C33:$I33)) -> 0 | N107: Methyl hydrazine | P107: 0 | Q107: 0 | R107: 0 | S107: 0 | T107: 0 | U107: 0 | V107: 0 | W107: 0 | X107: 0 | Y107: 0 | Z107: 0 | AB107: Methyl hydrazine | AD107: 0 | AE107: 0 | AF107: 0 | AG107: 0 | AH107: 0 | AI107: 0 | AJ107: 0 | AK107: 0 | AL107: 0 | AM107: 0 | AN107: 0
A108: Selenium compounds | C108: =IF(Engines!AI28<>"",Engines!AI28,LOOKUP(Calculations!C$84,Calculations!$C$9:$I$9,Calculations!$C34:$I34)) -> 0 | D108: =IF(Engines!AJ28<>"",Engines!AJ28,LOOKUP(Calculations!D$84,Calculations!$C$9:$I$9,Calculations!$C34:$I34)) -> 0 | E108: =IF(Engines!AK28<>"",Engines!AK28,LOOKUP(Calculations!E$84,Calculations!$C$9:$I$9,Calculations!$C34:$I34)) -> 0 | F108: =IF(Engines!AL28<>"",Engines!AL28,LOOKUP(Calculations!F$84,Calculations!$C$9:$I$9,Calculations!$C34:$I34)) -> 0 | G108: =IF(Engines!AM28<>"",Engines!AM28,LOOKUP(Calculations!G$84,Calculations!$C$9:$I$9,Calculations!$C34:$I34)) -> 0 | H108: =IF(Engines!AN28<>"",Engines!AN28,LOOKUP(Calculations!H$84,Calculations!$C$9:$I$9,Calculations!$C34:$I34)) -> 0 | I108: =IF(Engines!AO28<>"",Engines!AO28,LOOKUP(Calculations!I$84,Calculations!$C$9:$I$9,Calculations!$C34:$I34)) -> 0 | J108: =IF(Engines!AP28<>"",Engines!AP28,LOOKUP(Calculations!J$84,Calculations!$C$9:$I$9,Calculations!$C34:$I34)) -> 0 | K108: =IF(Engines!AQ28<>"",Engines!AQ28,LOOKUP(Calculations!K$84,Calculations!$C$9:$I$9,Calculations!$C34:$I34)) -> 0 | L108: =IF(Engines!AR28<>"",Engines!AR28,LOOKUP(Calculations!L$84,Calculations!$C$9:$I$9,Calculations!$C34:$I34)) -> 0 | N108: Selenium compounds | P108: 0 | Q108: 0 | R108: 0 | S108: 0 | T108: 0 | U108: 0 | V108: 0 | W108: 0 | X108: 0 | Y108: 0 | Z108: 0 | AB108: Selenium compounds | AD108: 0 | AE108: 0 | AF108: 0 | AG108: 0 | AH108: 0 | AI108: 0 | AJ108: 0 | AK108: 0 | AL108: 0 | AM108: 0 | AN108: 0
A109: Other HAPs | C109: =IF(Engines!AI29<>"",Engines!AI29,LOOKUP(Calculations!C$84,Calculations!$C$9:$I$9,Calculations!$C35:$I35)) -> 0.00616456 | D109: =IF(Engines!AJ29<>"",Engines!AJ29,LOOKUP(Calculations!D$84,Calculations!$C$9:$I$9,Calculations!$C35:$I35)) -> 0.00616456 | E109: =IF(Engines!AK29<>"",Engines!AK29,LOOKUP(Calculations!E$84,Calculations!$C$9:$I$9,Calculations!$C35:$I35)) -> 0.00616456 | F109: =IF(Engines!AL29<>"",Engines!AL29,LOOKUP(Calculations!F$84,Calculations!$C$9:$I$9,Calculations!$C35:$I35)) -> 0.00616456 | G109: =IF(Engines!AM29<>"",Engines!AM29,LOOKUP(Calculations!G$84,Calculations!$C$9:$I$9,Calculations!$C35:$I35)) -> 0.00616456 | H109: =IF(Engines!AN29<>"",Engines!AN29,LOOKUP(Calculations!H$84,Calculations!$C$9:$I$9,Calculations!$C35:$I35)) -> 0.00616456 | I109: =IF(Engines!AO29<>"",Engines!AO29,LOOKUP(Calculations!I$84,Calculations!$C$9:$I$9,Calculations!$C35:$I35)) -> 0.00616456 | J109: =IF(Engines!AP29<>"",Engines!AP29,LOOKUP(Calculations!J$84,Calculations!$C$9:$I$9,Calculations!$C35:$I35)) -> 0.00616456 | K109: =IF(Engines!AQ29<>"",Engines!AQ29,LOOKUP(Calculations!K$84,Calculations!$C$9:$I$9,Calculations!$C35:$I35)) -> 0.00616456 | L109: =IF(Engines!AR29<>"",Engines!AR29,LOOKUP(Calculations!L$84,Calculations!$C$9:$I$9,Calculations!$C35:$I35)) -> 0.00616456 | N109: Other HAPs | P109: 0 | Q109: 0 | R109: 0 | S109: 0 | T109: 0 | U109: 0 | V109: 0 | W109: 0 | X109: 0 | Y109: 0 | Z109: 0 | AB109: Other HAPs | AD109: 0 | AE109: 0 | AF109: 0 | AG109: 0 | AH109: 0 | AI109: 0 | AJ109: 0 | AK109: 0 | AL109: 0 | AM109: 0 | AN109: 0
A110: Total HAPs | C110: =IF(Engines!AI30<>"",Engines!AI30,LOOKUP(Calculations!C$84,Calculations!$C$9:$I$9,Calculations!$C36:$I36)) -> 0.07651456 | D110: =IF(Engines!AJ30<>"",Engines!AJ30,LOOKUP(Calculations!D$84,Calculations!$C$9:$I$9,Calculations!$C36:$I36)) -> 0.07651456 | E110: =IF(Engines!AK30<>"",Engines!AK30,LOOKUP(Calculations!E$84,Calculations!$C$9:$I$9,Calculations!$C36:$I36)) -> 0.07651456 | F110: =IF(Engines!AL30<>"",Engines!AL30,LOOKUP(Calculations!F$84,Calculations!$C$9:$I$9,Calculations!$C36:$I36)) -> 0.07651456 | G110: =IF(Engines!AM30<>"",Engines!AM30,LOOKUP(Calculations!G$84,Calculations!$C$9:$I$9,Calculations!$C36:$I36)) -> 0.07651456 | H110: =IF(Engines!AN30<>"",Engines!AN30,LOOKUP(Calculations!H$84,Calculations!$C$9:$I$9,Calculations!$C36:$I36)) -> 0.07651456 | I110: =IF(Engines!AO30<>"",Engines!AO30,LOOKUP(Calculations!I$84,Calculations!$C$9:$I$9,Calculations!$C36:$I36)) -> 0.07651456 | J110: =IF(Engines!AP30<>"",Engines!AP30,LOOKUP(Calculations!J$84,Calculations!$C$9:$I$9,Calculations!$C36:$I36)) -> 0.07651456 | K110: =IF(Engines!AQ30<>"",Engines!AQ30,LOOKUP(Calculations!K$84,Calculations!$C$9:$I$9,Calculations!$C36:$I36)) -> 0.07651456 | L110: =IF(Engines!AR30<>"",Engines!AR30,LOOKUP(Calculations!L$84,Calculations!$C$9:$I$9,Calculations!$C36:$I36)) -> 0.07651456 | N110: Total HAPs | P110: 0 | Q110: 0 | R110: 0 | S110: 0 | T110: 0 | U110: 0 | V110: 0 | W110: 0 | X110: 0 | Y110: 0 | Z110: 0 | AB110: Total HAPs | AD110: 0 | AE110: 0 | AF110: 0 | AG110: 0 | AH110: 0 | AI110: 0 | AJ110: 0 | AK110: 0 | AL110: 0 | AM110: 0 | AN110: 0
A111: Green House Gasses | N111: Green House Gasses | AB111: Green House Gasses
A112: Carbon Dioxide (CO2) | C112: =IF(Engines!AI32<>"",Engines!AI32,LOOKUP(Calculations!C$84,Calculations!$C$9:$I$9,Calculations!$C38:$I38)) -> 53.06 | D112: =IF(Engines!AJ32<>"",Engines!AJ32,LOOKUP(Calculations!D$84,Calculations!$C$9:$I$9,Calculations!$C38:$I38)) -> 53.06 | E112: =IF(Engines!AK32<>"",Engines!AK32,LOOKUP(Calculations!E$84,Calculations!$C$9:$I$9,Calculations!$C38:$I38)) -> 53.06 | F112: =IF(Engines!AL32<>"",Engines!AL32,LOOKUP(Calculations!F$84,Calculations!$C$9:$I$9,Calculations!$C38:$I38)) -> 53.06 | G112: =IF(Engines!AM32<>"",Engines!AM32,LOOKUP(Calculations!G$84,Calculations!$C$9:$I$9,Calculations!$C38:$I38)) -> 53.06 | H112: =IF(Engines!AN32<>"",Engines!AN32,LOOKUP(Calculations!H$84,Calculations!$C$9:$I$9,Calculations!$C38:$I38)) -> 53.06 | I112: =IF(Engines!AO32<>"",Engines!AO32,LOOKUP(Calculations!I$84,Calculations!$C$9:$I$9,Calculations!$C38:$I38)) -> 53.06 | J112: =IF(Engines!AP32<>"",Engines!AP32,LOOKUP(Calculations!J$84,Calculations!$C$9:$I$9,Calculations!$C38:$I38)) -> 53.06 | K112: =IF(Engines!AQ32<>"",Engines!AQ32,LOOKUP(Calculations!K$84,Calculations!$C$9:$I$9,Calculations!$C38:$I38)) -> 53.06 | L112: =IF(Engines!AR32<>"",Engines!AR32,LOOKUP(Calculations!L$84,Calculations!$C$9:$I$9,Calculations!$C38:$I38)) -> 53.06 | N112: Carbon Dioxide (CO2) | P112: =C112*C$118*2.20462 -> 0 | Q112: =D112*D$118*2.20462 -> 0 | R112: 0 | S112: 0 | T112: 0 | U112: 0 | V112: 0 | W112: 0 | X112: 0 | Y112: 0 | Z112: =SUM(P112:Y112) -> 0 | AB112: Carbon Dioxide (CO2) | AD112: =P112*C$119/2000 -> 0 | AE112: =Q112*D$119/2000 -> 0 | AF112: =R112*E$119/2000 -> 0 | AG112: =S112*F$119/2000 -> 0 | AH112: =T112*G$119/2000 -> 0 | AI112: =U112*H$119/2000 -> 0 | AJ112: =V112*I$119/2000 -> 0 | AK112: =W112*J$119/2000 -> 0 | AL112: =X112*K$119/2000 -> 0 | AM112: =Y112*L$119/2000 -> 0 | AN112: =SUM(AD112:AM112) -> 0
A113: Methane (CH4) | C113: =IF(Engines!AI33<>"",Engines!AI33,LOOKUP(Calculations!C$84,Calculations!$C$9:$I$9,Calculations!$C39:$I39)) -> 0.001 | D113: =IF(Engines!AJ33<>"",Engines!AJ33,LOOKUP(Calculations!D$84,Calculations!$C$9:$I$9,Calculations!$C39:$I39)) -> 0.001 | E113: =IF(Engines!AK33<>"",Engines!AK33,LOOKUP(Calculations!E$84,Calculations!$C$9:$I$9,Calculations!$C39:$I39)) -> 0.001 | F113: =IF(Engines!AL33<>"",Engines!AL33,LOOKUP(Calculations!F$84,Calculations!$C$9:$I$9,Calculations!$C39:$I39)) -> 0.001 | G113: =IF(Engines!AM33<>"",Engines!AM33,LOOKUP(Calculations!G$84,Calculations!$C$9:$I$9,Calculations!$C39:$I39)) -> 0.001 | H113: =IF(Engines!AN33<>"",Engines!AN33,LOOKUP(Calculations!H$84,Calculations!$C$9:$I$9,Calculations!$C39:$I39)) -> 0.001 | I113: =IF(Engines!AO33<>"",Engines!AO33,LOOKUP(Calculations!I$84,Calculations!$C$9:$I$9,Calculations!$C39:$I39)) -> 0.001 | J113: =IF(Engines!AP33<>"",Engines!AP33,LOOKUP(Calculations!J$84,Calculations!$C$9:$I$9,Calculations!$C39:$I39)) -> 0.001 | K113: =IF(Engines!AQ33<>"",Engines!AQ33,LOOKUP(Calculations!K$84,Calculations!$C$9:$I$9,Calculations!$C39:$I39)) -> 0.001 | L113: =IF(Engines!AR33<>"",Engines!AR33,LOOKUP(Calculations!L$84,Calculations!$C$9:$I$9,Calculations!$C39:$I39)) -> 0.001 | N113: Methane (CH4) | P113: =C113*C$118*2.20462 -> 0 | Q113: =D113*D$118*2.20462 -> 0 | R113: =E113*E$118*2.20462 -> 0 | S113: =F113*F$118*2.20462 -> 0 | T113: =G113*G$118*2.20462 -> 0 | U113: =H113*H$118*2.20462 -> 0 | V113: =I113*I$118*2.20462 -> 0 | W113: =J113*J$118*2.20462 -> 0 | X113: =K113*K$118*2.20462 -> 0 | Y113: =L113*L$118*2.20462 -> 0 | Z113: 0 | AB113: Methane (CH4) | AD113: 0 | AE113: 0 | AF113: 0 | AG113: 0 | AH113: 0 | AI113: 0 | AJ113: 0 | AK113: 0 | AL113: 0 | AM113: 0 | AN113: 0
A114: Nitrous Oxide (N2O) | C114: =IF(Engines!AI34<>"",Engines!AI34,LOOKUP(Calculations!C$84,Calculations!$C$9:$I$9,Calculations!$C40:$I40)) -> 0.0001 | D114: =IF(Engines!AJ34<>"",Engines!AJ34,LOOKUP(Calculations!D$84,Calculations!$C$9:$I$9,Calculations!$C40:$I40)) -> 0.0001 | E114: =IF(Engines!AK34<>"",Engines!AK34,LOOKUP(Calculations!E$84,Calculations!$C$9:$I$9,Calculations!$C40:$I40)) -> 0.0001 | F114: =IF(Engines!AL34<>"",Engines!AL34,LOOKUP(Calculations!F$84,Calculations!$C$9:$I$9,Calculations!$C40:$I40)) -> 0.0001 | G114: =IF(Engines!AM34<>"",Engines!AM34,LOOKUP(Calculations!G$84,Calculations!$C$9:$I$9,Calculations!$C40:$I40)) -> 0.0001 | H114: =IF(Engines!AN34<>"",Engines!AN34,LOOKUP(Calculations!H$84,Calculations!$C$9:$I$9,Calculations!$C40:$I40)) -> 0.0001 | I114: =IF(Engines!AO34<>"",Engines!AO34,LOOKUP(Calculations!I$84,Calculations!$C$9:$I$9,Calculations!$C40:$I40)) -> 0.0001 | J114: =IF(Engines!AP34<>"",Engines!AP34,LOOKUP(Calculations!J$84,Calculations!$C$9:$I$9,Calculations!$C40:$I40)) -> 0.0001 | K114: =IF(Engines!AQ34<>"",Engines!AQ34,LOOKUP(Calculations!K$84,Calculations!$C$9:$I$9,Calculations!$C40:$I40)) -> 0.0001 | L114: =IF(Engines!AR34<>"",Engines!AR34,LOOKUP(Calculations!L$84,Calculations!$C$9:$I$9,Calculations!$C40:$I40)) -> 0.0001 | N114: Nitrous Oxide (N2O) | P114: =C114*C$118*2.20462 -> 0 | Q114: 0 | R114: 0 | S114: 0 | T114: 0 | U114: 0 | V114: 0 | W114: 0 | X114: 0 | Y114: 0 | Z114: 0 | AB114: Nitrous Oxide (N2O) | AD114: 0 | AE114: 0 | AF114: 0 | AG114: 0 | AH114: 0 | AI114: 0 | AJ114: 0 | AK114: 0 | AL114: 0 | AM114: 0 | AN114: 0
A116: Engine Rating (hp) | C116: =Engines!D29 -> 0 | D116: =Engines!D30 -> 0 | E116: =Engines!D31 -> 0 | F116: =Engines!D32 -> 0 | G116: =Engines!D33 -> 0 | H116: =Engines!D34 -> 0 | I116: =Engines!D35 -> 0 | J116: =Engines!D36 -> 0 | K116: =Engines!D37 -> 0 | L116: =Engines!D38 -> 0
A117: =Engines!E28 -> Fuel Use Factor (Btu/hp-hr) | C117: =Engines!E29 -> 0 | D117: =Engines!E30 -> 0 | E117: =Engines!E31 -> 0 | F117: =Engines!E32 -> 0 | G117: =Engines!E33 -> 0 | H117: =Engines!E34 -> 0 | I117: =Engines!E35 -> 0 | J117: =Engines!E36 -> 0 | K117: =Engines!E37 -> 0 | L117: =Engines!E38 -> 0
A118: Engine Heat Input (MMBtu/hr) | C118: =C116*C117/1000000 -> 0 | D118: =D116*D117/1000000 -> 0 | E118: 0 | F118: 0 | G118: 0 | H118: 0 | I118: 0 | J118: 0 | K118: 0 | L118: 0
A119: Operating Hours | C119: =Engines!I29 -> 8760 | D119: =Engines!I30 -> 8760 | E119: =Engines!I31 -> 8760 | F119: =Engines!I32 -> 8760 | G119: =Engines!I33 -> 8760 | H119: =Engines!I34 -> 8760 | I119: =Engines!I35 -> 8760 | J119: =Engines!I36 -> 8760 | K119: =Engines!I37 -> 8760 | L119: =Engines!I38 -> 8760
C123: 1st Compression Engine | D123: 2nd Compression Engine | E123: 3rd Compression Engine | F123: 4th Compression Engine | G123: 5th Compression Engine | H123: 6th Compression Engine | I123: 7th Compression Engine | J123: 8th Compression Engine | K123: 9th Compression Engine | L123: 10th Compression Engine | P123: 1st Compression Engine | Q123: 2nd Compression Engine | R123: 3rd Compression Engine | S123: 4th Compression Engine | T123: 5th Compression Engine | U123: 6th Compression Engine | V123: 7th Compression Engine | W123: 8th Compression Engine | X123: 9th Compression Engine | Y123: 10th Compression Engine | Z123: Total | AD123: 1st Compression Engine | AE123: 2nd Compression Engine | AF123: 3rd Compression Engine | AG123: 4th Compression Engine | AH123: 5th Compression Engine | AI123: 6th Compression Engine | AJ123: 7th Compression Engine | AK123: 8th Compression Engine | AL123: 9th Compression Engine | AM123: 10th Compression Engine | AN123: Total
C124: =IF(Engines!N16<600,5,6) -> 5 | D124: =IF(Engines!N17<600,5,6) -> 5 | E124: =IF(Engines!N18<600,5,6) -> 5 | F124: =IF(Engines!N19<600,5,6) -> 5 | G124: =IF(Engines!N20<600,5,6) -> 5 | H124: =IF(Engines!N21<600,5,6) -> 5 | I124: =IF(Engines!N22<600,5,6) -> 5 | J124: =IF(Engines!N23<600,5,6) -> 5 | K124: =IF(Engines!N24<600,5,6) -> 5 | L124: =IF(Engines!N25<600,5,6) -> 5 | P124: (lb/hr) | AD124: (ton/yr)
A125: PMfilterable | C125: =IF(Engines!W43<>"",Engines!W43,LOOKUP(Calculations!C$124,Calculations!$C$9:$I$9,Calculations!$C11:$I11)) -> 0.31 | D125: =IF(Engines!X43<>"",Engines!X43,LOOKUP(Calculations!D$124,Calculations!$C$9:$I$9,Calculations!$C11:$I11)) -> 0.31 | E125: =IF(Engines!Y43<>"",Engines!Y43,LOOKUP(Calculations!E$124,Calculations!$C$9:$I$9,Calculations!$C11:$I11)) -> 0.31 | F125: =IF(Engines!Z43<>"",Engines!Z43,LOOKUP(Calculations!F$124,Calculations!$C$9:$I$9,Calculations!$C11:$I11)) -> 0.31 | G125: =IF(Engines!AA43<>"",Engines!AA43,LOOKUP(Calculations!G$124,Calculations!$C$9:$I$9,Calculations!$C11:$I11)) -> 0.31 | H125: =IF(Engines!AB43<>"",Engines!AB43,LOOKUP(Calculations!H$124,Calculations!$C$9:$I$9,Calculations!$C11:$I11)) -> 0.31 | I125: =IF(Engines!AC43<>"",Engines!AC43,LOOKUP(Calculations!I$124,Calculations!$C$9:$I$9,Calculations!$C11:$I11)) -> 0.31 | J125: =IF(Engines!AD43<>"",Engines!AD43,LOOKUP(Calculations!J$124,Calculations!$C$9:$I$9,Calculations!$C11:$I11)) -> 0.31 | K125: =IF(Engines!AE43<>"",Engines!AE43,LOOKUP(Calculations!K$124,Calculations!$C$9:$I$9,Calculations!$C11:$I11)) -> 0.31 | L125: =IF(Engines!AF43<>"",Engines!AF43,LOOKUP(Calculations!L$124,Calculations!$C$9:$I$9,Calculations!$C11:$I11)) -> 0.31 | N125: PMfilterable | P125: =C125*$D$6*C$157 -> 0 | Q125: 0 | R125: 0 | S125: 0 | T125: 0 | U125: 0 | V125: 0 | W125: 0 | X125: 0 | Y125: 0 | Z125: =SUM(P125:Y125) -> 0 | AB125: PMfilterable | AD125: =P125*C$158/2000 -> 0 | AE125: =Q125*D$158/2000 -> 0 | AF125: 0 | AG125: 0 | AH125: 0 | AI125: 0 | AJ125: 0 | AK125: 0 | AL125: 0 | AM125: 0 | AN125: =SUM(AD125:AM125) -> 0
A126: PM10 | C126: =IF(Engines!W44<>"",Engines!W44,LOOKUP(Calculations!C$124,Calculations!$C$9:$I$9,Calculations!$C12:$I12)) -> 0.31 | D126: =IF(Engines!X44<>"",Engines!X44,LOOKUP(Calculations!D$124,Calculations!$C$9:$I$9,Calculations!$C12:$I12)) -> 0.31 | E126: =IF(Engines!Y44<>"",Engines!Y44,LOOKUP(Calculations!E$124,Calculations!$C$9:$I$9,Calculations!$C12:$I12)) -> 0.31 | F126: =IF(Engines!Z44<>"",Engines!Z44,LOOKUP(Calculations!F$124,Calculations!$C$9:$I$9,Calculations!$C12:$I12)) -> 0.31 | G126: =IF(Engines!AA44<>"",Engines!AA44,LOOKUP(Calculations!G$124,Calculations!$C$9:$I$9,Calculations!$C12:$I12)) -> 0.31 | H126: =IF(Engines!AB44<>"",Engines!AB44,LOOKUP(Calculations!H$124,Calculations!$C$9:$I$9,Calculations!$C12:$I12)) -> 0.31 | I126: =IF(Engines!AC44<>"",Engines!AC44,LOOKUP(Calculations!I$124,Calculations!$C$9:$I$9,Calculations!$C12:$I12)) -> 0.31 | J126: =IF(Engines!AD44<>"",Engines!AD44,LOOKUP(Calculations!J$124,Calculations!$C$9:$I$9,Calculations!$C12:$I12)) -> 0.31 | K126: =IF(Engines!AE44<>"",Engines!AE44,LOOKUP(Calculations!K$124,Calculations!$C$9:$I$9,Calculations!$C12:$I12)) -> 0.31 | L126: =IF(Engines!AF44<>"",Engines!AF44,LOOKUP(Calculations!L$124,Calculations!$C$9:$I$9,Calculations!$C12:$I12)) -> 0.31 | N126: PM10 | P126: 0 | Q126: 0 | R126: 0 | S126: 0 | T126: 0 | U126: 0 | V126: 0 | W126: 0 | X126: 0 | Y126: 0 | Z126: =SUM(P126:Y126) -> 0 | AB126: PM10 | AD126: =P126*C$158/2000 -> 0 | AE126: =Q126*D$158/2000 -> 0 | AF126: =R126*E$158/2000 -> 0 | AG126: =S126*F$158/2000 -> 0 | AH126: =T126*G$158/2000 -> 0 | AI126: =U126*H$158/2000 -> 0 | AJ126: =V126*I$158/2000 -> 0 | AK126: =W126*J$158/2000 -> 0 | AL126: =X126*K$158/2000 -> 0 | AM126: =Y126*L$158/2000 -> 0 | AN126: =SUM(AD126:AM126) -> 0
A127: PM2.5 | C127: =IF(Engines!W45<>"",Engines!W45,LOOKUP(Calculations!C$124,Calculations!$C$9:$I$9,Calculations!$C13:$I13)) -> 0.31 | D127: =IF(Engines!X45<>"",Engines!X45,LOOKUP(Calculations!D$124,Calculations!$C$9:$I$9,Calculations!$C13:$I13)) -> 0.31 | E127: =IF(Engines!Y45<>"",Engines!Y45,LOOKUP(Calculations!E$124,Calculations!$C$9:$I$9,Calculations!$C13:$I13)) -> 0.31 | F127: =IF(Engines!Z45<>"",Engines!Z45,LOOKUP(Calculations!F$124,Calculations!$C$9:$I$9,Calculations!$C13:$I13)) -> 0.31 | G127: =IF(Engines!AA45<>"",Engines!AA45,LOOKUP(Calculations!G$124,Calculations!$C$9:$I$9,Calculations!$C13:$I13)) -> 0.31 | H127: =IF(Engines!AB45<>"",Engines!AB45,LOOKUP(Calculations!H$124,Calculations!$C$9:$I$9,Calculations!$C13:$I13)) -> 0.31 | I127: =IF(Engines!AC45<>"",Engines!AC45,LOOKUP(Calculations!I$124,Calculations!$C$9:$I$9,Calculations!$C13:$I13)) -> 0.31 | J127: =IF(Engines!AD45<>"",Engines!AD45,LOOKUP(Calculations!J$124,Calculations!$C$9:$I$9,Calculations!$C13:$I13)) -> 0.31 | K127: =IF(Engines!AE45<>"",Engines!AE45,LOOKUP(Calculations!K$124,Calculations!$C$9:$I$9,Calculations!$C13:$I13)) -> 0.31 | L127: =IF(Engines!AF45<>"",Engines!AF45,LOOKUP(Calculations!L$124,Calculations!$C$9:$I$9,Calculations!$C13:$I13)) -> 0.31 | N127: PM2.5 | P127: 0 | Q127: 0 | R127: 0 | S127: 0 | T127: 0 | U127: 0 | V127: 0 | W127: 0 | X127: 0 | Y127: 0 | Z127: 0 | AB127: PM2.5 | AD127: 0 | AE127: 0 | AF127: 0 | AG127: 0 | AH127: 0 | AI127: 0 | AJ127: 0 | AK127: 0 | AL127: 0 | AM127: 0 | AN127: 0
A128: SO2 | C128: =IF(Engines!W46<>"",Engines!W46,LOOKUP(Calculations!C$124,Calculations!$C$9:$I$9,Calculations!$C14:$I14)) -> 0.29 | D128: =IF(Engines!X46<>"",Engines!X46,LOOKUP(Calculations!D$124,Calculations!$C$9:$I$9,Calculations!$C14:$I14)) -> 0.29 | E128: =IF(Engines!Y46<>"",Engines!Y46,LOOKUP(Calculations!E$124,Calculations!$C$9:$I$9,Calculations!$C14:$I14)) -> 0.29 | F128: =IF(Engines!Z46<>"",Engines!Z46,LOOKUP(Calculations!F$124,Calculations!$C$9:$I$9,Calculations!$C14:$I14)) -> 0.29 | G128: =IF(Engines!AA46<>"",Engines!AA46,LOOKUP(Calculations!G$124,Calculations!$C$9:$I$9,Calculations!$C14:$I14)) -> 0.29 | H128: =IF(Engines!AB46<>"",Engines!AB46,LOOKUP(Calculations!H$124,Calculations!$C$9:$I$9,Calculations!$C14:$I14)) -> 0.29 | I128: =IF(Engines!AC46<>"",Engines!AC46,LOOKUP(Calculations!I$124,Calculations!$C$9:$I$9,Calculations!$C14:$I14)) -> 0.29 | J128: =IF(Engines!AD46<>"",Engines!AD46,LOOKUP(Calculations!J$124,Calculations!$C$9:$I$9,Calculations!$C14:$I14)) -> 0.29 | K128: =IF(Engines!AE46<>"",Engines!AE46,LOOKUP(Calculations!K$124,Calculations!$C$9:$I$9,Calculations!$C14:$I14)) -> 0.29 | L128: =IF(Engines!AF46<>"",Engines!AF46,LOOKUP(Calculations!L$124,Calculations!$C$9:$I$9,Calculations!$C14:$I14)) -> 0.29 | N128: SO2 | P128: 0 | Q128: 0 | R128: 0 | S128: 0 | T128: 0 | U128: 0 | V128: 0 | W128: 0 | X128: 0 | Y128: 0 | Z128: 0 | AB128: SO2 | AD128: 0 | AE128: 0 | AF128: 0 | AG128: 0 | AH128: 0 | AI128: 0 | AJ128: 0 | AK128: 0 | AL128: 0 | AM128: 0 | AN128: 0
A129: NOx | C129: =IF(Engines!W47<>"",Engines!W47,LOOKUP(Calculations!C$124,Calculations!$C$9:$I$9,Calculations!$C15:$I15)) -> 4.41 | D129: =IF(Engines!X47<>"",Engines!X47,LOOKUP(Calculations!D$124,Calculations!$C$9:$I$9,Calculations!$C15:$I15)) -> 4.41 | E129: =IF(Engines!Y47<>"",Engines!Y47,LOOKUP(Calculations!E$124,Calculations!$C$9:$I$9,Calculations!$C15:$I15)) -> 4.41 | F129: =IF(Engines!Z47<>"",Engines!Z47,LOOKUP(Calculations!F$124,Calculations!$C$9:$I$9,Calculations!$C15:$I15)) -> 4.41 | G129: =IF(Engines!AA47<>"",Engines!AA47,LOOKUP(Calculations!G$124,Calculations!$C$9:$I$9,Calculations!$C15:$I15)) -> 4.41 | H129: =IF(Engines!AB47<>"",Engines!AB47,LOOKUP(Calculations!H$124,Calculations!$C$9:$I$9,Calculations!$C15:$I15)) -> 4.41 | I129: =IF(Engines!AC47<>"",Engines!AC47,LOOKUP(Calculations!I$124,Calculations!$C$9:$I$9,Calculations!$C15:$I15)) -> 4.41 | J129: =IF(Engines!AD47<>"",Engines!AD47,LOOKUP(Calculations!J$124,Calculations!$C$9:$I$9,Calculations!$C15:$I15)) -> 4.41 | K129: =IF(Engines!AE47<>"",Engines!AE47,LOOKUP(Calculations!K$124,Calculations!$C$9:$I$9,Calculations!$C15:$I15)) -> 4.41 | L129: =IF(Engines!AF47<>"",Engines!AF47,LOOKUP(Calculations!L$124,Calculations!$C$9:$I$9,Calculations!$C15:$I15)) -> 4.41 | N129: NOx | P129: 0 | Q129: 0 | R129: 0 | S129: 0 | T129: 0 | U129: 0 | V129: 0 | W129: 0 | X129: 0 | Y129: 0 | Z129: 0 | AB129: NOx | AD129: 0 | AE129: 0 | AF129: 0 | AG129: 0 | AH129: 0 | AI129: 0 | AJ129: 0 | AK129: 0 | AL129: 0 | AM129: 0 | AN129: 0
A130: CO | C130: =IF(Engines!W48<>"",Engines!W48,LOOKUP(Calculations!C$124,Calculations!$C$9:$I$9,Calculations!$C16:$I16)) -> 0.95 | D130: =IF(Engines!X48<>"",Engines!X48,LOOKUP(Calculations!D$124,Calculations!$C$9:$I$9,Calculations!$C16:$I16)) -> 0.95 | E130: =IF(Engines!Y48<>"",Engines!Y48,LOOKUP(Calculations!E$124,Calculations!$C$9:$I$9,Calculations!$C16:$I16)) -> 0.95 | F130: =IF(Engines!Z48<>"",Engines!Z48,LOOKUP(Calculations!F$124,Calculations!$C$9:$I$9,Calculations!$C16:$I16)) -> 0.95 | G130: =IF(Engines!AA48<>"",Engines!AA48,LOOKUP(Calculations!G$124,Calculations!$C$9:$I$9,Calculations!$C16:$I16)) -> 0.95 | H130: =IF(Engines!AB48<>"",Engines!AB48,LOOKUP(Calculations!H$124,Calculations!$C$9:$I$9,Calculations!$C16:$I16)) -> 0.95 | I130: =IF(Engines!AC48<>"",Engines!AC48,LOOKUP(Calculations!I$124,Calculations!$C$9:$I$9,Calculations!$C16:$I16)) -> 0.95 | J130: =IF(Engines!AD48<>"",Engines!AD48,LOOKUP(Calculations!J$124,Calculations!$C$9:$I$9,Calculations!$C16:$I16)) -> 0.95 | K130: =IF(Engines!AE48<>"",Engines!AE48,LOOKUP(Calculations!K$124,Calculations!$C$9:$I$9,Calculations!$C16:$I16)) -> 0.95 | L130: =IF(Engines!AF48<>"",Engines!AF48,LOOKUP(Calculations!L$124,Calculations!$C$9:$I$9,Calculations!$C16:$I16)) -> 0.95 | N130: CO | P130: 0 | Q130: 0 | R130: 0 | S130: 0 | T130: 0 | U130: 0 | V130: 0 | W130: 0 | X130: 0 | Y130: 0 | Z130: 0 | AB130: CO | AD130: 0 | AE130: 0 | AF130: 0 | AG130: 0 | AH130: 0 | AI130: 0 | AJ130: 0 | AK130: 0 | AL130: 0 | AM130: 0 | AN130: 0
A131: VOC | C131: =IF(Engines!W49<>"",Engines!W49,LOOKUP(Calculations!C$124,Calculations!$C$9:$I$9,Calculations!$C17:$I17)) -> 0.36 | D131: =IF(Engines!X49<>"",Engines!X49,LOOKUP(Calculations!D$124,Calculations!$C$9:$I$9,Calculations!$C17:$I17)) -> 0.36 | E131: =IF(Engines!Y49<>"",Engines!Y49,LOOKUP(Calculations!E$124,Calculations!$C$9:$I$9,Calculations!$C17:$I17)) -> 0.36 | F131: =IF(Engines!Z49<>"",Engines!Z49,LOOKUP(Calculations!F$124,Calculations!$C$9:$I$9,Calculations!$C17:$I17)) -> 0.36 | G131: =IF(Engines!AA49<>"",Engines!AA49,LOOKUP(Calculations!G$124,Calculations!$C$9:$I$9,Calculations!$C17:$I17)) -> 0.36 | H131: =IF(Engines!AB49<>"",Engines!AB49,LOOKUP(Calculations!H$124,Calculations!$C$9:$I$9,Calculations!$C17:$I17)) -> 0.36 | I131: =IF(Engines!AC49<>"",Engines!AC49,LOOKUP(Calculations!I$124,Calculations!$C$9:$I$9,Calculations!$C17:$I17)) -> 0.36 | J131: =IF(Engines!AD49<>"",Engines!AD49,LOOKUP(Calculations!J$124,Calculations!$C$9:$I$9,Calculations!$C17:$I17)) -> 0.36 | K131: =IF(Engines!AE49<>"",Engines!AE49,LOOKUP(Calculations!K$124,Calculations!$C$9:$I$9,Calculations!$C17:$I17)) -> 0.36 | L131: =IF(Engines!AF49<>"",Engines!AF49,LOOKUP(Calculations!L$124,Calculations!$C$9:$I$9,Calculations!$C17:$I17)) -> 0.36 | N131: VOC | P131: 0 | Q131: 0 | R131: 0 | S131: 0 | T131: 0 | U131: 0 | V131: 0 | W131: 0 | X131: 0 | Y131: 0 | Z131: 0 | AB131: VOC | AD131: 0 | AE131: 0 | AF131: 0 | AG131: 0 | AH131: 0 | AI131: 0 | AJ131: 0 | AK131: 0 | AL131: 0 | AM131: 0 | AN131: 0
A132: Individual HAP | N132: Individual HAP | AB132: Individual HAP
A133: Acetaldehyde | C133: =IF(Engines!W51<>"",Engines!W51,LOOKUP(Calculations!C$124,Calculations!$C$9:$I$9,Calculations!$C19:$I19)) -> 0.000767 | D133: =IF(Engines!X51<>"",Engines!X51,LOOKUP(Calculations!D$124,Calculations!$C$9:$I$9,Calculations!$C19:$I19)) -> 0.000767 | E133: =IF(Engines!Y51<>"",Engines!Y51,LOOKUP(Calculations!E$124,Calculations!$C$9:$I$9,Calculations!$C19:$I19)) -> 0.000767 | F133: =IF(Engines!Z51<>"",Engines!Z51,LOOKUP(Calculations!F$124,Calculations!$C$9:$I$9,Calculations!$C19:$I19)) -> 0.000767 | G133: =IF(Engines!AA51<>"",Engines!AA51,LOOKUP(Calculations!G$124,Calculations!$C$9:$I$9,Calculations!$C19:$I19)) -> 0.000767 | H133: =IF(Engines!AB51<>"",Engines!AB51,LOOKUP(Calculations!H$124,Calculations!$C$9:$I$9,Calculations!$C19:$I19)) -> 0.000767 | I133: =IF(Engines!AC51<>"",Engines!AC51,LOOKUP(Calculations!I$124,Calculations!$C$9:$I$9,Calculations!$C19:$I19)) -> 0.000767 | J133: =IF(Engines!AD51<>"",Engines!AD51,LOOKUP(Calculations!J$124,Calculations!$C$9:$I$9,Calculations!$C19:$I19)) -> 0.000767 | K133: =IF(Engines!AE51<>"",Engines!AE51,LOOKUP(Calculations!K$124,Calculations!$C$9:$I$9,Calculations!$C19:$I19)) -> 0.000767 | L133: =IF(Engines!AF51<>"",Engines!AF51,LOOKUP(Calculations!L$124,Calculations!$C$9:$I$9,Calculations!$C19:$I19)) -> 0.000767 | N133: Acetaldehyde | P133: =C133*$D$6*C$157 -> 0 | Q133: =D133*$D$6*D$157 -> 0 | R133: =E133*$D$6*E$157 -> 0 | S133: =F133*$D$6*F$157 -> 0 | T133: =G133*$D$6*G$157 -> 0 | U133: =H133*$D$6*H$157 -> 0 | V133: =I133*$D$6*I$157 -> 0 | W133: =J133*$D$6*J$157 -> 0 | X133: =K133*$D$6*K$157 -> 0 | Y133: =L133*$D$6*L$157 -> 0 | Z133: =SUM(P133:Y133) -> 0 | AB133: Acetaldehyde | AD133: =P133*C$158/2000 -> 0 | AE133: =Q133*D$158/2000 -> 0 | AF133: =R133*E$158/2000 -> 0 | AG133: =S133*F$158/2000 -> 0 | AH133: =T133*G$158/2000 -> 0 | AI133: =U133*H$158/2000 -> 0 | AJ133: =V133*I$158/2000 -> 0 | AK133: =W133*J$158/2000 -> 0 | AL133: =X133*K$158/2000 -> 0 | AM133: =Y133*L$158/2000 -> 0 | AN133: =SUM(AD133:AM133) -> 0
A134: Acrolein | C134: =IF(Engines!W52<>"",Engines!W52,LOOKUP(Calculations!C$124,Calculations!$C$9:$I$9,Calculations!$C20:$I20)) -> 9.25e-05 | D134: =IF(Engines!X52<>"",Engines!X52,LOOKUP(Calculations!D$124,Calculations!$C$9:$I$9,Calculations!$C20:$I20)) -> 9.25e-05 | E134: =IF(Engines!Y52<>"",Engines!Y52,LOOKUP(Calculations!E$124,Calculations!$C$9:$I$9,Calculations!$C20:$I20)) -> 9.25e-05 | F134: =IF(Engines!Z52<>"",Engines!Z52,LOOKUP(Calculations!F$124,Calculations!$C$9:$I$9,Calculations!$C20:$I20)) -> 9.25e-05 | G134: =IF(Engines!AA52<>"",Engines!AA52,LOOKUP(Calculations!G$124,Calculations!$C$9:$I$9,Calculations!$C20:$I20)) -> 9.25e-05 | H134: =IF(Engines!AB52<>"",Engines!AB52,LOOKUP(Calculations!H$124,Calculations!$C$9:$I$9,Calculations!$C20:$I20)) -> 9.25e-05 | I134: =IF(Engines!AC52<>"",Engines!AC52,LOOKUP(Calculations!I$124,Calculations!$C$9:$I$9,Calculations!$C20:$I20)) -> 9.25e-05 | J134: =IF(Engines!AD52<>"",Engines!AD52,LOOKUP(Calculations!J$124,Calculations!$C$9:$I$9,Calculations!$C20:$I20)) -> 9.25e-05 | K134: =IF(Engines!AE52<>"",Engines!AE52,LOOKUP(Calculations!K$124,Calculations!$C$9:$I$9,Calculations!$C20:$I20)) -> 9.25e-05 | L134: =IF(Engines!AF52<>"",Engines!AF52,LOOKUP(Calculations!L$124,Calculations!$C$9:$I$9,Calculations!$C20:$I20)) -> 9.25e-05 | N134: Acrolein | P134: 0 | Q134: 0 | R134: 0 | S134: 0 | T134: 0 | U134: 0 | V134: 0 | W134: 0 | X134: 0 | Y134: 0 | Z134: 0 | AB134: Acrolein | AD134: 0 | AE134: 0 | AF134: 0 | AG134: 0 | AH134: 0 | AI134: 0 | AJ134: 0 | AK134: 0 | AL134: 0 | AM134: 0 | AN134: 0
A135: Arsenic compounds | C135: =IF(Engines!W53<>"",Engines!W53,LOOKUP(Calculations!C$124,Calculations!$C$9:$I$9,Calculations!$C21:$I21)) -> 0 | D135: =IF(Engines!X53<>"",Engines!X53,LOOKUP(Calculations!D$124,Calculations!$C$9:$I$9,Calculations!$C21:$I21)) -> 0 | E135: =IF(Engines!Y53<>"",Engines!Y53,LOOKUP(Calculations!E$124,Calculations!$C$9:$I$9,Calculations!$C21:$I21)) -> 0 | F135: =IF(Engines!Z53<>"",Engines!Z53,LOOKUP(Calculations!F$124,Calculations!$C$9:$I$9,Calculations!$C21:$I21)) -> 0 | G135: =IF(Engines!AA53<>"",Engines!AA53,LOOKUP(Calculations!G$124,Calculations!$C$9:$I$9,Calculations!$C21:$I21)) -> 0 | H135: =IF(Engines!AB53<>"",Engines!AB53,LOOKUP(Calculations!H$124,Calculations!$C$9:$I$9,Calculations!$C21:$I21)) -> 0 | I135: =IF(Engines!AC53<>"",Engines!AC53,LOOKUP(Calculations!I$124,Calculations!$C$9:$I$9,Calculations!$C21:$I21)) -> 0 | J135: =IF(Engines!AD53<>"",Engines!AD53,LOOKUP(Calculations!J$124,Calculations!$C$9:$I$9,Calculations!$C21:$I21)) -> 0 | K135: =IF(Engines!AE53<>"",Engines!AE53,LOOKUP(Calculations!K$124,Calculations!$C$9:$I$9,Calculations!$C21:$I21)) -> 0 | L135: =IF(Engines!AF53<>"",Engines!AF53,LOOKUP(Calculations!L$124,Calculations!$C$9:$I$9,Calculations!$C21:$I21)) -> 0 | N135: Arsenic compounds | P135: 0 | Q135: 0 | R135: 0 | S135: 0 | T135: 0 | U135: 0 | V135: 0 | W135: 0 | X135: 0 | Y135: 0 | Z135: 0 | AB135: Arsenic compounds | AD135: 0 | AE135: 0 | AF135: 0 | AG135: 0 | AH135: 0 | AI135: 0 | AJ135: 0 | AK135: 0 | AL135: 0 | AM135: 0 | AN135: 0
A136: Benzene | C136: =IF(Engines!W54<>"",Engines!W54,LOOKUP(Calculations!C$124,Calculations!$C$9:$I$9,Calculations!$C22:$I22)) -> 0.000933 | D136: =IF(Engines!X54<>"",Engines!X54,LOOKUP(Calculations!D$124,Calculations!$C$9:$I$9,Calculations!$C22:$I22)) -> 0.000933 | E136: =IF(Engines!Y54<>"",Engines!Y54,LOOKUP(Calculations!E$124,Calculations!$C$9:$I$9,Calculations!$C22:$I22)) -> 0.000933 | F136: =IF(Engines!Z54<>"",Engines!Z54,LOOKUP(Calculations!F$124,Calculations!$C$9:$I$9,Calculations!$C22:$I22)) -> 0.000933 | G136: =IF(Engines!AA54<>"",Engines!AA54,LOOKUP(Calculations!G$124,Calculations!$C$9:$I$9,Calculations!$C22:$I22)) -> 0.000933 | H136: =IF(Engines!AB54<>"",Engines!AB54,LOOKUP(Calculations!H$124,Calculations!$C$9:$I$9,Calculations!$C22:$I22)) -> 0.000933 | I136: =IF(Engines!AC54<>"",Engines!AC54,LOOKUP(Calculations!I$124,Calculations!$C$9:$I$9,Calculations!$C22:$I22)) -> 0.000933 | J136: =IF(Engines!AD54<>"",Engines!AD54,LOOKUP(Calculations!J$124,Calculations!$C$9:$I$9,Calculations!$C22:$I22)) -> 0.000933 | K136: =IF(Engines!AE54<>"",Engines!AE54,LOOKUP(Calculations!K$124,Calculations!$C$9:$I$9,Calculations!$C22:$I22)) -> 0.000933 | L136: =IF(Engines!AF54<>"",Engines!AF54,LOOKUP(Calculations!L$124,Calculations!$C$9:$I$9,Calculations!$C22:$I22)) -> 0.000933 | N136: Benzene | P136: 0 | Q136: 0 | R136: 0 | S136: 0 | T136: 0 | U136: 0 | V136: 0 | W136: 0 | X136: 0 | Y136: 0 | Z136: 0 | AB136: Benzene | AD136: 0 | AE136: 0 | AF136: 0 | AG136: 0 | AH136: 0 | AI136: 0 | AJ136: 0 | AK136: 0 | AL136: 0 | AM136: 0 | AN136: 0
A137: Benzyl chloride | C137: =IF(Engines!W55<>"",Engines!W55,LOOKUP(Calculations!C$124,Calculations!$C$9:$I$9,Calculations!$C23:$I23)) -> 0 | D137: =IF(Engines!X55<>"",Engines!X55,LOOKUP(Calculations!D$124,Calculations!$C$9:$I$9,Calculations!$C23:$I23)) -> 0 | E137: =IF(Engines!Y55<>"",Engines!Y55,LOOKUP(Calculations!E$124,Calculations!$C$9:$I$9,Calculations!$C23:$I23)) -> 0 | F137: =IF(Engines!Z55<>"",Engines!Z55,LOOKUP(Calculations!F$124,Calculations!$C$9:$I$9,Calculations!$C23:$I23)) -> 0 | G137: =IF(Engines!AA55<>"",Engines!AA55,LOOKUP(Calculations!G$124,Calculations!$C$9:$I$9,Calculations!$C23:$I23)) -> 0 | H137: =IF(Engines!AB55<>"",Engines!AB55,LOOKUP(Calculations!H$124,Calculations!$C$9:$I$9,Calculations!$C23:$I23)) -> 0 | I137: =IF(Engines!AC55<>"",Engines!AC55,LOOKUP(Calculations!I$124,Calculations!$C$9:$I$9,Calculations!$C23:$I23)) -> 0 | J137: =IF(Engines!AD55<>"",Engines!AD55,LOOKUP(Calculations!J$124,Calculations!$C$9:$I$9,Calculations!$C23:$I23)) -> 0 | K137: =IF(Engines!AE55<>"",Engines!AE55,LOOKUP(Calculations!K$124,Calculations!$C$9:$I$9,Calculations!$C23:$I23)) -> 0 | L137: =IF(Engines!AF55<>"",Engines!AF55,LOOKUP(Calculations!L$124,Calculations!$C$9:$I$9,Calculations!$C23:$I23)) -> 0 | N137: Benzyl chloride | P137: 0 | Q137: 0 | R137: 0 | S137: 0 | T137: 0 | U137: 0 | V137: 0 | W137: 0 | X137: 0 | Y137: 0 | Z137: 0 | AB137: Benzyl chloride | AD137: 0 | AE137: 0 | AF137: 0 | AG137: 0 | AH137: 0 | AI137: 0 | AJ137: 0 | AK137: 0 | AL137: 0 | AM137: 0 | AN137: 0
A138: Beryllium compounds | C138: =IF(Engines!W56<>"",Engines!W56,LOOKUP(Calculations!C$124,Calculations!$C$9:$I$9,Calculations!$C24:$I24)) -> 0 | D138: =IF(Engines!X56<>"",Engines!X56,LOOKUP(Calculations!D$124,Calculations!$C$9:$I$9,Calculations!$C24:$I24)) -> 0 | E138: =IF(Engines!Y56<>"",Engines!Y56,LOOKUP(Calculations!E$124,Calculations!$C$9:$I$9,Calculations!$C24:$I24)) -> 0 | F138: =IF(Engines!Z56<>"",Engines!Z56,LOOKUP(Calculations!F$124,Calculations!$C$9:$I$9,Calculations!$C24:$I24)) -> 0 | G138: =IF(Engines!AA56<>"",Engines!AA56,LOOKUP(Calculations!G$124,Calculations!$C$9:$I$9,Calculations!$C24:$I24)) -> 0 | H138: =IF(Engines!AB56<>"",Engines!AB56,LOOKUP(Calculations!H$124,Calculations!$C$9:$I$9,Calculations!$C24:$I24)) -> 0 | I138: =IF(Engines!AC56<>"",Engines!AC56,LOOKUP(Calculations!I$124,Calculations!$C$9:$I$9,Calculations!$C24:$I24)) -> 0 | J138: =IF(Engines!AD56<>"",Engines!AD56,LOOKUP(Calculations!J$124,Calculations!$C$9:$I$9,Calculations!$C24:$I24)) -> 0 | K138: =IF(Engines!AE56<>"",Engines!AE56,LOOKUP(Calculations!K$124,Calculations!$C$9:$I$9,Calculations!$C24:$I24)) -> 0 | L138: =IF(Engines!AF56<>"",Engines!AF56,LOOKUP(Calculations!L$124,Calculations!$C$9:$I$9,Calculations!$C24:$I24)) -> 0 | N138: Beryllium compounds | P138: 0 | Q138: 0 | R138: 0 | S138: 0 | T138: 0 | U138: 0 | V138: 0 | W138: 0 | X138: 0 | Y138: 0 | Z138: 0 | AB138: Beryllium compounds | AD138: 0 | AE138: 0 | AF138: 0 | AG138: 0 | AH138: 0 | AI138: 0 | AJ138: 0 | AK138: 0 | AL138: 0 | AM138: 0 | AN138: 0
A139: Cadmium compounds | C139: =IF(Engines!W57<>"",Engines!W57,LOOKUP(Calculations!C$124,Calculations!$C$9:$I$9,Calculations!$C25:$I25)) -> 0 | D139: =IF(Engines!X57<>"",Engines!X57,LOOKUP(Calculations!D$124,Calculations!$C$9:$I$9,Calculations!$C25:$I25)) -> 0 | E139: =IF(Engines!Y57<>"",Engines!Y57,LOOKUP(Calculations!E$124,Calculations!$C$9:$I$9,Calculations!$C25:$I25)) -> 0 | F139: =IF(Engines!Z57<>"",Engines!Z57,LOOKUP(Calculations!F$124,Calculations!$C$9:$I$9,Calculations!$C25:$I25)) -> 0 | G139: =IF(Engines!AA57<>"",Engines!AA57,LOOKUP(Calculations!G$124,Calculations!$C$9:$I$9,Calculations!$C25:$I25)) -> 0 | H139: =IF(Engines!AB57<>"",Engines!AB57,LOOKUP(Calculations!H$124,Calculations!$C$9:$I$9,Calculations!$C25:$I25)) -> 0 | I139: =IF(Engines!AC57<>"",Engines!AC57,LOOKUP(Calculations!I$124,Calculations!$C$9:$I$9,Calculations!$C25:$I25)) -> 0 | J139: =IF(Engines!AD57<>"",Engines!AD57,LOOKUP(Calculations!J$124,Calculations!$C$9:$I$9,Calculations!$C25:$I25)) -> 0 | K139: =IF(Engines!AE57<>"",Engines!AE57,LOOKUP(Calculations!K$124,Calculations!$C$9:$I$9,Calculations!$C25:$I25)) -> 0 | L139: =IF(Engines!AF57<>"",Engines!AF57,LOOKUP(Calculations!L$124,Calculations!$C$9:$I$9,Calculations!$C25:$I25)) -> 0 | N139: Cadmium compounds | P139: 0 | Q139: 0 | R139: 0 | S139: 0 | T139: 0 | U139: 0 | V139: 0 | W139: 0 | X139: 0 | Y139: 0 | Z139: 0 | AB139: Cadmium compounds | AD139: 0 | AE139: 0 | AF139: 0 | AG139: 0 | AH139: 0 | AI139: 0 | AJ139: 0 | AK139: 0 | AL139: 0 | AM139: 0 | AN139: 0
A140: Cyanide compounds | C140: =IF(Engines!W58<>"",Engines!W58,LOOKUP(Calculations!C$124,Calculations!$C$9:$I$9,Calculations!$C26:$I26)) -> 0 | D140: =IF(Engines!X58<>"",Engines!X58,LOOKUP(Calculations!D$124,Calculations!$C$9:$I$9,Calculations!$C26:$I26)) -> 0 | E140: =IF(Engines!Y58<>"",Engines!Y58,LOOKUP(Calculations!E$124,Calculations!$C$9:$I$9,Calculations!$C26:$I26)) -> 0 | F140: =IF(Engines!Z58<>"",Engines!Z58,LOOKUP(Calculations!F$124,Calculations!$C$9:$I$9,Calculations!$C26:$I26)) -> 0 | G140: =IF(Engines!AA58<>"",Engines!AA58,LOOKUP(Calculations!G$124,Calculations!$C$9:$I$9,Calculations!$C26:$I26)) -> 0 | H140: =IF(Engines!AB58<>"",Engines!AB58,LOOKUP(Calculations!H$124,Calculations!$C$9:$I$9,Calculations!$C26:$I26)) -> 0 | I140: =IF(Engines!AC58<>"",Engines!AC58,LOOKUP(Calculations!I$124,Calculations!$C$9:$I$9,Calculations!$C26:$I26)) -> 0 | J140: =IF(Engines!AD58<>"",Engines!AD58,LOOKUP(Calculations!J$124,Calculations!$C$9:$I$9,Calculations!$C26:$I26)) -> 0 | K140: =IF(Engines!AE58<>"",Engines!AE58,LOOKUP(Calculations!K$124,Calculations!$C$9:$I$9,Calculations!$C26:$I26)) -> 0 | L140: =IF(Engines!AF58<>"",Engines!AF58,LOOKUP(Calculations!L$124,Calculations!$C$9:$I$9,Calculations!$C26:$I26)) -> 0 | N140: Cyanide compounds | P140: 0 | Q140: 0 | R140: 0 | S140: 0 | T140: 0 | U140: 0 | V140: 0 | W140: 0 | X140: 0 | Y140: 0 | Z140: 0 | AB140: Cyanide compounds | AD140: 0 | AE140: 0 | AF140: 0 | AG140: 0 | AH140: 0 | AI140: 0 | AJ140: 0 | AK140: 0 | AL140: 0 | AM140: 0 | AN140: 0
A141: Formaldehyde | C141: =IF(Engines!W59<>"",Engines!W59,LOOKUP(Calculations!C$124,Calculations!$C$9:$I$9,Calculations!$C27:$I27)) -> 0.00118 | D141: =IF(Engines!X59<>"",Engines!X59,LOOKUP(Calculations!D$124,Calculations!$C$9:$I$9,Calculations!$C27:$I27)) -> 0.00118 | E141: =IF(Engines!Y59<>"",Engines!Y59,LOOKUP(Calculations!E$124,Calculations!$C$9:$I$9,Calculations!$C27:$I27)) -> 0.00118 | F141: =IF(Engines!Z59<>"",Engines!Z59,LOOKUP(Calculations!F$124,Calculations!$C$9:$I$9,Calculations!$C27:$I27)) -> 0.00118 | G141: =IF(Engines!AA59<>"",Engines!AA59,LOOKUP(Calculations!G$124,Calculations!$C$9:$I$9,Calculations!$C27:$I27)) -> 0.00118 | H141: =IF(Engines!AB59<>"",Engines!AB59,LOOKUP(Calculations!H$124,Calculations!$C$9:$I$9,Calculations!$C27:$I27)) -> 0.00118 | I141: =IF(Engines!AC59<>"",Engines!AC59,LOOKUP(Calculations!I$124,Calculations!$C$9:$I$9,Calculations!$C27:$I27)) -> 0.00118 | J141: =IF(Engines!AD59<>"",Engines!AD59,LOOKUP(Calculations!J$124,Calculations!$C$9:$I$9,Calculations!$C27:$I27)) -> 0.00118 | K141: =IF(Engines!AE59<>"",Engines!AE59,LOOKUP(Calculations!K$124,Calculations!$C$9:$I$9,Calculations!$C27:$I27)) -> 0.00118 | L141: =IF(Engines!AF59<>"",Engines!AF59,LOOKUP(Calculations!L$124,Calculations!$C$9:$I$9,Calculations!$C27:$I27)) -> 0.00118 | N141: Formaldehyde | P141: 0 | Q141: 0 | R141: 0 | S141: 0 | T141: 0 | U141: 0 | V141: 0 | W141: 0 | X141: 0 | Y141: 0 | Z141: 0 | AB141: Formaldehyde | AD141: 0 | AE141: 0 | AF141: 0 | AG141: 0 | AH141: 0 | AI141: 0 | AJ141: 0 | AK141: 0 | AL141: 0 | AM141: 0 | AN141: 0
A142: n-Hexane | C142: =IF(Engines!W60<>"",Engines!W60,LOOKUP(Calculations!C$124,Calculations!$C$9:$I$9,Calculations!$C28:$I28)) -> 0 | D142: =IF(Engines!X60<>"",Engines!X60,LOOKUP(Calculations!D$124,Calculations!$C$9:$I$9,Calculations!$C28:$I28)) -> 0 | E142: =IF(Engines!Y60<>"",Engines!Y60,LOOKUP(Calculations!E$124,Calculations!$C$9:$I$9,Calculations!$C28:$I28)) -> 0 | F142: =IF(Engines!Z60<>"",Engines!Z60,LOOKUP(Calculations!F$124,Calculations!$C$9:$I$9,Calculations!$C28:$I28)) -> 0 | G142: =IF(Engines!AA60<>"",Engines!AA60,LOOKUP(Calculations!G$124,Calculations!$C$9:$I$9,Calculations!$C28:$I28)) -> 0 | H142: =IF(Engines!AB60<>"",Engines!AB60,LOOKUP(Calculations!H$124,Calculations!$C$9:$I$9,Calculations!$C28:$I28)) -> 0 | I142: =IF(Engines!AC60<>"",Engines!AC60,LOOKUP(Calculations!I$124,Calculations!$C$9:$I$9,Calculations!$C28:$I28)) -> 0 | J142: =IF(Engines!AD60<>"",Engines!AD60,LOOKUP(Calculations!J$124,Calculations!$C$9:$I$9,Calculations!$C28:$I28)) -> 0 | K142: =IF(Engines!AE60<>"",Engines!AE60,LOOKUP(Calculations!K$124,Calculations!$C$9:$I$9,Calculations!$C28:$I28)) -> 0 | L142: =IF(Engines!AF60<>"",Engines!AF60,LOOKUP(Calculations!L$124,Calculations!$C$9:$I$9,Calculations!$C28:$I28)) -> 0 | N142: n-Hexane | P142: 0 | Q142: 0 | R142: 0 | S142: 0 | T142: 0 | U142: 0 | V142: 0 | W142: 0 | X142: 0 | Y142: 0 | Z142: 0 | AB142: n-Hexane | AD142: 0 | AE142: 0 | AF142: 0 | AG142: 0 | AH142: 0 | AI142: 0 | AJ142: 0 | AK142: 0 | AL142: 0 | AM142: 0 | AN142: 0
A143: Hydrochloric acid | C143: =IF(Engines!W61<>"",Engines!W61,LOOKUP(Calculations!C$124,Calculations!$C$9:$I$9,Calculations!$C29:$I29)) -> 0 | D143: =IF(Engines!X61<>"",Engines!X61,LOOKUP(Calculations!D$124,Calculations!$C$9:$I$9,Calculations!$C29:$I29)) -> 0 | E143: =IF(Engines!Y61<>"",Engines!Y61,LOOKUP(Calculations!E$124,Calculations!$C$9:$I$9,Calculations!$C29:$I29)) -> 0 | F143: =IF(Engines!Z61<>"",Engines!Z61,LOOKUP(Calculations!F$124,Calculations!$C$9:$I$9,Calculations!$C29:$I29)) -> 0 | G143: =IF(Engines!AA61<>"",Engines!AA61,LOOKUP(Calculations!G$124,Calculations!$C$9:$I$9,Calculations!$C29:$I29)) -> 0 | H143: =IF(Engines!AB61<>"",Engines!AB61,LOOKUP(Calculations!H$124,Calculations!$C$9:$I$9,Calculations!$C29:$I29)) -> 0 | I143: =IF(Engines!AC61<>"",Engines!AC61,LOOKUP(Calculations!I$124,Calculations!$C$9:$I$9,Calculations!$C29:$I29)) -> 0 | J143: =IF(Engines!AD61<>"",Engines!AD61,LOOKUP(Calculations!J$124,Calculations!$C$9:$I$9,Calculations!$C29:$I29)) -> 0 | K143: =IF(Engines!AE61<>"",Engines!AE61,LOOKUP(Calculations!K$124,Calculations!$C$9:$I$9,Calculations!$C29:$I29)) -> 0 | L143: =IF(Engines!AF61<>"",Engines!AF61,LOOKUP(Calculations!L$124,Calculations!$C$9:$I$9,Calculations!$C29:$I29)) -> 0 | N143: Hydrochloric acid | P143: 0 | Q143: 0 | R143: 0 | S143: 0 | T143: 0 | U143: 0 | V143: 0 | W143: 0 | X143: 0 | Y143: 0 | Z143: 0 | AB143: Hydrochloric acid | AD143: 0 | AE143: 0 | AF143: 0 | AG143: 0 | AH143: 0 | AI143: 0 | AJ143: 0 | AK143: 0 | AL143: 0 | AM143: 0 | AN143: 0
A144: Lead Compounds | C144: =IF(Engines!W62<>"",Engines!W62,LOOKUP(Calculations!C$124,Calculations!$C$9:$I$9,Calculations!$C30:$I30)) -> 0 | D144: =IF(Engines!X62<>"",Engines!X62,LOOKUP(Calculations!D$124,Calculations!$C$9:$I$9,Calculations!$C30:$I30)) -> 0 | E144: =IF(Engines!Y62<>"",Engines!Y62,LOOKUP(Calculations!E$124,Calculations!$C$9:$I$9,Calculations!$C30:$I30)) -> 0 | F144: =IF(Engines!Z62<>"",Engines!Z62,LOOKUP(Calculations!F$124,Calculations!$C$9:$I$9,Calculations!$C30:$I30)) -> 0 | G144: =IF(Engines!AA62<>"",Engines!AA62,LOOKUP(Calculations!G$124,Calculations!$C$9:$I$9,Calculations!$C30:$I30)) -> 0 | H144: =IF(Engines!AB62<>"",Engines!AB62,LOOKUP(Calculations!H$124,Calculations!$C$9:$I$9,Calculations!$C30:$I30)) -> 0 | I144: =IF(Engines!AC62<>"",Engines!AC62,LOOKUP(Calculations!I$124,Calculations!$C$9:$I$9,Calculations!$C30:$I30)) -> 0 | J144: =IF(Engines!AD62<>"",Engines!AD62,LOOKUP(Calculations!J$124,Calculations!$C$9:$I$9,Calculations!$C30:$I30)) -> 0 | K144: =IF(Engines!AE62<>"",Engines!AE62,LOOKUP(Calculations!K$124,Calculations!$C$9:$I$9,Calculations!$C30:$I30)) -> 0 | L144: =IF(Engines!AF62<>"",Engines!AF62,LOOKUP(Calculations!L$124,Calculations!$C$9:$I$9,Calculations!$C30:$I30)) -> 0 | N144: Lead Compounds | P144: 0 | Q144: 0 | R144: 0 | S144: 0 | T144: 0 | U144: 0 | V144: 0 | W144: 0 | X144: 0 | Y144: 0 | Z144: 0 | AB144: Lead Compounds | AD144: 0 | AE144: 0 | AF144: 0 | AG144: 0 | AH144: 0 | AI144: 0 | AJ144: 0 | AK144: 0 | AL144: 0 | AM144: 0 | AN144: 0
A145: Mercury compounds | C145: =IF(Engines!W63<>"",Engines!W63,LOOKUP(Calculations!C$124,Calculations!$C$9:$I$9,Calculations!$C31:$I31)) -> 0 | D145: =IF(Engines!X63<>"",Engines!X63,LOOKUP(Calculations!D$124,Calculations!$C$9:$I$9,Calculations!$C31:$I31)) -> 0 | E145: =IF(Engines!Y63<>"",Engines!Y63,LOOKUP(Calculations!E$124,Calculations!$C$9:$I$9,Calculations!$C31:$I31)) -> 0 | F145: =IF(Engines!Z63<>"",Engines!Z63,LOOKUP(Calculations!F$124,Calculations!$C$9:$I$9,Calculations!$C31:$I31)) -> 0 | G145: =IF(Engines!AA63<>"",Engines!AA63,LOOKUP(Calculations!G$124,Calculations!$C$9:$I$9,Calculations!$C31:$I31)) -> 0 | H145: =IF(Engines!AB63<>"",Engines!AB63,LOOKUP(Calculations!H$124,Calculations!$C$9:$I$9,Calculations!$C31:$I31)) -> 0 | I145: =IF(Engines!AC63<>"",Engines!AC63,LOOKUP(Calculations!I$124,Calculations!$C$9:$I$9,Calculations!$C31:$I31)) -> 0 | J145: =IF(Engines!AD63<>"",Engines!AD63,LOOKUP(Calculations!J$124,Calculations!$C$9:$I$9,Calculations!$C31:$I31)) -> 0 | K145: =IF(Engines!AE63<>"",Engines!AE63,LOOKUP(Calculations!K$124,Calculations!$C$9:$I$9,Calculations!$C31:$I31)) -> 0 | L145: =IF(Engines!AF63<>"",Engines!AF63,LOOKUP(Calculations!L$124,Calculations!$C$9:$I$9,Calculations!$C31:$I31)) -> 0 | N145: Mercury compounds | P145: 0 | Q145: 0 | R145: 0 | S145: 0 | T145: 0 | U145: 0 | V145: 0 | W145: 0 | X145: 0 | Y145: 0 | Z145: 0 | AB145: Mercury compounds | AD145: 0 | AE145: 0 | AF145: 0 | AG145: 0 | AH145: 0 | AI145: 0 | AJ145: 0 | AK145: 0 | AL145: 0 | AM145: 0 | AN145: 0
A146: Methanol | C146: =IF(Engines!W64<>"",Engines!W64,LOOKUP(Calculations!C$124,Calculations!$C$9:$I$9,Calculations!$C32:$I32)) -> 0 | D146: =IF(Engines!X64<>"",Engines!X64,LOOKUP(Calculations!D$124,Calculations!$C$9:$I$9,Calculations!$C32:$I32)) -> 0 | E146: =IF(Engines!Y64<>"",Engines!Y64,LOOKUP(Calculations!E$124,Calculations!$C$9:$I$9,Calculations!$C32:$I32)) -> 0 | F146: =IF(Engines!Z64<>"",Engines!Z64,LOOKUP(Calculations!F$124,Calculations!$C$9:$I$9,Calculations!$C32:$I32)) -> 0 | G146: =IF(Engines!AA64<>"",Engines!AA64,LOOKUP(Calculations!G$124,Calculations!$C$9:$I$9,Calculations!$C32:$I32)) -> 0 | H146: =IF(Engines!AB64<>"",Engines!AB64,LOOKUP(Calculations!H$124,Calculations!$C$9:$I$9,Calculations!$C32:$I32)) -> 0 | I146: =IF(Engines!AC64<>"",Engines!AC64,LOOKUP(Calculations!I$124,Calculations!$C$9:$I$9,Calculations!$C32:$I32)) -> 0 | J146: =IF(Engines!AD64<>"",Engines!AD64,LOOKUP(Calculations!J$124,Calculations!$C$9:$I$9,Calculations!$C32:$I32)) -> 0 | K146: =IF(Engines!AE64<>"",Engines!AE64,LOOKUP(Calculations!K$124,Calculations!$C$9:$I$9,Calculations!$C32:$I32)) -> 0 | L146: =IF(Engines!AF64<>"",Engines!AF64,LOOKUP(Calculations!L$124,Calculations!$C$9:$I$9,Calculations!$C32:$I32)) -> 0 | N146: Methanol | P146: 0 | Q146: 0 | R146: 0 | S146: 0 | T146: 0 | U146: 0 | V146: 0 | W146: 0 | X146: 0 | Y146: 0 | Z146: 0 | AB146: Methanol | AD146: 0 | AE146: 0 | AF146: 0 | AG146: 0 | AH146: 0 | AI146: 0 | AJ146: 0 | AK146: 0 | AL146: 0 | AM146: 0 | AN146: 0
A147: Methyl hydrazine | C147: =IF(Engines!W65<>"",Engines!W65,LOOKUP(Calculations!C$124,Calculations!$C$9:$I$9,Calculations!$C33:$I33)) -> 0 | D147: =IF(Engines!X65<>"",Engines!X65,LOOKUP(Calculations!D$124,Calculations!$C$9:$I$9,Calculations!$C33:$I33)) -> 0 | E147: =IF(Engines!Y65<>"",Engines!Y65,LOOKUP(Calculations!E$124,Calculations!$C$9:$I$9,Calculations!$C33:$I33)) -> 0 | F147: =IF(Engines!Z65<>"",Engines!Z65,LOOKUP(Calculations!F$124,Calculations!$C$9:$I$9,Calculations!$C33:$I33)) -> 0 | G147: =IF(Engines!AA65<>"",Engines!AA65,LOOKUP(Calculations!G$124,Calculations!$C$9:$I$9,Calculations!$C33:$I33)) -> 0 | H147: =IF(Engines!AB65<>"",Engines!AB65,LOOKUP(Calculations!H$124,Calculations!$C$9:$I$9,Calculations!$C33:$I33)) -> 0 | I147: =IF(Engines!AC65<>"",Engines!AC65,LOOKUP(Calculations!I$124,Calculations!$C$9:$I$9,Calculations!$C33:$I33)) -> 0 | J147: =IF(Engines!AD65<>"",Engines!AD65,LOOKUP(Calculations!J$124,Calculations!$C$9:$I$9,Calculations!$C33:$I33)) -> 0 | K147: =IF(Engines!AE65<>"",Engines!AE65,LOOKUP(Calculations!K$124,Calculations!$C$9:$I$9,Calculations!$C33:$I33)) -> 0 | L147: =IF(Engines!AF65<>"",Engines!AF65,LOOKUP(Calculations!L$124,Calculations!$C$9:$I$9,Calculations!$C33:$I33)) -> 0 | N147: Methyl hydrazine | P147: 0 | Q147: 0 | R147: 0 | S147: 0 | T147: 0 | U147: 0 | V147: 0 | W147: 0 | X147: 0 | Y147: 0 | Z147: 0 | AB147: Methyl hydrazine | AD147: 0 | AE147: 0 | AF147: 0 | AG147: 0 | AH147: 0 | AI147: 0 | AJ147: 0 | AK147: 0 | AL147: 0 | AM147: 0 | AN147: 0
A148: Selenium compounds | C148: =IF(Engines!W66<>"",Engines!W66,LOOKUP(Calculations!C$124,Calculations!$C$9:$I$9,Calculations!$C34:$I34)) -> 0 | D148: =IF(Engines!X66<>"",Engines!X66,LOOKUP(Calculations!D$124,Calculations!$C$9:$I$9,Calculations!$C34:$I34)) -> 0 | E148: =IF(Engines!Y66<>"",Engines!Y66,LOOKUP(Calculations!E$124,Calculations!$C$9:$I$9,Calculations!$C34:$I34)) -> 0 | F148: =IF(Engines!Z66<>"",Engines!Z66,LOOKUP(Calculations!F$124,Calculations!$C$9:$I$9,Calculations!$C34:$I34)) -> 0 | G148: =IF(Engines!AA66<>"",Engines!AA66,LOOKUP(Calculations!G$124,Calculations!$C$9:$I$9,Calculations!$C34:$I34)) -> 0 | H148: =IF(Engines!AB66<>"",Engines!AB66,LOOKUP(Calculations!H$124,Calculations!$C$9:$I$9,Calculations!$C34:$I34)) -> 0 | I148: =IF(Engines!AC66<>"",Engines!AC66,LOOKUP(Calculations!I$124,Calculations!$C$9:$I$9,Calculations!$C34:$I34)) -> 0 | J148: =IF(Engines!AD66<>"",Engines!AD66,LOOKUP(Calculations!J$124,Calculations!$C$9:$I$9,Calculations!$C34:$I34)) -> 0 | K148: =IF(Engines!AE66<>"",Engines!AE66,LOOKUP(Calculations!K$124,Calculations!$C$9:$I$9,Calculations!$C34:$I34)) -> 0 | L148: =IF(Engines!AF66<>"",Engines!AF66,LOOKUP(Calculations!L$124,Calculations!$C$9:$I$9,Calculations!$C34:$I34)) -> 0 | N148: Selenium compounds | P148: 0 | Q148: 0 | R148: 0 | S148: 0 | T148: 0 | U148: 0 | V148: 0 | W148: 0 | X148: 0 | Y148: 0 | Z148: 0 | AB148: Selenium compounds | AD148: 0 | AE148: 0 | AF148: 0 | AG148: 0 | AH148: 0 | AI148: 0 | AJ148: 0 | AK148: 0 | AL148: 0 | AM148: 0 | AN148: 0
A149: Other HAPs | C149: =IF(Engines!W67<>"",Engines!W67,LOOKUP(Calculations!C$124,Calculations!$C$9:$I$9,Calculations!$C35:$I35)) -> 0.0009011 | D149: =IF(Engines!X67<>"",Engines!X67,LOOKUP(Calculations!D$124,Calculations!$C$9:$I$9,Calculations!$C35:$I35)) -> 0.0009011 | E149: =IF(Engines!Y67<>"",Engines!Y67,LOOKUP(Calculations!E$124,Calculations!$C$9:$I$9,Calculations!$C35:$I35)) -> 0.0009011 | F149: =IF(Engines!Z67<>"",Engines!Z67,LOOKUP(Calculations!F$124,Calculations!$C$9:$I$9,Calculations!$C35:$I35)) -> 0.0009011 | G149: =IF(Engines!AA67<>"",Engines!AA67,LOOKUP(Calculations!G$124,Calculations!$C$9:$I$9,Calculations!$C35:$I35)) -> 0.0009011 | H149: =IF(Engines!AB67<>"",Engines!AB67,LOOKUP(Calculations!H$124,Calculations!$C$9:$I$9,Calculations!$C35:$I35)) -> 0.0009011 | I149: =IF(Engines!AC67<>"",Engines!AC67,LOOKUP(Calculations!I$124,Calculations!$C$9:$I$9,Calculations!$C35:$I35)) -> 0.0009011 | J149: =IF(Engines!AD67<>"",Engines!AD67,LOOKUP(Calculations!J$124,Calculations!$C$9:$I$9,Calculations!$C35:$I35)) -> 0.0009011 | K149: =IF(Engines!AE67<>"",Engines!AE67,LOOKUP(Calculations!K$124,Calculations!$C$9:$I$9,Calculations!$C35:$I35)) -> 0.0009011 | L149: =IF(Engines!AF67<>"",Engines!AF67,LOOKUP(Calculations!L$124,Calculations!$C$9:$I$9,Calculations!$C35:$I35)) -> 0.0009011 | N149: Other HAPs | P149: 0 | Q149: 0 | R149: 0 | S149: 0 | T149: 0 | U149: 0 | V149: 0 | W149: 0 | X149: 0 | Y149: 0 | Z149: 0 | AB149: Other HAPs | AD149: 0 | AE149: 0 | AF149: 0 | AG149: 0 | AH149: 0 | AI149: 0 | AJ149: 0 | AK149: 0 | AL149: 0 | AM149: 0 | AN149: 0
A150: Total HAPs | C150: =IF(Engines!W68<>"",Engines!W68,LOOKUP(Calculations!C$124,Calculations!$C$9:$I$9,Calculations!$C36:$I36)) -> 0.0038736 | D150: =IF(Engines!X68<>"",Engines!X68,LOOKUP(Calculations!D$124,Calculations!$C$9:$I$9,Calculations!$C36:$I36)) -> 0.0038736 | E150: =IF(Engines!Y68<>"",Engines!Y68,LOOKUP(Calculations!E$124,Calculations!$C$9:$I$9,Calculations!$C36:$I36)) -> 0.0038736 | F150: =IF(Engines!Z68<>"",Engines!Z68,LOOKUP(Calculations!F$124,Calculations!$C$9:$I$9,Calculations!$C36:$I36)) -> 0.0038736 | G150: =IF(Engines!AA68<>"",Engines!AA68,LOOKUP(Calculations!G$124,Calculations!$C$9:$I$9,Calculations!$C36:$I36)) -> 0.0038736 | H150: =IF(Engines!AB68<>"",Engines!AB68,LOOKUP(Calculations!H$124,Calculations!$C$9:$I$9,Calculations!$C36:$I36)) -> 0.0038736 | I150: =IF(Engines!AC68<>"",Engines!AC68,LOOKUP(Calculations!I$124,Calculations!$C$9:$I$9,Calculations!$C36:$I36)) -> 0.0038736 | J150: =IF(Engines!AD68<>"",Engines!AD68,LOOKUP(Calculations!J$124,Calculations!$C$9:$I$9,Calculations!$C36:$I36)) -> 0.0038736 | K150: =IF(Engines!AE68<>"",Engines!AE68,LOOKUP(Calculations!K$124,Calculations!$C$9:$I$9,Calculations!$C36:$I36)) -> 0.0038736 | L150: =IF(Engines!AF68<>"",Engines!AF68,LOOKUP(Calculations!L$124,Calculations!$C$9:$I$9,Calculations!$C36:$I36)) -> 0.0038736 | N150: Total HAPs | P150: 0 | Q150: 0 | R150: 0 | S150: 0 | T150: 0 | U150: 0 | V150: 0 | W150: 0 | X150: 0 | Y150: 0 | Z150: 0 | AB150: Total HAPs | AD150: 0 | AE150: 0 | AF150: 0 | AG150: 0 | AH150: 0 | AI150: 0 | AJ150: 0 | AK150: 0 | AL150: 0 | AM150: 0 | AN150: 0
A151: Green House Gasses | N151: Green House Gasses | AB151: Green House Gasses
A152: Carbon Dioxide (CO2) | C152: =IF(Engines!W70<>"",Engines!W70,LOOKUP(Calculations!C$124,Calculations!$C$9:$I$9,Calculations!$C38:$I38)) -> 73.96 | D152: =IF(Engines!X70<>"",Engines!X70,LOOKUP(Calculations!D$124,Calculations!$C$9:$I$9,Calculations!$C38:$I38)) -> 73.96 | E152: =IF(Engines!Y70<>"",Engines!Y70,LOOKUP(Calculations!E$124,Calculations!$C$9:$I$9,Calculations!$C38:$I38)) -> 73.96 | F152: =IF(Engines!Z70<>"",Engines!Z70,LOOKUP(Calculations!F$124,Calculations!$C$9:$I$9,Calculations!$C38:$I38)) -> 73.96 | G152: =IF(Engines!AA70<>"",Engines!AA70,LOOKUP(Calculations!G$124,Calculations!$C$9:$I$9,Calculations!$C38:$I38)) -> 73.96 | H152: =IF(Engines!AB70<>"",Engines!AB70,LOOKUP(Calculations!H$124,Calculations!$C$9:$I$9,Calculations!$C38:$I38)) -> 73.96 | I152: =IF(Engines!AC70<>"",Engines!AC70,LOOKUP(Calculations!I$124,Calculations!$C$9:$I$9,Calculations!$C38:$I38)) -> 73.96 | J152: =IF(Engines!AD70<>"",Engines!AD70,LOOKUP(Calculations!J$124,Calculations!$C$9:$I$9,Calculations!$C38:$I38)) -> 73.96 | K152: =IF(Engines!AE70<>"",Engines!AE70,LOOKUP(Calculations!K$124,Calculations!$C$9:$I$9,Calculations!$C38:$I38)) -> 73.96 | L152: =IF(Engines!AF70<>"",Engines!AF70,LOOKUP(Calculations!L$124,Calculations!$C$9:$I$9,Calculations!$C38:$I38)) -> 73.96 | N152: Carbon Dioxide (CO2) | P152: =C152*$D$6*C$157*2.20462 -> 0 | Q152: 0 | R152: 0 | S152: 0 | T152: 0 | U152: 0 | V152: 0 | W152: 0 | X152: 0 | Y152: 0 | Z152: =SUM(P152:Y152) -> 0 | AB152: Carbon Dioxide (CO2) | AD152: =P152*C$158/2000 -> 0 | AE152: =Q152*D$158/2000 -> 0 | AF152: =R152*E$158/2000 -> 0 | AG152: =S152*F$158/2000 -> 0 | AH152: =T152*G$158/2000 -> 0 | AI152: =U152*H$158/2000 -> 0 | AJ152: =V152*I$158/2000 -> 0 | AK152: =W152*J$158/2000 -> 0 | AL152: =X152*K$158/2000 -> 0 | AM152: =Y152*L$158/2000 -> 0 | AN152: =SUM(AD152:AM152) -> 0
A153: Methane (CH4) | C153: =IF(Engines!W71<>"",Engines!W71,LOOKUP(Calculations!C$124,Calculations!$C$9:$I$9,Calculations!$C39:$I39)) -> 0.003 | D153: =IF(Engines!X71<>"",Engines!X71,LOOKUP(Calculations!D$124,Calculations!$C$9:$I$9,Calculations!$C39:$I39)) -> 0.003 | E153: =IF(Engines!Y71<>"",Engines!Y71,LOOKUP(Calculations!E$124,Calculations!$C$9:$I$9,Calculations!$C39:$I39)) -> 0.003 | F153: =IF(Engines!Z71<>"",Engines!Z71,LOOKUP(Calculations!F$124,Calculations!$C$9:$I$9,Calculations!$C39:$I39)) -> 0.003 | G153: =IF(Engines!AA71<>"",Engines!AA71,LOOKUP(Calculations!G$124,Calculations!$C$9:$I$9,Calculations!$C39:$I39)) -> 0.003 | H153: =IF(Engines!AB71<>"",Engines!AB71,LOOKUP(Calculations!H$124,Calculations!$C$9:$I$9,Calculations!$C39:$I39)) -> 0.003 | I153: =IF(Engines!AC71<>"",Engines!AC71,LOOKUP(Calculations!I$124,Calculations!$C$9:$I$9,Calculations!$C39:$I39)) -> 0.003 | J153: =IF(Engines!AD71<>"",Engines!AD71,LOOKUP(Calculations!J$124,Calculations!$C$9:$I$9,Calculations!$C39:$I39)) -> 0.003 | K153: =IF(Engines!AE71<>"",Engines!AE71,LOOKUP(Calculations!K$124,Calculations!$C$9:$I$9,Calculations!$C39:$I39)) -> 0.003 | L153: =IF(Engines!AF71<>"",Engines!AF71,LOOKUP(Calculations!L$124,Calculations!$C$9:$I$9,Calculations!$C39:$I39)) -> 0.003 | N153: Methane (CH4) | P153: 0 | Q153: 0 | R153: 0 | S153: 0 | T153: 0 | U153: 0 | V153: 0 | W153: 0 | X153: 0 | Y153: 0 | Z153: 0 | AB153: Methane (CH4) | AD153: =P153*C$158/2000 -> 0 | AE153: 0 | AF153: 0 | AG153: 0 | AH153: 0 | AI153: 0 | AJ153: 0 | AK153: 0 | AL153: 0 | AM153: 0 | AN153: 0
A154: Nitrous Oxide (N2O) | C154: =IF(Engines!W72<>"",Engines!W72,LOOKUP(Calculations!C$124,Calculations!$C$9:$I$9,Calculations!$C40:$I40)) -> 0.0006 | D154: =IF(Engines!X72<>"",Engines!X72,LOOKUP(Calculations!D$124,Calculations!$C$9:$I$9,Calculations!$C40:$I40)) -> 0.0006 | E154: =IF(Engines!Y72<>"",Engines!Y72,LOOKUP(Calculations!E$124,Calculations!$C$9:$I$9,Calculations!$C40:$I40)) -> 0.0006 | F154: =IF(Engines!Z72<>"",Engines!Z72,LOOKUP(Calculations!F$124,Calculations!$C$9:$I$9,Calculations!$C40:$I40)) -> 0.0006 | G154: =IF(Engines!AA72<>"",Engines!AA72,LOOKUP(Calculations!G$124,Calculations!$C$9:$I$9,Calculations!$C40:$I40)) -> 0.0006 | H154: =IF(Engines!AB72<>"",Engines!AB72,LOOKUP(Calculations!H$124,Calculations!$C$9:$I$9,Calculations!$C40:$I40)) -> 0.0006 | I154: =IF(Engines!AC72<>"",Engines!AC72,LOOKUP(Calculations!I$124,Calculations!$C$9:$I$9,Calculations!$C40:$I40)) -> 0.0006 | J154: =IF(Engines!AD72<>"",Engines!AD72,LOOKUP(Calculations!J$124,Calculations!$C$9:$I$9,Calculations!$C40:$I40)) -> 0.0006 | K154: =IF(Engines!AE72<>"",Engines!AE72,LOOKUP(Calculations!K$124,Calculations!$C$9:$I$9,Calculations!$C40:$I40)) -> 0.0006 | L154: =IF(Engines!AF72<>"",Engines!AF72,LOOKUP(Calculations!L$124,Calculations!$C$9:$I$9,Calculations!$C40:$I40)) -> 0.0006 | N154: Nitrous Oxide (N2O) | P154: 0 | Q154: 0 | R154: 0 | S154: 0 | T154: 0 | U154: 0 | V154: 0 | W154: 0 | X154: 0 | Y154: 0 | Z154: 0 | AB154: Nitrous Oxide (N2O) | AD154: 0 | AE154: 0 | AF154: 0 | AG154: 0 | AH154: 0 | AI154: 0 | AJ154: 0 | AK154: 0 | AL154: 0 | AM154: 0 | AN154: 0
A156: Engine Rating (hp) | C156: =Engines!N16 -> 0 | D156: =Engines!N17 -> 0 | E156: =Engines!N18 -> 0 | F156: =Engines!N19 -> 0 | G156: =Engines!N20 -> 0 | H156: =Engines!N21 -> 0 | I156: =Engines!N22 -> 0 | J156: =Engines!N23 -> 0 | K156: =Engines!N24 -> 0 | L156: =Engines!N25 -> 0
A157: =Engines!O15 -> Maximum Fuel Capacity (gal/hr) | C157: =Engines!O16 -> 0 | D157: =Engines!O17 -> 0 | E157: =Engines!O18 -> 0 | F157: =Engines!O19 -> 0 | G157: =Engines!O20 -> 0 | H157: =Engines!O21 -> 0 | I157: =Engines!O22 -> 0 | J157: =Engines!O23 -> 0 | K157: =Engines!O24 -> 0 | L157: =Engines!O25 -> 0
A158: Operating Hours | C158: =Engines!Q16 -> 8760 | D158: =Engines!Q17 -> 8760 | E158: =Engines!Q18 -> 8760 | F158: =Engines!Q19 -> 8760 | G158: =Engines!Q20 -> 8760 | H158: =Engines!Q21 -> 8760 | I158: =Engines!Q22 -> 8760 | J158: =Engines!Q23 -> 8760 | K158: =Engines!Q24 -> 8760 | L158: =Engines!Q25 -> 8760
C162: 1st Spark Ignition Engine | D162: 2nd Spark Ignition Engine | E162: 3rd Spark Ignition Engine | F162: 4th Spark Ignition Engine | G162: 5th Spark Ignition Engine | H162: 6th Spark Ignition Engine | I162: 7th Spark Ignition Engine | J162: 8th Spark Ignition Engine | K162: 9th Spark Ignition Engine | L162: 10th Spark Ignition Engine | P162: 1st Spark Ignition Engine | Q162: 2nd Spark Ignition Engine | R162: 3rd Spark Ignition Engine | S162: 4th Spark Ignition Engine | T162: 5th Spark Ignition Engine | U162: 6th Spark Ignition Engine | V162: 7th Spark Ignition Engine | W162: 8th Spark Ignition Engine | X162: 9th Spark Ignition Engine | Y162: 10th Spark Ignition Engine | Z162: Total | AD162: 1st Spark Ignition Engine | AE162: 2nd Spark Ignition Engine | AF162: 3rd Spark Ignition Engine | AG162: 4th Spark Ignition Engine | AH162: 5th Spark Ignition Engine | AI162: 6th Spark Ignition Engine | AJ162: 7th Spark Ignition Engine | AK162: 8th Spark Ignition Engine | AL162: 9th Spark Ignition Engine | AM162: 10th Spark Ignition Engine | AN162: Total
C163: =IF(Engines!Q29=Datasets!$AJ$3,4,IF(Engines!Q29=Datasets!$AJ$4,7,IF(Engines!R29=Datasets!$AK$2,3,IF(Engines!R29=Datasets!$AK$4,2,1)))) -> 1 | D163: =IF(Engines!Q30=Datasets!$AJ$3,4,IF(Engines!Q30=Datasets!$AJ$4,7,IF(Engines!R30=Datasets!$AK$2,3,IF(Engines!R30=Datasets!$AK$4,2,1)))) -> 1 | E163: =IF(Engines!Q31=Datasets!$AJ$3,4,IF(Engines!Q31=Datasets!$AJ$4,7,IF(Engines!R31=Datasets!$AK$2,3,IF(Engines!R31=Datasets!$AK$4,2,1)))) -> 1 | F163: =IF(Engines!Q32=Datasets!$AJ$3,4,IF(Engines!Q32=Datasets!$AJ$4,7,IF(Engines!R32=Datasets!$AK$2,3,IF(Engines!R32=Datasets!$AK$4,2,1)))) -> 1 | G163: =IF(Engines!Q33=Datasets!$AJ$3,4,IF(Engines!Q33=Datasets!$AJ$4,7,IF(Engines!R33=Datasets!$AK$2,3,IF(Engines!R33=Datasets!$AK$4,2,1)))) -> 1 | H163: =IF(Engines!Q34=Datasets!$AJ$3,4,IF(Engines!Q34=Datasets!$AJ$4,7,IF(Engines!R34=Datasets!$AK$2,3,IF(Engines!R34=Datasets!$AK$4,2,1)))) -> 1 | I163: =IF(Engines!Q35=Datasets!$AJ$3,4,IF(Engines!Q35=Datasets!$AJ$4,7,IF(Engines!R35=Datasets!$AK$2,3,IF(Engines!R35=Datasets!$AK$4,2,1)))) -> 1 | J163: =IF(Engines!Q36=Datasets!$AJ$3,4,IF(Engines!Q36=Datasets!$AJ$4,7,IF(Engines!R36=Datasets!$AK$2,3,IF(Engines!R36=Datasets!$AK$4,2,1)))) -> 1 | K163: =IF(Engines!Q37=Datasets!$AJ$3,4,IF(Engines!Q37=Datasets!$AJ$4,7,IF(Engines!R37=Datasets!$AK$2,3,IF(Engines!R37=Datasets!$AK$4,2,1)))) -> 1 | L163: =IF(Engines!Q38=Datasets!$AJ$3,4,IF(Engines!Q38=Datasets!$AJ$4,7,IF(Engines!R38=Datasets!$AK$2,3,IF(Engines!R38=Datasets!$AK$4,2,1)))) -> 1 | P163: (lb/hr) | AD163: (ton/yr)
A164: PMfilterable | C164: =IF(Engines!AI43<>"",Engines!AI43,LOOKUP(Calculations!C$163,Calculations!$C$9:$I$9,Calculations!$C11:$I11)) -> 0.0099871 | D164: =IF(Engines!AJ43<>"",Engines!AJ43,LOOKUP(Calculations!D$163,Calculations!$C$9:$I$9,Calculations!$C11:$I11)) -> 0.0099871 | E164: =IF(Engines!AK43<>"",Engines!AK43,LOOKUP(Calculations!E$163,Calculations!$C$9:$I$9,Calculations!$C11:$I11)) -> 0.0099871 | F164: =IF(Engines!AL43<>"",Engines!AL43,LOOKUP(Calculations!F$163,Calculations!$C$9:$I$9,Calculations!$C11:$I11)) -> 0.0099871 | G164: =IF(Engines!AM43<>"",Engines!AM43,LOOKUP(Calculations!G$163,Calculations!$C$9:$I$9,Calculations!$C11:$I11)) -> 0.0099871 | H164: =IF(Engines!AN43<>"",Engines!AN43,LOOKUP(Calculations!H$163,Calculations!$C$9:$I$9,Calculations!$C11:$I11)) -> 0.0099871 | I164: =IF(Engines!AO43<>"",Engines!AO43,LOOKUP(Calculations!I$163,Calculations!$C$9:$I$9,Calculations!$C11:$I11)) -> 0.0099871 | J164: =IF(Engines!AP43<>"",Engines!AP43,LOOKUP(Calculations!J$163,Calculations!$C$9:$I$9,Calculations!$C11:$I11)) -> 0.0099871 | K164: =IF(Engines!AQ43<>"",Engines!AQ43,LOOKUP(Calculations!K$163,Calculations!$C$9:$I$9,Calculations!$C11:$I11)) -> 0.0099871 | L164: =IF(Engines!AR43<>"",Engines!AR43,LOOKUP(Calculations!L$163,Calculations!$C$9:$I$9,Calculations!$C11:$I11)) -> 0.0099871 | N164: PMfilterable | P164: =C164*C$197 -> 0 | Q164: =D164*D$197 -> 0 | R164: 0 | S164: 0 | T164: 0 | U164: 0 | V164: 0 | W164: 0 | X164: 0 | Y164: 0 | Z164: =SUM(P164:Y164) -> 0 | AB164: PMfilterable | AD164: =P164*C$198/2000 -> 0 | AE164: =Q164*D$198/2000 -> 0 | AF164: 0 | AG164: 0 | AH164: 0 | AI164: 0 | AJ164: 0 | AK164: 0 | AL164: 0 | AM164: 0 | AN164: =SUM(AD164:AM164) -> 0
A165: PM10 | C165: =IF(Engines!AI44<>"",Engines!AI44,LOOKUP(Calculations!C$163,Calculations!$C$9:$I$9,Calculations!$C12:$I12)) -> 0.0099871 | D165: =IF(Engines!AJ44<>"",Engines!AJ44,LOOKUP(Calculations!D$163,Calculations!$C$9:$I$9,Calculations!$C12:$I12)) -> 0.0099871 | E165: =IF(Engines!AK44<>"",Engines!AK44,LOOKUP(Calculations!E$163,Calculations!$C$9:$I$9,Calculations!$C12:$I12)) -> 0.0099871 | F165: =IF(Engines!AL44<>"",Engines!AL44,LOOKUP(Calculations!F$163,Calculations!$C$9:$I$9,Calculations!$C12:$I12)) -> 0.0099871 | G165: =IF(Engines!AM44<>"",Engines!AM44,LOOKUP(Calculations!G$163,Calculations!$C$9:$I$9,Calculations!$C12:$I12)) -> 0.0099871 | H165: =IF(Engines!AN44<>"",Engines!AN44,LOOKUP(Calculations!H$163,Calculations!$C$9:$I$9,Calculations!$C12:$I12)) -> 0.0099871 | I165: =IF(Engines!AO44<>"",Engines!AO44,LOOKUP(Calculations!I$163,Calculations!$C$9:$I$9,Calculations!$C12:$I12)) -> 0.0099871 | J165: =IF(Engines!AP44<>"",Engines!AP44,LOOKUP(Calculations!J$163,Calculations!$C$9:$I$9,Calculations!$C12:$I12)) -> 0.0099871 | K165: =IF(Engines!AQ44<>"",Engines!AQ44,LOOKUP(Calculations!K$163,Calculations!$C$9:$I$9,Calculations!$C12:$I12)) -> 0.0099871 | L165: =IF(Engines!AR44<>"",Engines!AR44,LOOKUP(Calculations!L$163,Calculations!$C$9:$I$9,Calculations!$C12:$I12)) -> 0.0099871 | N165: PM10 | P165: =C165*C$197 -> 0 | Q165: =D165*D$197 -> 0 | R165: =E165*E$197 -> 0 | S165: =F165*F$197 -> 0 | T165: =G165*G$197 -> 0 | U165: =H165*H$197 -> 0 | V165: =I165*I$197 -> 0 | W165: =J165*J$197 -> 0 | X165: =K165*K$197 -> 0 | Y165: =L165*L$197 -> 0 | Z165: =SUM(P165:Y165) -> 0 | AB165: PM10 | AD165: =P165*C$198/2000 -> 0 | AE165: =Q165*D$198/2000 -> 0 | AF165: =R165*E$198/2000 -> 0 | AG165: =S165*F$198/2000 -> 0 | AH165: =T165*G$198/2000 -> 0 | AI165: =U165*H$198/2000 -> 0 | AJ165: =V165*I$198/2000 -> 0 | AK165: =W165*J$198/2000 -> 0 | AL165: =X165*K$198/2000 -> 0 | AM165: =Y165*L$198/2000 -> 0 | AN165: =SUM(AD165:AM165) -> 0
A166: PM2.5 | C166: =IF(Engines!AI45<>"",Engines!AI45,LOOKUP(Calculations!C$163,Calculations!$C$9:$I$9,Calculations!$C13:$I13)) -> 0.0099871 | D166: =IF(Engines!AJ45<>"",Engines!AJ45,LOOKUP(Calculations!D$163,Calculations!$C$9:$I$9,Calculations!$C13:$I13)) -> 0.0099871 | E166: =IF(Engines!AK45<>"",Engines!AK45,LOOKUP(Calculations!E$163,Calculations!$C$9:$I$9,Calculations!$C13:$I13)) -> 0.0099871 | F166: =IF(Engines!AL45<>"",Engines!AL45,LOOKUP(Calculations!F$163,Calculations!$C$9:$I$9,Calculations!$C13:$I13)) -> 0.0099871 | G166: =IF(Engines!AM45<>"",Engines!AM45,LOOKUP(Calculations!G$163,Calculations!$C$9:$I$9,Calculations!$C13:$I13)) -> 0.0099871 | H166: =IF(Engines!AN45<>"",Engines!AN45,LOOKUP(Calculations!H$163,Calculations!$C$9:$I$9,Calculations!$C13:$I13)) -> 0.0099871 | I166: =IF(Engines!AO45<>"",Engines!AO45,LOOKUP(Calculations!I$163,Calculations!$C$9:$I$9,Calculations!$C13:$I13)) -> 0.0099871 | J166: =IF(Engines!AP45<>"",Engines!AP45,LOOKUP(Calculations!J$163,Calculations!$C$9:$I$9,Calculations!$C13:$I13)) -> 0.0099871 | K166: =IF(Engines!AQ45<>"",Engines!AQ45,LOOKUP(Calculations!K$163,Calculations!$C$9:$I$9,Calculations!$C13:$I13)) -> 0.0099871 | L166: =IF(Engines!AR45<>"",Engines!AR45,LOOKUP(Calculations!L$163,Calculations!$C$9:$I$9,Calculations!$C13:$I13)) -> 0.0099871 | N166: PM2.5 | P166: 0 | Q166: 0 | R166: 0 | S166: 0 | T166: 0 | U166: 0 | V166: 0 | W166: 0 | X166: 0 | Y166: 0 | Z166: 0 | AB166: PM2.5 | AD166: 0 | AE166: 0 | AF166: 0 | AG166: 0 | AH166: 0 | AI166: 0 | AJ166: 0 | AK166: 0 | AL166: 0 | AM166: 0 | AN166: 0
A167: SO2 | C167: =IF(Engines!AI46<>"",Engines!AI46,LOOKUP(Calculations!C$163,Calculations!$C$9:$I$9,Calculations!$C14:$I14)) -> 0.000588 | D167: =IF(Engines!AJ46<>"",Engines!AJ46,LOOKUP(Calculations!D$163,Calculations!$C$9:$I$9,Calculations!$C14:$I14)) -> 0.000588 | E167: =IF(Engines!AK46<>"",Engines!AK46,LOOKUP(Calculations!E$163,Calculations!$C$9:$I$9,Calculations!$C14:$I14)) -> 0.000588 | F167: =IF(Engines!AL46<>"",Engines!AL46,LOOKUP(Calculations!F$163,Calculations!$C$9:$I$9,Calculations!$C14:$I14)) -> 0.000588 | G167: =IF(Engines!AM46<>"",Engines!AM46,LOOKUP(Calculations!G$163,Calculations!$C$9:$I$9,Calculations!$C14:$I14)) -> 0.000588 | H167: =IF(Engines!AN46<>"",Engines!AN46,LOOKUP(Calculations!H$163,Calculations!$C$9:$I$9,Calculations!$C14:$I14)) -> 0.000588 | I167: =IF(Engines!AO46<>"",Engines!AO46,LOOKUP(Calculations!I$163,Calculations!$C$9:$I$9,Calculations!$C14:$I14)) -> 0.000588 | J167: =IF(Engines!AP46<>"",Engines!AP46,LOOKUP(Calculations!J$163,Calculations!$C$9:$I$9,Calculations!$C14:$I14)) -> 0.000588 | K167: =IF(Engines!AQ46<>"",Engines!AQ46,LOOKUP(Calculations!K$163,Calculations!$C$9:$I$9,Calculations!$C14:$I14)) -> 0.000588 | L167: =IF(Engines!AR46<>"",Engines!AR46,LOOKUP(Calculations!L$163,Calculations!$C$9:$I$9,Calculations!$C14:$I14)) -> 0.000588 | N167: SO2 | P167: 0 | Q167: 0 | R167: 0 | S167: 0 | T167: 0 | U167: 0 | V167: 0 | W167: 0 | X167: 0 | Y167: 0 | Z167: 0 | AB167: SO2 | AD167: 0 | AE167: 0 | AF167: 0 | AG167: 0 | AH167: 0 | AI167: 0 | AJ167: 0 | AK167: 0 | AL167: 0 | AM167: 0 | AN167: 0
A168: NOx | C168: =IF(Engines!AI47<>"",Engines!AI47,LOOKUP(Calculations!C$163,Calculations!$C$9:$I$9,Calculations!$C15:$I15)) -> 4.08 | D168: =IF(Engines!AJ47<>"",Engines!AJ47,LOOKUP(Calculations!D$163,Calculations!$C$9:$I$9,Calculations!$C15:$I15)) -> 4.08 | E168: =IF(Engines!AK47<>"",Engines!AK47,LOOKUP(Calculations!E$163,Calculations!$C$9:$I$9,Calculations!$C15:$I15)) -> 4.08 | F168: =IF(Engines!AL47<>"",Engines!AL47,LOOKUP(Calculations!F$163,Calculations!$C$9:$I$9,Calculations!$C15:$I15)) -> 4.08 | G168: =IF(Engines!AM47<>"",Engines!AM47,LOOKUP(Calculations!G$163,Calculations!$C$9:$I$9,Calculations!$C15:$I15)) -> 4.08 | H168: =IF(Engines!AN47<>"",Engines!AN47,LOOKUP(Calculations!H$163,Calculations!$C$9:$I$9,Calculations!$C15:$I15)) -> 4.08 | I168: =IF(Engines!AO47<>"",Engines!AO47,LOOKUP(Calculations!I$163,Calculations!$C$9:$I$9,Calculations!$C15:$I15)) -> 4.08 | J168: =IF(Engines!AP47<>"",Engines!AP47,LOOKUP(Calculations!J$163,Calculations!$C$9:$I$9,Calculations!$C15:$I15)) -> 4.08 | K168: =IF(Engines!AQ47<>"",Engines!AQ47,LOOKUP(Calculations!K$163,Calculations!$C$9:$I$9,Calculations!$C15:$I15)) -> 4.08 | L168: =IF(Engines!AR47<>"",Engines!AR47,LOOKUP(Calculations!L$163,Calculations!$C$9:$I$9,Calculations!$C15:$I15)) -> 4.08 | N168: NOx | P168: 0 | Q168: 0 | R168: 0 | S168: 0 | T168: 0 | U168: 0 | V168: 0 | W168: 0 | X168: 0 | Y168: 0 | Z168: 0 | AB168: NOx | AD168: 0 | AE168: 0 | AF168: 0 | AG168: 0 | AH168: 0 | AI168: 0 | AJ168: 0 | AK168: 0 | AL168: 0 | AM168: 0 | AN168: 0
A169: CO | C169: =IF(Engines!AI48<>"",Engines!AI48,LOOKUP(Calculations!C$163,Calculations!$C$9:$I$9,Calculations!$C16:$I16)) -> 0.557 | D169: =IF(Engines!AJ48<>"",Engines!AJ48,LOOKUP(Calculations!D$163,Calculations!$C$9:$I$9,Calculations!$C16:$I16)) -> 0.557 | E169: =IF(Engines!AK48<>"",Engines!AK48,LOOKUP(Calculations!E$163,Calculations!$C$9:$I$9,Calculations!$C16:$I16)) -> 0.557 | F169: =IF(Engines!AL48<>"",Engines!AL48,LOOKUP(Calculations!F$163,Calculations!$C$9:$I$9,Calculations!$C16:$I16)) -> 0.557 | G169: =IF(Engines!AM48<>"",Engines!AM48,LOOKUP(Calculations!G$163,Calculations!$C$9:$I$9,Calculations!$C16:$I16)) -> 0.557 | H169: =IF(Engines!AN48<>"",Engines!AN48,LOOKUP(Calculations!H$163,Calculations!$C$9:$I$9,Calculations!$C16:$I16)) -> 0.557 | I169: =IF(Engines!AO48<>"",Engines!AO48,LOOKUP(Calculations!I$163,Calculations!$C$9:$I$9,Calculations!$C16:$I16)) -> 0.557 | J169: =IF(Engines!AP48<>"",Engines!AP48,LOOKUP(Calculations!J$163,Calculations!$C$9:$I$9,Calculations!$C16:$I16)) -> 0.557 | K169: =IF(Engines!AQ48<>"",Engines!AQ48,LOOKUP(Calculations!K$163,Calculations!$C$9:$I$9,Calculations!$C16:$I16)) -> 0.557 | L169: =IF(Engines!AR48<>"",Engines!AR48,LOOKUP(Calculations!L$163,Calculations!$C$9:$I$9,Calculations!$C16:$I16)) -> 0.557 | N169: CO | P169: 0 | Q169: 0 | R169: 0 | S169: 0 | T169: 0 | U169: 0 | V169: 0 | W169: 0 | X169: 0 | Y169: 0 | Z169: 0 | AB169: CO | AD169: 0 | AE169: 0 | AF169: 0 | AG169: 0 | AH169: 0 | AI169: 0 | AJ169: 0 | AK169: 0 | AL169: 0 | AM169: 0 | AN169: 0
A170: VOC | C170: =IF(Engines!AI49<>"",Engines!AI49,LOOKUP(Calculations!C$163,Calculations!$C$9:$I$9,Calculations!$C17:$I17)) -> 0.118 | D170: =IF(Engines!AJ49<>"",Engines!AJ49,LOOKUP(Calculations!D$163,Calculations!$C$9:$I$9,Calculations!$C17:$I17)) -> 0.118 | E170: =IF(Engines!AK49<>"",Engines!AK49,LOOKUP(Calculations!E$163,Calculations!$C$9:$I$9,Calculations!$C17:$I17)) -> 0.118 | F170: =IF(Engines!AL49<>"",Engines!AL49,LOOKUP(Calculations!F$163,Calculations!$C$9:$I$9,Calculations!$C17:$I17)) -> 0.118 | G170: =IF(Engines!AM49<>"",Engines!AM49,LOOKUP(Calculations!G$163,Calculations!$C$9:$I$9,Calculations!$C17:$I17)) -> 0.118 | H170: =IF(Engines!AN49<>"",Engines!AN49,LOOKUP(Calculations!H$163,Calculations!$C$9:$I$9,Calculations!$C17:$I17)) -> 0.118 | I170: =IF(Engines!AO49<>"",Engines!AO49,LOOKUP(Calculations!I$163,Calculations!$C$9:$I$9,Calculations!$C17:$I17)) -> 0.118 | J170: =IF(Engines!AP49<>"",Engines!AP49,LOOKUP(Calculations!J$163,Calculations!$C$9:$I$9,Calculations!$C17:$I17)) -> 0.118 | K170: =IF(Engines!AQ49<>"",Engines!AQ49,LOOKUP(Calculations!K$163,Calculations!$C$9:$I$9,Calculations!$C17:$I17)) -> 0.118 | L170: =IF(Engines!AR49<>"",Engines!AR49,LOOKUP(Calculations!L$163,Calculations!$C$9:$I$9,Calculations!$C17:$I17)) -> 0.118 | N170: VOC | P170: 0 | Q170: 0 | R170: 0 | S170: 0 | T170: 0 | U170: 0 | V170: 0 | W170: 0 | X170: 0 | Y170: 0 | Z170: 0 | AB170: VOC | AD170: 0 | AE170: 0 | AF170: 0 | AG170: 0 | AH170: 0 | AI170: 0 | AJ170: 0 | AK170: 0 | AL170: 0 | AM170: 0 | AN170: 0
A171: Individual HAP | N171: Individual HAP | AB171: Individual HAP
A172: Acetaldehyde | C172: =IF(Engines!AI51<>"",Engines!AI51,LOOKUP(Calculations!C$163,Calculations!$C$9:$I$9,Calculations!$C19:$I19)) -> 0.00836 | D172: =IF(Engines!AJ51<>"",Engines!AJ51,LOOKUP(Calculations!D$163,Calculations!$C$9:$I$9,Calculations!$C19:$I19)) -> 0.00836 | E172: =IF(Engines!AK51<>"",Engines!AK51,LOOKUP(Calculations!E$163,Calculations!$C$9:$I$9,Calculations!$C19:$I19)) -> 0.00836 | F172: =IF(Engines!AL51<>"",Engines!AL51,LOOKUP(Calculations!F$163,Calculations!$C$9:$I$9,Calculations!$C19:$I19)) -> 0.00836 | G172: =IF(Engines!AM51<>"",Engines!AM51,LOOKUP(Calculations!G$163,Calculations!$C$9:$I$9,Calculations!$C19:$I19)) -> 0.00836 | H172: =IF(Engines!AN51<>"",Engines!AN51,LOOKUP(Calculations!H$163,Calculations!$C$9:$I$9,Calculations!$C19:$I19)) -> 0.00836 | I172: =IF(Engines!AO51<>"",Engines!AO51,LOOKUP(Calculations!I$163,Calculations!$C$9:$I$9,Calculations!$C19:$I19)) -> 0.00836 | J172: =IF(Engines!AP51<>"",Engines!AP51,LOOKUP(Calculations!J$163,Calculations!$C$9:$I$9,Calculations!$C19:$I19)) -> 0.00836 | K172: =IF(Engines!AQ51<>"",Engines!AQ51,LOOKUP(Calculations!K$163,Calculations!$C$9:$I$9,Calculations!$C19:$I19)) -> 0.00836 | L172: =IF(Engines!AR51<>"",Engines!AR51,LOOKUP(Calculations!L$163,Calculations!$C$9:$I$9,Calculations!$C19:$I19)) -> 0.00836 | N172: Acetaldehyde | P172: =C172*C$197 -> 0 | Q172: =D172*D$197 -> 0 | R172: =E172*E$197 -> 0 | S172: =F172*F$197 -> 0 | T172: =G172*G$197 -> 0 | U172: =H172*H$197 -> 0 | V172: =I172*I$197 -> 0 | W172: =J172*J$197 -> 0 | X172: =K172*K$197 -> 0 | Y172: =L172*L$197 -> 0 | Z172: =SUM(P172:Y172) -> 0 | AB172: Acetaldehyde | AD172: =P172*C$198/2000 -> 0 | AE172: =Q172*D$198/2000 -> 0 | AF172: =R172*E$198/2000 -> 0 | AG172: =S172*F$198/2000 -> 0 | AH172: =T172*G$198/2000 -> 0 | AI172: =U172*H$198/2000 -> 0 | AJ172: =V172*I$198/2000 -> 0 | AK172: =W172*J$198/2000 -> 0 | AL172: =X172*K$198/2000 -> 0 | AM172: =Y172*L$198/2000 -> 0 | AN172: =SUM(AD172:AM172) -> 0
A173: Acrolein | C173: =IF(Engines!AI52<>"",Engines!AI52,LOOKUP(Calculations!C$163,Calculations!$C$9:$I$9,Calculations!$C20:$I20)) -> 0.00514 | D173: =IF(Engines!AJ52<>"",Engines!AJ52,LOOKUP(Calculations!D$163,Calculations!$C$9:$I$9,Calculations!$C20:$I20)) -> 0.00514 | E173: =IF(Engines!AK52<>"",Engines!AK52,LOOKUP(Calculations!E$163,Calculations!$C$9:$I$9,Calculations!$C20:$I20)) -> 0.00514 | F173: =IF(Engines!AL52<>"",Engines!AL52,LOOKUP(Calculations!F$163,Calculations!$C$9:$I$9,Calculations!$C20:$I20)) -> 0.00514 | G173: =IF(Engines!AM52<>"",Engines!AM52,LOOKUP(Calculations!G$163,Calculations!$C$9:$I$9,Calculations!$C20:$I20)) -> 0.00514 | H173: =IF(Engines!AN52<>"",Engines!AN52,LOOKUP(Calculations!H$163,Calculations!$C$9:$I$9,Calculations!$C20:$I20)) -> 0.00514 | I173: =IF(Engines!AO52<>"",Engines!AO52,LOOKUP(Calculations!I$163,Calculations!$C$9:$I$9,Calculations!$C20:$I20)) -> 0.00514 | J173: =IF(Engines!AP52<>"",Engines!AP52,LOOKUP(Calculations!J$163,Calculations!$C$9:$I$9,Calculations!$C20:$I20)) -> 0.00514 | K173: =IF(Engines!AQ52<>"",Engines!AQ52,LOOKUP(Calculations!K$163,Calculations!$C$9:$I$9,Calculations!$C20:$I20)) -> 0.00514 | L173: =IF(Engines!AR52<>"",Engines!AR52,LOOKUP(Calculations!L$163,Calculations!$C$9:$I$9,Calculations!$C20:$I20)) -> 0.00514 | N173: Acrolein | P173: 0 | Q173: 0 | R173: 0 | S173: 0 | T173: 0 | U173: 0 | V173: 0 | W173: 0 | X173: 0 | Y173: 0 | Z173: 0 | AB173: Acrolein | AD173: 0 | AE173: 0 | AF173: 0 | AG173: 0 | AH173: 0 | AI173: 0 | AJ173: 0 | AK173: 0 | AL173: 0 | AM173: 0 | AN173: 0
A174: Arsenic compounds | C174: =IF(Engines!AI53<>"",Engines!AI53,LOOKUP(Calculations!C$163,Calculations!$C$9:$I$9,Calculations!$C21:$I21)) -> 0 | D174: =IF(Engines!AJ53<>"",Engines!AJ53,LOOKUP(Calculations!D$163,Calculations!$C$9:$I$9,Calculations!$C21:$I21)) -> 0 | E174: =IF(Engines!AK53<>"",Engines!AK53,LOOKUP(Calculations!E$163,Calculations!$C$9:$I$9,Calculations!$C21:$I21)) -> 0 | F174: =IF(Engines!AL53<>"",Engines!AL53,LOOKUP(Calculations!F$163,Calculations!$C$9:$I$9,Calculations!$C21:$I21)) -> 0 | G174: =IF(Engines!AM53<>"",Engines!AM53,LOOKUP(Calculations!G$163,Calculations!$C$9:$I$9,Calculations!$C21:$I21)) -> 0 | H174: =IF(Engines!AN53<>"",Engines!AN53,LOOKUP(Calculations!H$163,Calculations!$C$9:$I$9,Calculations!$C21:$I21)) -> 0 | I174: =IF(Engines!AO53<>"",Engines!AO53,LOOKUP(Calculations!I$163,Calculations!$C$9:$I$9,Calculations!$C21:$I21)) -> 0 | J174: =IF(Engines!AP53<>"",Engines!AP53,LOOKUP(Calculations!J$163,Calculations!$C$9:$I$9,Calculations!$C21:$I21)) -> 0 | K174: =IF(Engines!AQ53<>"",Engines!AQ53,LOOKUP(Calculations!K$163,Calculations!$C$9:$I$9,Calculations!$C21:$I21)) -> 0 | L174: =IF(Engines!AR53<>"",Engines!AR53,LOOKUP(Calculations!L$163,Calculations!$C$9:$I$9,Calculations!$C21:$I21)) -> 0 | N174: Arsenic compounds | P174: 0 | Q174: 0 | R174: 0 | S174: 0 | T174: 0 | U174: 0 | V174: 0 | W174: 0 | X174: 0 | Y174: 0 | Z174: 0 | AB174: Arsenic compounds | AD174: 0 | AE174: 0 | AF174: 0 | AG174: 0 | AH174: 0 | AI174: 0 | AJ174: 0 | AK174: 0 | AL174: 0 | AM174: 0 | AN174: 0
A175: Benzene | C175: =IF(Engines!AI54<>"",Engines!AI54,LOOKUP(Calculations!C$163,Calculations!$C$9:$I$9,Calculations!$C22:$I22)) -> 0.00044 | D175: =IF(Engines!AJ54<>"",Engines!AJ54,LOOKUP(Calculations!D$163,Calculations!$C$9:$I$9,Calculations!$C22:$I22)) -> 0.00044 | E175: =IF(Engines!AK54<>"",Engines!AK54,LOOKUP(Calculations!E$163,Calculations!$C$9:$I$9,Calculations!$C22:$I22)) -> 0.00044 | F175: =IF(Engines!AL54<>"",Engines!AL54,LOOKUP(Calculations!F$163,Calculations!$C$9:$I$9,Calculations!$C22:$I22)) -> 0.00044 | G175: =IF(Engines!AM54<>"",Engines!AM54,LOOKUP(Calculations!G$163,Calculations!$C$9:$I$9,Calculations!$C22:$I22)) -> 0.00044 | H175: =IF(Engines!AN54<>"",Engines!AN54,LOOKUP(Calculations!H$163,Calculations!$C$9:$I$9,Calculations!$C22:$I22)) -> 0.00044 | I175: =IF(Engines!AO54<>"",Engines!AO54,LOOKUP(Calculations!I$163,Calculations!$C$9:$I$9,Calculations!$C22:$I22)) -> 0.00044 | J175: =IF(Engines!AP54<>"",Engines!AP54,LOOKUP(Calculations!J$163,Calculations!$C$9:$I$9,Calculations!$C22:$I22)) -> 0.00044 | K175: =IF(Engines!AQ54<>"",Engines!AQ54,LOOKUP(Calculations!K$163,Calculations!$C$9:$I$9,Calculations!$C22:$I22)) -> 0.00044 | L175: =IF(Engines!AR54<>"",Engines!AR54,LOOKUP(Calculations!L$163,Calculations!$C$9:$I$9,Calculations!$C22:$I22)) -> 0.00044 | N175: Benzene | P175: 0 | Q175: 0 | R175: 0 | S175: 0 | T175: 0 | U175: 0 | V175: 0 | W175: 0 | X175: 0 | Y175: 0 | Z175: 0 | AB175: Benzene | AD175: 0 | AE175: 0 | AF175: 0 | AG175: 0 | AH175: 0 | AI175: 0 | AJ175: 0 | AK175: 0 | AL175: 0 | AM175: 0 | AN175: 0
A176: Benzyl chloride | C176: =IF(Engines!AI55<>"",Engines!AI55,LOOKUP(Calculations!C$163,Calculations!$C$9:$I$9,Calculations!$C23:$I23)) -> 0 | D176: =IF(Engines!AJ55<>"",Engines!AJ55,LOOKUP(Calculations!D$163,Calculations!$C$9:$I$9,Calculations!$C23:$I23)) -> 0 | E176: =IF(Engines!AK55<>"",Engines!AK55,LOOKUP(Calculations!E$163,Calculations!$C$9:$I$9,Calculations!$C23:$I23)) -> 0 | F176: =IF(Engines!AL55<>"",Engines!AL55,LOOKUP(Calculations!F$163,Calculations!$C$9:$I$9,Calculations!$C23:$I23)) -> 0 | G176: =IF(Engines!AM55<>"",Engines!AM55,LOOKUP(Calculations!G$163,Calculations!$C$9:$I$9,Calculations!$C23:$I23)) -> 0 | H176: =IF(Engines!AN55<>"",Engines!AN55,LOOKUP(Calculations!H$163,Calculations!$C$9:$I$9,Calculations!$C23:$I23)) -> 0 | I176: =IF(Engines!AO55<>"",Engines!AO55,LOOKUP(Calculations!I$163,Calculations!$C$9:$I$9,Calculations!$C23:$I23)) -> 0 | J176: =IF(Engines!AP55<>"",Engines!AP55,LOOKUP(Calculations!J$163,Calculations!$C$9:$I$9,Calculations!$C23:$I23)) -> 0 | K176: =IF(Engines!AQ55<>"",Engines!AQ55,LOOKUP(Calculations!K$163,Calculations!$C$9:$I$9,Calculations!$C23:$I23)) -> 0 | L176: =IF(Engines!AR55<>"",Engines!AR55,LOOKUP(Calculations!L$163,Calculations!$C$9:$I$9,Calculations!$C23:$I23)) -> 0 | N176: Benzyl chloride | P176: 0 | Q176: 0 | R176: 0 | S176: 0 | T176: 0 | U176: 0 | V176: 0 | W176: 0 | X176: 0 | Y176: 0 | Z176: 0 | AB176: Benzyl chloride | AD176: 0 | AE176: 0 | AF176: 0 | AG176: 0 | AH176: 0 | AI176: 0 | AJ176: 0 | AK176: 0 | AL176: 0 | AM176: 0 | AN176: 0
A177: Beryllium compounds | C177: =IF(Engines!AI56<>"",Engines!AI56,LOOKUP(Calculations!C$163,Calculations!$C$9:$I$9,Calculations!$C24:$I24)) -> 0 | D177: =IF(Engines!AJ56<>"",Engines!AJ56,LOOKUP(Calculations!D$163,Calculations!$C$9:$I$9,Calculations!$C24:$I24)) -> 0 | E177: =IF(Engines!AK56<>"",Engines!AK56,LOOKUP(Calculations!E$163,Calculations!$C$9:$I$9,Calculations!$C24:$I24)) -> 0 | F177: =IF(Engines!AL56<>"",Engines!AL56,LOOKUP(Calculations!F$163,Calculations!$C$9:$I$9,Calculations!$C24:$I24)) -> 0 | G177: =IF(Engines!AM56<>"",Engines!AM56,LOOKUP(Calculations!G$163,Calculations!$C$9:$I$9,Calculations!$C24:$I24)) -> 0 | H177: =IF(Engines!AN56<>"",Engines!AN56,LOOKUP(Calculations!H$163,Calculations!$C$9:$I$9,Calculations!$C24:$I24)) -> 0 | I177: =IF(Engines!AO56<>"",Engines!AO56,LOOKUP(Calculations!I$163,Calculations!$C$9:$I$9,Calculations!$C24:$I24)) -> 0 | J177: =IF(Engines!AP56<>"",Engines!AP56,LOOKUP(Calculations!J$163,Calculations!$C$9:$I$9,Calculations!$C24:$I24)) -> 0 | K177: =IF(Engines!AQ56<>"",Engines!AQ56,LOOKUP(Calculations!K$163,Calculations!$C$9:$I$9,Calculations!$C24:$I24)) -> 0 | L177: =IF(Engines!AR56<>"",Engines!AR56,LOOKUP(Calculations!L$163,Calculations!$C$9:$I$9,Calculations!$C24:$I24)) -> 0 | N177: Beryllium compounds | P177: 0 | Q177: 0 | R177: 0 | S177: 0 | T177: 0 | U177: 0 | V177: 0 | W177: 0 | X177: 0 | Y177: 0 | Z177: 0 | AB177: Beryllium compounds | AD177: 0 | AE177: 0 | AF177: 0 | AG177: 0 | AH177: 0 | AI177: 0 | AJ177: 0 | AK177: 0 | AL177: 0 | AM177: 0 | AN177: 0
A178: Cadmium compounds | C178: =IF(Engines!AI57<>"",Engines!AI57,LOOKUP(Calculations!C$163,Calculations!$C$9:$I$9,Calculations!$C25:$I25)) -> 0 | D178: =IF(Engines!AJ57<>"",Engines!AJ57,LOOKUP(Calculations!D$163,Calculations!$C$9:$I$9,Calculations!$C25:$I25)) -> 0 | E178: =IF(Engines!AK57<>"",Engines!AK57,LOOKUP(Calculations!E$163,Calculations!$C$9:$I$9,Calculations!$C25:$I25)) -> 0 | F178: =IF(Engines!AL57<>"",Engines!AL57,LOOKUP(Calculations!F$163,Calculations!$C$9:$I$9,Calculations!$C25:$I25)) -> 0 | G178: =IF(Engines!AM57<>"",Engines!AM57,LOOKUP(Calculations!G$163,Calculations!$C$9:$I$9,Calculations!$C25:$I25)) -> 0 | H178: =IF(Engines!AN57<>"",Engines!AN57,LOOKUP(Calculations!H$163,Calculations!$C$9:$I$9,Calculations!$C25:$I25)) -> 0 | I178: =IF(Engines!AO57<>"",Engines!AO57,LOOKUP(Calculations!I$163,Calculations!$C$9:$I$9,Calculations!$C25:$I25)) -> 0 | J178: =IF(Engines!AP57<>"",Engines!AP57,LOOKUP(Calculations!J$163,Calculations!$C$9:$I$9,Calculations!$C25:$I25)) -> 0 | K178: =IF(Engines!AQ57<>"",Engines!AQ57,LOOKUP(Calculations!K$163,Calculations!$C$9:$I$9,Calculations!$C25:$I25)) -> 0 | L178: =IF(Engines!AR57<>"",Engines!AR57,LOOKUP(Calculations!L$163,Calculations!$C$9:$I$9,Calculations!$C25:$I25)) -> 0 | N178: Cadmium compounds | P178: 0 | Q178: 0 | R178: 0 | S178: 0 | T178: 0 | U178: 0 | V178: 0 | W178: 0 | X178: 0 | Y178: 0 | Z178: 0 | AB178: Cadmium compounds | AD178: 0 | AE178: 0 | AF178: 0 | AG178: 0 | AH178: 0 | AI178: 0 | AJ178: 0 | AK178: 0 | AL178: 0 | AM178: 0 | AN178: 0
A179: Cyanide compounds | C179: =IF(Engines!AI58<>"",Engines!AI58,LOOKUP(Calculations!C$163,Calculations!$C$9:$I$9,Calculations!$C26:$I26)) -> 0 | D179: =IF(Engines!AJ58<>"",Engines!AJ58,LOOKUP(Calculations!D$163,Calculations!$C$9:$I$9,Calculations!$C26:$I26)) -> 0 | E179: =IF(Engines!AK58<>"",Engines!AK58,LOOKUP(Calculations!E$163,Calculations!$C$9:$I$9,Calculations!$C26:$I26)) -> 0 | F179: =IF(Engines!AL58<>"",Engines!AL58,LOOKUP(Calculations!F$163,Calculations!$C$9:$I$9,Calculations!$C26:$I26)) -> 0 | G179: =IF(Engines!AM58<>"",Engines!AM58,LOOKUP(Calculations!G$163,Calculations!$C$9:$I$9,Calculations!$C26:$I26)) -> 0 | H179: =IF(Engines!AN58<>"",Engines!AN58,LOOKUP(Calculations!H$163,Calculations!$C$9:$I$9,Calculations!$C26:$I26)) -> 0 | I179: =IF(Engines!AO58<>"",Engines!AO58,LOOKUP(Calculations!I$163,Calculations!$C$9:$I$9,Calculations!$C26:$I26)) -> 0 | J179: =IF(Engines!AP58<>"",Engines!AP58,LOOKUP(Calculations!J$163,Calculations!$C$9:$I$9,Calculations!$C26:$I26)) -> 0 | K179: =IF(Engines!AQ58<>"",Engines!AQ58,LOOKUP(Calculations!K$163,Calculations!$C$9:$I$9,Calculations!$C26:$I26)) -> 0 | L179: =IF(Engines!AR58<>"",Engines!AR58,LOOKUP(Calculations!L$163,Calculations!$C$9:$I$9,Calculations!$C26:$I26)) -> 0 | N179: Cyanide compounds | P179: 0 | Q179: 0 | R179: 0 | S179: 0 | T179: 0 | U179: 0 | V179: 0 | W179: 0 | X179: 0 | Y179: 0 | Z179: 0 | AB179: Cyanide compounds | AD179: 0 | AE179: 0 | AF179: 0 | AG179: 0 | AH179: 0 | AI179: 0 | AJ179: 0 | AK179: 0 | AL179: 0 | AM179: 0 | AN179: 0
A180: Formaldehyde | C180: =IF(Engines!AI59<>"",Engines!AI59,LOOKUP(Calculations!C$163,Calculations!$C$9:$I$9,Calculations!$C27:$I27)) -> 0.0528 | D180: =IF(Engines!AJ59<>"",Engines!AJ59,LOOKUP(Calculations!D$163,Calculations!$C$9:$I$9,Calculations!$C27:$I27)) -> 0.0528 | E180: =IF(Engines!AK59<>"",Engines!AK59,LOOKUP(Calculations!E$163,Calculations!$C$9:$I$9,Calculations!$C27:$I27)) -> 0.0528 | F180: =IF(Engines!AL59<>"",Engines!AL59,LOOKUP(Calculations!F$163,Calculations!$C$9:$I$9,Calculations!$C27:$I27)) -> 0.0528 | G180: =IF(Engines!AM59<>"",Engines!AM59,LOOKUP(Calculations!G$163,Calculations!$C$9:$I$9,Calculations!$C27:$I27)) -> 0.0528 | H180: =IF(Engines!AN59<>"",Engines!AN59,LOOKUP(Calculations!H$163,Calculations!$C$9:$I$9,Calculations!$C27:$I27)) -> 0.0528 | I180: =IF(Engines!AO59<>"",Engines!AO59,LOOKUP(Calculations!I$163,Calculations!$C$9:$I$9,Calculations!$C27:$I27)) -> 0.0528 | J180: =IF(Engines!AP59<>"",Engines!AP59,LOOKUP(Calculations!J$163,Calculations!$C$9:$I$9,Calculations!$C27:$I27)) -> 0.0528 | K180: =IF(Engines!AQ59<>"",Engines!AQ59,LOOKUP(Calculations!K$163,Calculations!$C$9:$I$9,Calculations!$C27:$I27)) -> 0.0528 | L180: =IF(Engines!AR59<>"",Engines!AR59,LOOKUP(Calculations!L$163,Calculations!$C$9:$I$9,Calculations!$C27:$I27)) -> 0.0528 | N180: Formaldehyde | P180: 0 | Q180: 0 | R180: 0 | S180: 0 | T180: 0 | U180: 0 | V180: 0 | W180: 0 | X180: 0 | Y180: 0 | Z180: 0 | AB180: Formaldehyde | AD180: 0 | AE180: 0 | AF180: 0 | AG180: 0 | AH180: 0 | AI180: 0 | AJ180: 0 | AK180: 0 | AL180: 0 | AM180: 0 | AN180: 0
A181: n-Hexane | C181: =IF(Engines!AI60<>"",Engines!AI60,LOOKUP(Calculations!C$163,Calculations!$C$9:$I$9,Calculations!$C28:$I28)) -> 0.00111 | D181: =IF(Engines!AJ60<>"",Engines!AJ60,LOOKUP(Calculations!D$163,Calculations!$C$9:$I$9,Calculations!$C28:$I28)) -> 0.00111 | E181: =IF(Engines!AK60<>"",Engines!AK60,LOOKUP(Calculations!E$163,Calculations!$C$9:$I$9,Calculations!$C28:$I28)) -> 0.00111 | F181: =IF(Engines!AL60<>"",Engines!AL60,LOOKUP(Calculations!F$163,Calculations!$C$9:$I$9,Calculations!$C28:$I28)) -> 0.00111 | G181: =IF(Engines!AM60<>"",Engines!AM60,LOOKUP(Calculations!G$163,Calculations!$C$9:$I$9,Calculations!$C28:$I28)) -> 0.00111 | H181: =IF(Engines!AN60<>"",Engines!AN60,LOOKUP(Calculations!H$163,Calculations!$C$9:$I$9,Calculations!$C28:$I28)) -> 0.00111 | I181: =IF(Engines!AO60<>"",Engines!AO60,LOOKUP(Calculations!I$163,Calculations!$C$9:$I$9,Calculations!$C28:$I28)) -> 0.00111 | J181: =IF(Engines!AP60<>"",Engines!AP60,LOOKUP(Calculations!J$163,Calculations!$C$9:$I$9,Calculations!$C28:$I28)) -> 0.00111 | K181: =IF(Engines!AQ60<>"",Engines!AQ60,LOOKUP(Calculations!K$163,Calculations!$C$9:$I$9,Calculations!$C28:$I28)) -> 0.00111 | L181: =IF(Engines!AR60<>"",Engines!AR60,LOOKUP(Calculations!L$163,Calculations!$C$9:$I$9,Calculations!$C28:$I28)) -> 0.00111 | N181: n-Hexane | P181: 0 | Q181: 0 | R181: 0 | S181: 0 | T181: 0 | U181: 0 | V181: 0 | W181: 0 | X181: 0 | Y181: 0 | Z181: 0 | AB181: n-Hexane | AD181: 0 | AE181: 0 | AF181: 0 | AG181: 0 | AH181: 0 | AI181: 0 | AJ181: 0 | AK181: 0 | AL181: 0 | AM181: 0 | AN181: 0
A182: Hydrochloric acid | C182: =IF(Engines!AI61<>"",Engines!AI61,LOOKUP(Calculations!C$163,Calculations!$C$9:$I$9,Calculations!$C29:$I29)) -> 0 | D182: =IF(Engines!AJ61<>"",Engines!AJ61,LOOKUP(Calculations!D$163,Calculations!$C$9:$I$9,Calculations!$C29:$I29)) -> 0 | E182: =IF(Engines!AK61<>"",Engines!AK61,LOOKUP(Calculations!E$163,Calculations!$C$9:$I$9,Calculations!$C29:$I29)) -> 0 | F182: =IF(Engines!AL61<>"",Engines!AL61,LOOKUP(Calculations!F$163,Calculations!$C$9:$I$9,Calculations!$C29:$I29)) -> 0 | G182: =IF(Engines!AM61<>"",Engines!AM61,LOOKUP(Calculations!G$163,Calculations!$C$9:$I$9,Calculations!$C29:$I29)) -> 0 | H182: =IF(Engines!AN61<>"",Engines!AN61,LOOKUP(Calculations!H$163,Calculations!$C$9:$I$9,Calculations!$C29:$I29)) -> 0 | I182: =IF(Engines!AO61<>"",Engines!AO61,LOOKUP(Calculations!I$163,Calculations!$C$9:$I$9,Calculations!$C29:$I29)) -> 0 | J182: =IF(Engines!AP61<>"",Engines!AP61,LOOKUP(Calculations!J$163,Calculations!$C$9:$I$9,Calculations!$C29:$I29)) -> 0 | K182: =IF(Engines!AQ61<>"",Engines!AQ61,LOOKUP(Calculations!K$163,Calculations!$C$9:$I$9,Calculations!$C29:$I29)) -> 0 | L182: =IF(Engines!AR61<>"",Engines!AR61,LOOKUP(Calculations!L$163,Calculations!$C$9:$I$9,Calculations!$C29:$I29)) -> 0 | N182: Hydrochloric acid | P182: 0 | Q182: 0 | R182: 0 | S182: 0 | T182: 0 | U182: 0 | V182: 0 | W182: 0 | X182: 0 | Y182: 0 | Z182: 0 | AB182: Hydrochloric acid | AD182: 0 | AE182: 0 | AF182: 0 | AG182: 0 | AH182: 0 | AI182: 0 | AJ182: 0 | AK182: 0 | AL182: 0 | AM182: 0 | AN182: 0
A183: Lead Compounds | C183: =IF(Engines!AI62<>"",Engines!AI62,LOOKUP(Calculations!C$163,Calculations!$C$9:$I$9,Calculations!$C30:$I30)) -> 0 | D183: =IF(Engines!AJ62<>"",Engines!AJ62,LOOKUP(Calculations!D$163,Calculations!$C$9:$I$9,Calculations!$C30:$I30)) -> 0 | E183: =IF(Engines!AK62<>"",Engines!AK62,LOOKUP(Calculations!E$163,Calculations!$C$9:$I$9,Calculations!$C30:$I30)) -> 0 | F183: =IF(Engines!AL62<>"",Engines!AL62,LOOKUP(Calculations!F$163,Calculations!$C$9:$I$9,Calculations!$C30:$I30)) -> 0 | G183: =IF(Engines!AM62<>"",Engines!AM62,LOOKUP(Calculations!G$163,Calculations!$C$9:$I$9,Calculations!$C30:$I30)) -> 0 | H183: =IF(Engines!AN62<>"",Engines!AN62,LOOKUP(Calculations!H$163,Calculations!$C$9:$I$9,Calculations!$C30:$I30)) -> 0 | I183: =IF(Engines!AO62<>"",Engines!AO62,LOOKUP(Calculations!I$163,Calculations!$C$9:$I$9,Calculations!$C30:$I30)) -> 0 | J183: =IF(Engines!AP62<>"",Engines!AP62,LOOKUP(Calculations!J$163,Calculations!$C$9:$I$9,Calculations!$C30:$I30)) -> 0 | K183: =IF(Engines!AQ62<>"",Engines!AQ62,LOOKUP(Calculations!K$163,Calculations!$C$9:$I$9,Calculations!$C30:$I30)) -> 0 | L183: =IF(Engines!AR62<>"",Engines!AR62,LOOKUP(Calculations!L$163,Calculations!$C$9:$I$9,Calculations!$C30:$I30)) -> 0 | N183: Lead Compounds | P183: 0 | Q183: 0 | R183: 0 | S183: 0 | T183: 0 | U183: 0 | V183: 0 | W183: 0 | X183: 0 | Y183: 0 | Z183: 0 | AB183: Lead Compounds | AD183: 0 | AE183: 0 | AF183: 0 | AG183: 0 | AH183: 0 | AI183: 0 | AJ183: 0 | AK183: 0 | AL183: 0 | AM183: 0 | AN183: 0
A184: Mercury compounds | C184: =IF(Engines!AI63<>"",Engines!AI63,LOOKUP(Calculations!C$163,Calculations!$C$9:$I$9,Calculations!$C31:$I31)) -> 0 | D184: =IF(Engines!AJ63<>"",Engines!AJ63,LOOKUP(Calculations!D$163,Calculations!$C$9:$I$9,Calculations!$C31:$I31)) -> 0 | E184: =IF(Engines!AK63<>"",Engines!AK63,LOOKUP(Calculations!E$163,Calculations!$C$9:$I$9,Calculations!$C31:$I31)) -> 0 | F184: =IF(Engines!AL63<>"",Engines!AL63,LOOKUP(Calculations!F$163,Calculations!$C$9:$I$9,Calculations!$C31:$I31)) -> 0 | G184: =IF(Engines!AM63<>"",Engines!AM63,LOOKUP(Calculations!G$163,Calculations!$C$9:$I$9,Calculations!$C31:$I31)) -> 0 | H184: =IF(Engines!AN63<>"",Engines!AN63,LOOKUP(Calculations!H$163,Calculations!$C$9:$I$9,Calculations!$C31:$I31)) -> 0 | I184: =IF(Engines!AO63<>"",Engines!AO63,LOOKUP(Calculations!I$163,Calculations!$C$9:$I$9,Calculations!$C31:$I31)) -> 0 | J184: =IF(Engines!AP63<>"",Engines!AP63,LOOKUP(Calculations!J$163,Calculations!$C$9:$I$9,Calculations!$C31:$I31)) -> 0 | K184: =IF(Engines!AQ63<>"",Engines!AQ63,LOOKUP(Calculations!K$163,Calculations!$C$9:$I$9,Calculations!$C31:$I31)) -> 0 | L184: =IF(Engines!AR63<>"",Engines!AR63,LOOKUP(Calculations!L$163,Calculations!$C$9:$I$9,Calculations!$C31:$I31)) -> 0 | N184: Mercury compounds | P184: 0 | Q184: 0 | R184: 0 | S184: 0 | T184: 0 | U184: 0 | V184: 0 | W184: 0 | X184: 0 | Y184: 0 | Z184: 0 | AB184: Mercury compounds | AD184: 0 | AE184: 0 | AF184: 0 | AG184: 0 | AH184: 0 | AI184: 0 | AJ184: 0 | AK184: 0 | AL184: 0 | AM184: 0 | AN184: 0
A185: Methanol | C185: =IF(Engines!AI64<>"",Engines!AI64,LOOKUP(Calculations!C$163,Calculations!$C$9:$I$9,Calculations!$C32:$I32)) -> 0.0025 | D185: =IF(Engines!AJ64<>"",Engines!AJ64,LOOKUP(Calculations!D$163,Calculations!$C$9:$I$9,Calculations!$C32:$I32)) -> 0.0025 | E185: =IF(Engines!AK64<>"",Engines!AK64,LOOKUP(Calculations!E$163,Calculations!$C$9:$I$9,Calculations!$C32:$I32)) -> 0.0025 | F185: =IF(Engines!AL64<>"",Engines!AL64,LOOKUP(Calculations!F$163,Calculations!$C$9:$I$9,Calculations!$C32:$I32)) -> 0.0025 | G185: =IF(Engines!AM64<>"",Engines!AM64,LOOKUP(Calculations!G$163,Calculations!$C$9:$I$9,Calculations!$C32:$I32)) -> 0.0025 | H185: =IF(Engines!AN64<>"",Engines!AN64,LOOKUP(Calculations!H$163,Calculations!$C$9:$I$9,Calculations!$C32:$I32)) -> 0.0025 | I185: =IF(Engines!AO64<>"",Engines!AO64,LOOKUP(Calculations!I$163,Calculations!$C$9:$I$9,Calculations!$C32:$I32)) -> 0.0025 | J185: =IF(Engines!AP64<>"",Engines!AP64,LOOKUP(Calculations!J$163,Calculations!$C$9:$I$9,Calculations!$C32:$I32)) -> 0.0025 | K185: =IF(Engines!AQ64<>"",Engines!AQ64,LOOKUP(Calculations!K$163,Calculations!$C$9:$I$9,Calculations!$C32:$I32)) -> 0.0025 | L185: =IF(Engines!AR64<>"",Engines!AR64,LOOKUP(Calculations!L$163,Calculations!$C$9:$I$9,Calculations!$C32:$I32)) -> 0.0025 | N185: Methanol | P185: 0 | Q185: 0 | R185: 0 | S185: 0 | T185: 0 | U185: 0 | V185: 0 | W185: 0 | X185: 0 | Y185: 0 | Z185: 0 | AB185: Methanol | AD185: 0 | AE185: 0 | AF185: 0 | AG185: 0 | AH185: 0 | AI185: 0 | AJ185: 0 | AK185: 0 | AL185: 0 | AM185: 0 | AN185: 0
A186: Methyl hydrazine | C186: =IF(Engines!AI65<>"",Engines!AI65,LOOKUP(Calculations!C$163,Calculations!$C$9:$I$9,Calculations!$C33:$I33)) -> 0 | D186: =IF(Engines!AJ65<>"",Engines!AJ65,LOOKUP(Calculations!D$163,Calculations!$C$9:$I$9,Calculations!$C33:$I33)) -> 0 | E186: =IF(Engines!AK65<>"",Engines!AK65,LOOKUP(Calculations!E$163,Calculations!$C$9:$I$9,Calculations!$C33:$I33)) -> 0 | F186: =IF(Engines!AL65<>"",Engines!AL65,LOOKUP(Calculations!F$163,Calculations!$C$9:$I$9,Calculations!$C33:$I33)) -> 0 | G186: =IF(Engines!AM65<>"",Engines!AM65,LOOKUP(Calculations!G$163,Calculations!$C$9:$I$9,Calculations!$C33:$I33)) -> 0 | H186: =IF(Engines!AN65<>"",Engines!AN65,LOOKUP(Calculations!H$163,Calculations!$C$9:$I$9,Calculations!$C33:$I33)) -> 0 | I186: =IF(Engines!AO65<>"",Engines!AO65,LOOKUP(Calculations!I$163,Calculations!$C$9:$I$9,Calculations!$C33:$I33)) -> 0 | J186: =IF(Engines!AP65<>"",Engines!AP65,LOOKUP(Calculations!J$163,Calculations!$C$9:$I$9,Calculations!$C33:$I33)) -> 0 | K186: =IF(Engines!AQ65<>"",Engines!AQ65,LOOKUP(Calculations!K$163,Calculations!$C$9:$I$9,Calculations!$C33:$I33)) -> 0 | L186: =IF(Engines!AR65<>"",Engines!AR65,LOOKUP(Calculations!L$163,Calculations!$C$9:$I$9,Calculations!$C33:$I33)) -> 0 | N186: Methyl hydrazine | P186: 0 | Q186: 0 | R186: 0 | S186: 0 | T186: 0 | U186: 0 | V186: 0 | W186: 0 | X186: 0 | Y186: 0 | Z186: 0 | AB186: Methyl hydrazine | AD186: 0 | AE186: 0 | AF186: 0 | AG186: 0 | AH186: 0 | AI186: 0 | AJ186: 0 | AK186: 0 | AL186: 0 | AM186: 0 | AN186: 0
A187: Selenium compounds | C187: =IF(Engines!AI66<>"",Engines!AI66,LOOKUP(Calculations!C$163,Calculations!$C$9:$I$9,Calculations!$C34:$I34)) -> 0 | D187: =IF(Engines!AJ66<>"",Engines!AJ66,LOOKUP(Calculations!D$163,Calculations!$C$9:$I$9,Calculations!$C34:$I34)) -> 0 | E187: =IF(Engines!AK66<>"",Engines!AK66,LOOKUP(Calculations!E$163,Calculations!$C$9:$I$9,Calculations!$C34:$I34)) -> 0 | F187: =IF(Engines!AL66<>"",Engines!AL66,LOOKUP(Calculations!F$163,Calculations!$C$9:$I$9,Calculations!$C34:$I34)) -> 0 | G187: =IF(Engines!AM66<>"",Engines!AM66,LOOKUP(Calculations!G$163,Calculations!$C$9:$I$9,Calculations!$C34:$I34)) -> 0 | H187: =IF(Engines!AN66<>"",Engines!AN66,LOOKUP(Calculations!H$163,Calculations!$C$9:$I$9,Calculations!$C34:$I34)) -> 0 | I187: =IF(Engines!AO66<>"",Engines!AO66,LOOKUP(Calculations!I$163,Calculations!$C$9:$I$9,Calculations!$C34:$I34)) -> 0 | J187: =IF(Engines!AP66<>"",Engines!AP66,LOOKUP(Calculations!J$163,Calculations!$C$9:$I$9,Calculations!$C34:$I34)) -> 0 | K187: =IF(Engines!AQ66<>"",Engines!AQ66,LOOKUP(Calculations!K$163,Calculations!$C$9:$I$9,Calculations!$C34:$I34)) -> 0 | L187: =IF(Engines!AR66<>"",Engines!AR66,LOOKUP(Calculations!L$163,Calculations!$C$9:$I$9,Calculations!$C34:$I34)) -> 0 | N187: Selenium compounds | P187: 0 | Q187: 0 | R187: 0 | S187: 0 | T187: 0 | U187: 0 | V187: 0 | W187: 0 | X187: 0 | Y187: 0 | Z187: 0 | AB187: Selenium compounds | AD187: 0 | AE187: 0 | AF187: 0 | AG187: 0 | AH187: 0 | AI187: 0 | AJ187: 0 | AK187: 0 | AL187: 0 | AM187: 0 | AN187: 0
A188: Other HAPs | C188: =IF(Engines!AI67<>"",Engines!AI67,LOOKUP(Calculations!C$163,Calculations!$C$9:$I$9,Calculations!$C35:$I35)) -> 0.00616456 | D188: =IF(Engines!AJ67<>"",Engines!AJ67,LOOKUP(Calculations!D$163,Calculations!$C$9:$I$9,Calculations!$C35:$I35)) -> 0.00616456 | E188: =IF(Engines!AK67<>"",Engines!AK67,LOOKUP(Calculations!E$163,Calculations!$C$9:$I$9,Calculations!$C35:$I35)) -> 0.00616456 | F188: =IF(Engines!AL67<>"",Engines!AL67,LOOKUP(Calculations!F$163,Calculations!$C$9:$I$9,Calculations!$C35:$I35)) -> 0.00616456 | G188: =IF(Engines!AM67<>"",Engines!AM67,LOOKUP(Calculations!G$163,Calculations!$C$9:$I$9,Calculations!$C35:$I35)) -> 0.00616456 | H188: =IF(Engines!AN67<>"",Engines!AN67,LOOKUP(Calculations!H$163,Calculations!$C$9:$I$9,Calculations!$C35:$I35)) -> 0.00616456 | I188: =IF(Engines!AO67<>"",Engines!AO67,LOOKUP(Calculations!I$163,Calculations!$C$9:$I$9,Calculations!$C35:$I35)) -> 0.00616456 | J188: =IF(Engines!AP67<>"",Engines!AP67,LOOKUP(Calculations!J$163,Calculations!$C$9:$I$9,Calculations!$C35:$I35)) -> 0.00616456 | K188: =IF(Engines!AQ67<>"",Engines!AQ67,LOOKUP(Calculations!K$163,Calculations!$C$9:$I$9,Calculations!$C35:$I35)) -> 0.00616456 | L188: =IF(Engines!AR67<>"",Engines!AR67,LOOKUP(Calculations!L$163,Calculations!$C$9:$I$9,Calculations!$C35:$I35)) -> 0.00616456 | N188: Other HAPs | P188: 0 | Q188: 0 | R188: 0 | S188: 0 | T188: 0 | U188: 0 | V188: 0 | W188: 0 | X188: 0 | Y188: 0 | Z188: 0 | AB188: Other HAPs | AD188: 0 | AE188: 0 | AF188: 0 | AG188: 0 | AH188: 0 | AI188: 0 | AJ188: 0 | AK188: 0 | AL188: 0 | AM188: 0 | AN188: 0
A189: Total HAPs | C189: =IF(Engines!AI68<>"",Engines!AI68,LOOKUP(Calculations!C$163,Calculations!$C$9:$I$9,Calculations!$C36:$I36)) -> 0.07651456 | D189: =IF(Engines!AJ68<>"",Engines!AJ68,LOOKUP(Calculations!D$163,Calculations!$C$9:$I$9,Calculations!$C36:$I36)) -> 0.07651456 | E189: =IF(Engines!AK68<>"",Engines!AK68,LOOKUP(Calculations!E$163,Calculations!$C$9:$I$9,Calculations!$C36:$I36)) -> 0.07651456 | F189: =IF(Engines!AL68<>"",Engines!AL68,LOOKUP(Calculations!F$163,Calculations!$C$9:$I$9,Calculations!$C36:$I36)) -> 0.07651456 | G189: =IF(Engines!AM68<>"",Engines!AM68,LOOKUP(Calculations!G$163,Calculations!$C$9:$I$9,Calculations!$C36:$I36)) -> 0.07651456 | H189: =IF(Engines!AN68<>"",Engines!AN68,LOOKUP(Calculations!H$163,Calculations!$C$9:$I$9,Calculations!$C36:$I36)) -> 0.07651456 | I189: =IF(Engines!AO68<>"",Engines!AO68,LOOKUP(Calculations!I$163,Calculations!$C$9:$I$9,Calculations!$C36:$I36)) -> 0.07651456 | J189: =IF(Engines!AP68<>"",Engines!AP68,LOOKUP(Calculations!J$163,Calculations!$C$9:$I$9,Calculations!$C36:$I36)) -> 0.07651456 | K189: =IF(Engines!AQ68<>"",Engines!AQ68,LOOKUP(Calculations!K$163,Calculations!$C$9:$I$9,Calculations!$C36:$I36)) -> 0.07651456 | L189: =IF(Engines!AR68<>"",Engines!AR68,LOOKUP(Calculations!L$163,Calculations!$C$9:$I$9,Calculations!$C36:$I36)) -> 0.07651456 | N189: Total HAPs | P189: 0 | Q189: 0 | R189: 0 | S189: 0 | T189: 0 | U189: 0 | V189: 0 | W189: 0 | X189: 0 | Y189: 0 | Z189: 0 | AB189: Total HAPs | AD189: 0 | AE189: 0 | AF189: 0 | AG189: 0 | AH189: 0 | AI189: 0 | AJ189: 0 | AK189: 0 | AL189: 0 | AM189: 0 | AN189: 0
A190: Green House Gasses | N190: Green House Gasses | AB190: Green House Gasses
A191: Carbon Dioxide (CO2) | C191: =IF(Engines!AI70<>"",Engines!AI70,LOOKUP(Calculations!C$163,Calculations!$C$9:$I$9,Calculations!$C38:$I38)) -> 53.06 | D191: =IF(Engines!AJ70<>"",Engines!AJ70,LOOKUP(Calculations!D$163,Calculations!$C$9:$I$9,Calculations!$C38:$I38)) -> 53.06 | E191: =IF(Engines!AK70<>"",Engines!AK70,LOOKUP(Calculations!E$163,Calculations!$C$9:$I$9,Calculations!$C38:$I38)) -> 53.06 | F191: =IF(Engines!AL70<>"",Engines!AL70,LOOKUP(Calculations!F$163,Calculations!$C$9:$I$9,Calculations!$C38:$I38)) -> 53.06 | G191: =IF(Engines!AM70<>"",Engines!AM70,LOOKUP(Calculations!G$163,Calculations!$C$9:$I$9,Calculations!$C38:$I38)) -> 53.06 | H191: =IF(Engines!AN70<>"",Engines!AN70,LOOKUP(Calculations!H$163,Calculations!$C$9:$I$9,Calculations!$C38:$I38)) -> 53.06 | I191: =IF(Engines!AO70<>"",Engines!AO70,LOOKUP(Calculations!I$163,Calculations!$C$9:$I$9,Calculations!$C38:$I38)) -> 53.06 | J191: =IF(Engines!AP70<>"",Engines!AP70,LOOKUP(Calculations!J$163,Calculations!$C$9:$I$9,Calculations!$C38:$I38)) -> 53.06 | K191: =IF(Engines!AQ70<>"",Engines!AQ70,LOOKUP(Calculations!K$163,Calculations!$C$9:$I$9,Calculations!$C38:$I38)) -> 53.06 | L191: =IF(Engines!AR70<>"",Engines!AR70,LOOKUP(Calculations!L$163,Calculations!$C$9:$I$9,Calculations!$C38:$I38)) -> 53.06 | N191: Carbon Dioxide (CO2) | P191: =C191*C$197*2.20462 -> 0 | Q191: =D191*D$197*2.20462 -> 0 | R191: 0 | S191: 0 | T191: 0 | U191: 0 | V191: 0 | W191: 0 | X191: 0 | Y191: 0 | Z191: =SUM(P191:Y191) -> 0 | AB191: Carbon Dioxide (CO2) | AD191: =P191*C$198/2000 -> 0 | AE191: =Q191*D$198/2000 -> 0 | AF191: =R191*E$198/2000 -> 0 | AG191: =S191*F$198/2000 -> 0 | AH191: =T191*G$198/2000 -> 0 | AI191: =U191*H$198/2000 -> 0 | AJ191: =V191*I$198/2000 -> 0 | AK191: =W191*J$198/2000 -> 0 | AL191: =X191*K$198/2000 -> 0 | AM191: =Y191*L$198/2000 -> 0 | AN191: =SUM(AD191:AM191) -> 0
A192: Methane (CH4) | C192: =IF(Engines!AI71<>"",Engines!AI71,LOOKUP(Calculations!C$163,Calculations!$C$9:$I$9,Calculations!$C39:$I39)) -> 0.001 | D192: =IF(Engines!AJ71<>"",Engines!AJ71,LOOKUP(Calculations!D$163,Calculations!$C$9:$I$9,Calculations!$C39:$I39)) -> 0.001 | E192: =IF(Engines!AK71<>"",Engines!AK71,LOOKUP(Calculations!E$163,Calculations!$C$9:$I$9,Calculations!$C39:$I39)) -> 0.001 | F192: =IF(Engines!AL71<>"",Engines!AL71,LOOKUP(Calculations!F$163,Calculations!$C$9:$I$9,Calculations!$C39:$I39)) -> 0.001 | G192: =IF(Engines!AM71<>"",Engines!AM71,LOOKUP(Calculations!G$163,Calculations!$C$9:$I$9,Calculations!$C39:$I39)) -> 0.001 | H192: =IF(Engines!AN71<>"",Engines!AN71,LOOKUP(Calculations!H$163,Calculations!$C$9:$I$9,Calculations!$C39:$I39)) -> 0.001 | I192: =IF(Engines!AO71<>"",Engines!AO71,LOOKUP(Calculations!I$163,Calculations!$C$9:$I$9,Calculations!$C39:$I39)) -> 0.001 | J192: =IF(Engines!AP71<>"",Engines!AP71,LOOKUP(Calculations!J$163,Calculations!$C$9:$I$9,Calculations!$C39:$I39)) -> 0.001 | K192: =IF(Engines!AQ71<>"",Engines!AQ71,LOOKUP(Calculations!K$163,Calculations!$C$9:$I$9,Calculations!$C39:$I39)) -> 0.001 | L192: =IF(Engines!AR71<>"",Engines!AR71,LOOKUP(Calculations!L$163,Calculations!$C$9:$I$9,Calculations!$C39:$I39)) -> 0.001 | N192: Methane (CH4) | P192: =C192*C$197*2.20462 -> 0 | Q192: =D192*D$197*2.20462 -> 0 | R192: =E192*E$197*2.20462 -> 0 | S192: =F192*F$197*2.20462 -> 0 | T192: =G192*G$197*2.20462 -> 0 | U192: =H192*H$197*2.20462 -> 0 | V192: =I192*I$197*2.20462 -> 0 | W192: =J192*J$197*2.20462 -> 0 | X192: =K192*K$197*2.20462 -> 0 | Y192: =L192*L$197*2.20462 -> 0 | Z192: 0 | AB192: Methane (CH4) | AD192: 0 | AE192: 0 | AF192: 0 | AG192: 0 | AH192: 0 | AI192: 0 | AJ192: 0 | AK192: 0 | AL192: 0 | AM192: 0 | AN192: 0
A193: Nitrous Oxide (N2O) | C193: =IF(Engines!AI72<>"",Engines!AI72,LOOKUP(Calculations!C$163,Calculations!$C$9:$I$9,Calculations!$C40:$I40)) -> 0.0001 | D193: =IF(Engines!AJ72<>"",Engines!AJ72,LOOKUP(Calculations!D$163,Calculations!$C$9:$I$9,Calculations!$C40:$I40)) -> 0.0001 | E193: =IF(Engines!AK72<>"",Engines!AK72,LOOKUP(Calculations!E$163,Calculations!$C$9:$I$9,Calculations!$C40:$I40)) -> 0.0001 | F193: =IF(Engines!AL72<>"",Engines!AL72,LOOKUP(Calculations!F$163,Calculations!$C$9:$I$9,Calculations!$C40:$I40)) -> 0.0001 | G193: =IF(Engines!AM72<>"",Engines!AM72,LOOKUP(Calculations!G$163,Calculations!$C$9:$I$9,Calculations!$C40:$I40)) -> 0.0001 | H193: =IF(Engines!AN72<>"",Engines!AN72,LOOKUP(Calculations!H$163,Calculations!$C$9:$I$9,Calculations!$C40:$I40)) -> 0.0001 | I193: =IF(Engines!AO72<>"",Engines!AO72,LOOKUP(Calculations!I$163,Calculations!$C$9:$I$9,Calculations!$C40:$I40)) -> 0.0001 | J193: =IF(Engines!AP72<>"",Engines!AP72,LOOKUP(Calculations!J$163,Calculations!$C$9:$I$9,Calculations!$C40:$I40)) -> 0.0001 | K193: =IF(Engines!AQ72<>"",Engines!AQ72,LOOKUP(Calculations!K$163,Calculations!$C$9:$I$9,Calculations!$C40:$I40)) -> 0.0001 | L193: =IF(Engines!AR72<>"",Engines!AR72,LOOKUP(Calculations!L$163,Calculations!$C$9:$I$9,Calculations!$C40:$I40)) -> 0.0001 | N193: Nitrous Oxide (N2O) | P193: 0 | Q193: 0 | R193: 0 | S193: 0 | T193: 0 | U193: 0 | V193: 0 | W193: 0 | X193: 0 | Y193: 0 | Z193: 0 | AB193: Nitrous Oxide (N2O) | AD193: 0 | AE193: 0 | AF193: 0 | AG193: 0 | AH193: 0 | AI193: 0 | AJ193: 0 | AK193: 0 | AL193: 0 | AM193: 0 | AN193: 0
A195: Engine Rating (hp) | C195: =Engines!N29 -> 0 | D195: =Engines!N30 -> 0 | E195: =Engines!N31 -> 0 | F195: =Engines!N32 -> 0 | G195: =Engines!N33 -> 0 | H195: =Engines!N34 -> 0 | I195: =Engines!N35 -> 0 | J195: =Engines!N36 -> 0 | K195: =Engines!N37 -> 0 | L195: =Engines!N38 -> 0
A196: =Engines!O28 -> Fuel Use Factor (Btu/hp-hr) | C196: =Engines!O29 -> 0 | D196: =Engines!O30 -> 0 | E196: =Engines!O31 -> 0 | F196: =Engines!O32 -> 0 | G196: =Engines!O33 -> 0 | H196: =Engines!O34 -> 0 | I196: =Engines!O35 -> 0 | J196: =Engines!O36 -> 0 | K196: =Engines!O37 -> 0 | L196: =Engines!O38 -> 0
A197: Engine Heat Input (MMBtu/hr) | C197: =C195*C196/1000000 -> 0 | D197: =D195*D196/1000000 -> 0 | E197: =E195*E196/1000000 -> 0 | F197: =F195*F196/1000000 -> 0 | G197: =G195*G196/1000000 -> 0 | H197: =H195*H196/1000000 -> 0 | I197: =I195*I196/1000000 -> 0 | J197: =J195*J196/1000000 -> 0 | K197: =K195*K196/1000000 -> 0 | L197: =L195*L196/1000000 -> 0
A198: Operating Hours | C198: =Engines!S29 -> 8760 | D198: =Engines!S30 -> 8760 | E198: =Engines!S31 -> 8760 | F198: =Engines!S32 -> 8760 | G198: =Engines!S33 -> 8760 | H198: =Engines!S34 -> 8760 | I198: =Engines!S35 -> 8760 | J198: =Engines!S36 -> 8760 | K198: =Engines!S37 -> 8760 | L198: =Engines!S38 -> 8760
B202: Compression Engine | D202: Spark Ignition Engine | F202: Total | I202: Compression Engine | K202: Spark Ignition Engine | M202: Total
B203: lb/hr | C203: ton/yr | D203: lb/hr | E203: ton/yr | F203: lb/hr | G203: ton/yr | I203: lb/hr | J203: ton/yr | K203: lb/hr | L203: ton/yr | M203: lb/hr | N203: ton/yr
A204: PMfilterable | B204: =Z46 -> 0 | C204: =AN46 -> 0 | D204: =Z85 -> 0 | E204: =AN85 -> 0 | F204: =B204+D204 -> 0 | G204: =C204+E204 -> 0 | I204: =Z125 -> 0 | J204: =AN125 -> 0 | K204: =Z164 -> 0 | L204: =AN164 -> 0 | M204: =I204+K204 -> 0 | N204: =J204+L204 -> 0
A205: PM10 | B205: =Z47 -> 0 | C205: =AN47 -> 0 | D205: 0 | E205: =AN86 -> 0 | F205: =B205+D205 -> 0 | G205: =C205+E205 -> 0 | I205: 0 | J205: =AN126 -> 0 | K205: =Z165 -> 0 | L205: =AN165 -> 0 | M205: =I205+K205 -> 0 | N205: =J205+L205 -> 0
A206: PM2.5 | B206: 0 | C206: 0 | D206: 0 | E206: 0 | F206: 0 | G206: 0 | I206: 0 | J206: 0 | K206: 0 | L206: 0 | M206: 0 | N206: 0
A207: SO2 | B207: 0 | C207: 0 | D207: 0 | E207: 0 | F207: 0 | G207: 0 | I207: 0 | J207: 0 | K207: 0 | L207: 0 | M207: 0 | N207: 0
A208: NOx | B208: 0 | C208: 0 | D208: 0 | E208: 0 | F208: 0 | G208: 0 | I208: 0 | J208: 0 | K208: 0 | L208: 0 | M208: 0 | N208: 0
A209: CO | B209: 0 | C209: 0 | D209: 0 | E209: 0 | F209: 0 | G209: 0 | I209: 0 | J209: 0 | K209: 0 | L209: 0 | M209: 0 | N209: 0
A210: VOC | B210: 0 | C210: 0 | D210: 0 | E210: 0 | F210: 0 | G210: 0 | I210: 0 | J210: 0 | K210: 0 | L210: 0 | M210: 0 | N210: 0
A211: Hydrogen Sulfide
A212: Sulfuric Acid
A213: Fluorides
A214: Individual HAP
A215: Acetaldehyde | B215: =Z54 -> 0 | C215: =AN54 -> 0 | D215: =Z93 -> 0 | E215: =AN93 -> 0 | F215: 0 | G215: 0 | I215: =Z133 -> 0 | J215: =AN133 -> 0 | K215: =Z172 -> 0 | L215: =AN172 -> 0 | M215: =I215+K215 -> 0 | N215: =J215+L215 -> 0
A216: Acrolein | B216: 0 | C216: =AN55 -> 0 | D216: 0 | E216: =AN94 -> 0 | F216: 0 | G216: 0 | I216: =Z134 -> 0 | J216: =AN134 -> 0 | K216: =Z173 -> 0 | L216: =AN173 -> 0 | M216: 0 | N216: 0
A217: Arsenic compounds | B217: 0 | C217: 0 | D217: 0 | E217: 0 | F217: 0 | G217: 0 | I217: 0 | J217: 0 | K217: 0 | L217: 0 | M217: 0 | N217: 0
A218: Benzene | B218: 0 | C218: 0 | D218: 0 | E218: 0 | F218: 0 | G218: 0 | I218: 0 | J218: 0 | K218: 0 | L218: 0 | M218: 0 | N218: 0
A219: Benzyl chloride | B219: 0 | C219: 0 | D219: 0 | E219: 0 | F219: 0 | G219: 0 | I219: 0 | J219: 0 | K219: 0 | L219: 0 | M219: 0 | N219: 0
A220: Beryllium compounds | B220: 0 | C220: 0 | D220: 0 | E220: 0 | F220: 0 | G220: 0 | I220: 0 | J220: 0 | K220: 0 | L220: 0 | M220: 0 | N220: 0
A221: Cadmium compounds | B221: 0 | C221: 0 | D221: 0 | E221: 0 | F221: 0 | G221: 0 | I221: 0 | J221: 0 | K221: 0 | L221: 0 | M221: 0 | N221: 0
A222: Cyanide compounds | B222: 0 | C222: 0 | D222: 0 | E222: 0 | F222: 0 | G222: 0 | I222: 0 | J222: 0 | K222: 0 | L222: 0 | M222: 0 | N222: 0
... 83 more rows

Sheet Datasets (hidden)
A1: Unit Type | B1: % Straight to Hopper | C1: Control type | D1: Yes/NO | E1: Choice | F1: Permit Type | G1: Construction Permit | H1: Raw Material | I1: Enclosure | J1: Material Transfer | K1: Pile Control | L1: Dryer Type | M1: Fermentation Control | N1: Type of solids | O1: Enclosure | P1: Type of Loadout | Q1: Loading Type | R1: Tank Content | S1: Tank Orientation | T1: Tank Location | U1: Type of Tank | V1: Type of Primary Seal | W1: Shell Condition | X1: Number of columns | Y1: Default Control Equipment | Z1: Controlled Units | AA1: Boiler Types | AB1: NSPS | AC1: Fermenter/beerwell | AD1: Fermentation Type | AE1: Control Type | AF1: Control Type | AG1: Storage Control type | AH1: Ave. Truck Capacity | AI1: Input Road Type | AJ1: Fuel Type | AK1: Engine Configuration | AL1: Type of Secondary Seal | AM1: Internal Shell Conditions | AN1: External Shell Color | AO1: External Shell Condition | AP1: Deck Type | AQ1: Deck Fitting Category | AR1: Results Summary
A2: Truck | B2: 0:100 | C2: None/Uncontrolled | D2: YES | E2: X | F2: Construction Permit | G2: New Construction | H2: Corn | I2: Enclosed | J2: Front-End Loader | K2: Covered | L2: column dryer | M2: Vent Scrubber | N2: DDGS | O2: Enclosed | P2: Truck | Q2: None | R2: Ethanol | S2: Vertical | T2: Above Ground | U2: Fixed Roof | V2: Mechanical Shoe | W2: Light Rust | X2: Self Support | Y2: 0.95 | Z2: Dump Pits | AA2: Uncontrolled | AB2: Pre-NSPS | AC2: Fermenter | AD2: Batch Fermentation | AE2: None/Uncontrolled | AF2: None/Uncontrolled | AG2: None/Uncontrolled | AH2: ton | AI2: Unpaved Low Silt | AJ2: Natural Gas | AK2: 2-STROKE LEAN-BURN | AL2: Shoe Mounted | AM2: Light Rust | AN2: White | AO2: Good | AP2: Bolted | AQ2: Typical | AR2: Current PTE, (lb/hr)
A3: Rail Car | B3: 10:90 | C3: Baghouse | D3: NO | F3: Operating Permit | G3: Existing Plant | H3: Milo | I3: Partially Enclosed | J3: Conveyor | K3: Covered & Supressant | L3: rack dryer | M3: CO2 Scubber | N3: WDGS | O3: Partially Enclosed | P3: Rail Car | Q3: Submerged Loading | R3: Denaturant | S3: Horizontal | T3: Under Ground | U3: External Floating Roof | V3: Liquid Mounted | W3: Dense Rust | X3: 1 | Y3: 0.99 | Z3: Grain Handling | AA3: Low Nox burners | AB3: Post-NSPS | AC3: Beerwell | AD3: Continous Fermentation | AE3: Scrubber | AF3: RTO | AG3: Baghouse | AH3: gal | AI3: Unpaved Medium Silt | AJ3: Gasoline | AK3: 4-STROKE LEAN-BURN | AL3: Rim Mounted | AM3: Dense Rust | AN3: Aluminum/ Specular | AO3: Poor | AP3: Welded | AQ3: Detail | AR3: Current PTE, (ton/yr)
B4: 20:80 | H4: Cellulose | I4: Choke-flow | J4: Dump Truck | K4: None | L4: self‐cleaning screens | M4: No Control | O4: Other | P4: Both | Q4: Bottom-Fill Loading | R4: Denatured Ethanol | U4: Internal Floating Roof | V4: Vapor Mounted | W4: Gunite Lining | X4: 2 | Z4: Receiving & Handling | AA4: Flue Gas recirculation | AG4: Oiler | AI4: Unpaved High Silt | AJ4: Dual Fuel (95% NG + Diesel | AK4: 4-STROKE RICH-BURN | AM4: Gunite Lining | AN4: Aluminum/ Diffuse | AR4: PTE after the project, (lb/hr)
B5: 30:70 | H5: Other | I5: Other | J5: Loadout Spout | L5: other | R5: Corrosion Inhibitor | X5: 3 | AI5: Paved Low Silt | AN5: Gray/ Light | AR5: PTE after the project, (ton/yr)
B6: 40:60 | J6: Other | R6: Hydrochloric Acid | X6: 4 | AI6: Paved Medium Silt | AN6: Gray/ Medium | AR6: Project PTE, (lb/hr)
B7: 50:50 | X7: 5 | AI7: Paved High Silt | AN7: Red/ Prime | AR7: Project PTE, (ton/yr)
B8: 60:40 | X8: 6
B9: 70:30 | X9: 7 | AR9: Current Fugitive PTE, (lb/hr)
B10: 80:20 | X10: 8 | AR10: Current Fugitive PTE, (ton/yr)
B11: 90:10 | X11: 9 | AR11: Fugitive PTE after the Project, (lb/hr)
B12: 100:10 | X12: 10 | AR12: Fugitive PTE after the Project, (ton/yr)
X13: 11 | AR13: Project Fugitive PTE, (lb/hr)
X14: 12 | AR14: Project Fugitive PTE, (ton/yr)
X15: 13
X16: 14
X17: 15
X18: 16
X19: 17
X20: 18
X21: 19
X22: 20
